Directorate,Department,Expenditure Type,Ref.Doc.1,Vendor Name,Expenditure Amount (exc VAT),Payment Date
Assurance,Assurance,Advertising,10012200,TMP (UK) LTD,"2,298.00",16/04/2015
Assurance,Assurance,Training,60016163,PREMIER PEOPLE SOLUTIONS LTD,350.00,10/04/2015
Assurance,Governance,Advertising,60018535,BAY MEDIA LTD,"10,000.00",10/04/2015
Assurance,Governance,Advertising,60019222,THE BARNETGROUP LIMITED,650.00,22/04/2015
Assurance,Governance,Other Services,60018536,GEOGRAPHERS A-Z MAP COMPANY LTD,"3,000.00",13/04/2015
Assurance,Governance,Training,60017544,ASSOCIATION OF DEMOCRATIC SERVICES OFFIC,280.50,17/04/2015
Assurance,Governance,Ttl IT & Comms,60017480,BRITISH TELECOM PLC,"6,209.94",15/04/2015
Assurance,Governance,Ttl IT & Comms,60018390,HAMILTON RENTALS LTD,"2,108.00",21/04/2015
Assurance,Governance,Ttl IT & Comms,60018464,XPRESS SOFTWARE SOLUTIONS LTD,"13,130.00",29/04/2015
Assurance,Internal Audit & CAFT,Professional Services,60016373,PRICEWATERHOUSE COOPERS,"5,950.00",10/04/2015
Assurance,Internal Audit & CAFT,Professional Services,60016385,PRICEWATERHOUSE COOPERS,"4,950.00",10/04/2015
Assurance,Internal Audit & CAFT,Professional Services,60016424,PRICEWATERHOUSE COOPERS,"7,890.00",10/04/2015
Assurance,Internal Audit & CAFT,Subscriptions,60018823,INTEC FOR BUSINESS LIMITED,875.55,28/04/2015
Assurance,Internal Audit & CAFT,Subscriptions,60019190,THE INSTITUTE OF RISK MANAGEMENT,985.00,21/04/2015
Central Expenses,Central Expenses,Audit Fee,60018574,GRANT THORNTON UK LLP,"56,025.00",23/04/2015
Central Expenses,Central Expenses,Audit Fee,60019851,GRANT THORNTON UK LLP,"31,005.00",30/04/2015
Central Expenses,Central Expenses,Insurance Claims,60015118,CITY SUBURBAN TREE SURGEONS LTD,709.71,01/04/2015
Central Expenses,Central Expenses,Insurance Claims,60016280,CITY SUBURBAN TREE SURGEONS LTD,"1,013.51",08/04/2015
Central Expenses,Central Expenses,Insurance Claims,20019491,D LONG (CONSTRUCTION) LTD,"4,900.00",24/04/2015
Central Expenses,Central Expenses,Insurance Claims,20019057,DEPARTMENT FOR WORK & PENSIONS,637.00,10/04/2015
Central Expenses,Central Expenses,Insurance Claims,20019360,DEPARTMENT FOR WORK & PENSIONS,627.00,21/04/2015
Central Expenses,Central Expenses,Insurance Claims,20019483,DEPARTMENT FOR WORK & PENSIONS,"10,199.00",24/04/2015
Central Expenses,Central Expenses,Insurance Claims,20019118,IRWIN MITCHELL LLP,"1,301.60",13/04/2015
Central Expenses,Central Expenses,Insurance Claims,20019120,IRWIN MITCHELL LLP,720.00,13/04/2015
Central Expenses,Central Expenses,Insurance Claims,20019304,IRWIN MITCHELL SOLICITORS,477.00,17/04/2015
Central Expenses,Central Expenses,Insurance Claims,60012510,LEGAL COSTS NEGOTIATORS,608.57,08/04/2015
Central Expenses,Central Expenses,Insurance Claims,20019022,LONDON ENDO LTD,600.00,10/04/2015
Central Expenses,Central Expenses,Insurance Claims,20019441,OSBORNES SOLICITORS,"35,000.00",22/04/2015
Central Expenses,Central Expenses,Insurance Claims,20019056,QUINDELL BUSINESS PROCESS SERVICES,"1,830.72",10/04/2015
Central Expenses,Central Expenses,Insurance Claims,20019213,S. HIRSCH & CO SOLICITORS,"3,515.00",17/04/2015
Central Expenses,Central Expenses,Insurance Claims,20019347,SCOTT REES & CO. SOLICITORS,"10,000.00",21/04/2015
Central Expenses,Central Expenses,Insurance Claims,20019363,SLATER & GORDON,"1,555.00",21/04/2015
Central Expenses,Central Expenses,Insurance Claims,60011268,WEIGHTMANS LLP,"2,674.40",08/04/2015
Central Expenses,Central Expenses,Insurance Claims,60011489,WEIGHTMANS LLP,"2,211.50",08/04/2015
Central Expenses,Central Expenses,Joint Authorities - Third Part,60017633,LONDON BOROUGH OF HARINGEY,"25,467.30",10/04/2015
Central Expenses,Central Expenses,Joint Authorities - Third Part,EBX0053171,NORTH LONDON WASTE AUTHORITY,"894,662.00",01/04/2015
Central Expenses,Central Expenses,Joint Authorities - Third Part,EBX0058240,NORTH LONDON WASTE AUTHORITY,"894,643.00",30/04/2015
Central Expenses,Central Expenses,Other Establishments - Third P,20018896,ENVIRONMENT AGENCY,"75,627.75",07/04/2015
Central Expenses,Central Expenses,Other Establishments - Third P,EBX0055154,LEE VALLEY REGIONAL PARK AUTH.,"33,052.02",15/04/2015
Central Expenses,Central Expenses,Other Establishments - Third P,20019531,LONDON PENSIONS FUND AUTHORITY,"50,154.80",27/04/2015
Central Expenses,Central Expenses,Professional Services,10012236,CIPFA BUSINESS LIMITED,"8,658.00",28/04/2015
Commercial,Customer Support Group,Books-CDs-Audio-Video,60018654,SM ELECTRICAL SERVICES,350.00,23/04/2015
Commercial,Customer Support Group,Building Repairs & Maintenance,60016417,ADAMS ENVIRONMENTAL LTD,265.00,13/04/2015
Commercial,Customer Support Group,Building Repairs & Maintenance,60007254,ADAMS ENVIRONMENTAL LTD,400.00,21/04/2015
Commercial,Customer Support Group,Building Repairs & Maintenance,60007288,ADAMS ENVIRONMENTAL LTD,400.00,21/04/2015
Commercial,Customer Support Group,Building Repairs & Maintenance,60016500,AJS LTD,264.00,01/04/2015
Commercial,Customer Support Group,Building Repairs & Maintenance,60019146,D LONG (CONSTRUCTION) LTD,250.00,21/04/2015
Commercial,Customer Support Group,Building Repairs & Maintenance,60019155,D LONG (CONSTRUCTION) LTD,250.00,21/04/2015
Commercial,Customer Support Group,Building Repairs & Maintenance,60019798,D LONG (CONSTRUCTION) LTD,646.00,30/04/2015
Commercial,Customer Support Group,Building Repairs & Maintenance,60015059,DOORWAY-MAINTENANCE CO.,250.00,01/04/2015
Commercial,Customer Support Group,Building Repairs & Maintenance,60016882,DOORWAY-MAINTENANCE CO.,250.00,16/04/2015
Commercial,Customer Support Group,Building Repairs & Maintenance,60018497,DORMA UK LTD,512.11,10/04/2015
Commercial,Customer Support Group,Building Repairs & Maintenance,60018546,DORMA UK LTD,661.08,10/04/2015
Commercial,Customer Support Group,Building Repairs & Maintenance,60014305,LEASING PROGRAMMES LIMITED,"1,235.00",28/04/2015
Commercial,Customer Support Group,Building Repairs & Maintenance,60016337,LIFT & ENGINEERING SERVICES LTD,283.33,13/04/2015
Commercial,Customer Support Group,Building Repairs & Maintenance,60016735,LIFT & ENGINEERING SERVICES LTD,445.00,15/04/2015
Commercial,Customer Support Group,Building Repairs & Maintenance,60015446,OAKRAY LIMITED,397.95,01/04/2015
Commercial,Customer Support Group,Building Repairs & Maintenance,60015458,OAKRAY LIMITED,752.64,01/04/2015
Commercial,Customer Support Group,Building Repairs & Maintenance,60015467,OAKRAY LIMITED,264.07,01/04/2015
Commercial,Customer Support Group,Building Repairs & Maintenance,60015506,OAKRAY LIMITED,325.23,01/04/2015
Commercial,Customer Support Group,Building Repairs & Maintenance,60015521,OAKRAY LIMITED,772.39,01/04/2015
Commercial,Customer Support Group,Building Repairs & Maintenance,60016592,OAKRAY LIMITED,670.00,01/04/2015
Commercial,Customer Support Group,Building Repairs & Maintenance,60015486,OAKRAY LIMITED,"2,765.00",07/04/2015
Commercial,Customer Support Group,Building Repairs & Maintenance,60015489,OAKRAY LIMITED,535.88,07/04/2015
Commercial,Customer Support Group,Building Repairs & Maintenance,60015365,OAKRAY LIMITED,"1,090.50",09/04/2015
Commercial,Customer Support Group,Building Repairs & Maintenance,60015368,OAKRAY LIMITED,408.00,09/04/2015
Commercial,Customer Support Group,Building Repairs & Maintenance,60015372,OAKRAY LIMITED,574.50,09/04/2015
Commercial,Customer Support Group,Building Repairs & Maintenance,60015394,OAKRAY LIMITED,299.25,09/04/2015
Commercial,Customer Support Group,Building Repairs & Maintenance,60015408,OAKRAY LIMITED,939.00,09/04/2015
Commercial,Customer Support Group,Building Repairs & Maintenance,60015428,OAKRAY LIMITED,"1,214.25",09/04/2015
Commercial,Customer Support Group,Building Repairs & Maintenance,60015442,OAKRAY LIMITED,851.00,09/04/2015
Commercial,Customer Support Group,Building Repairs & Maintenance,60015444,OAKRAY LIMITED,348.00,09/04/2015
Commercial,Customer Support Group,Building Repairs & Maintenance,60015445,OAKRAY LIMITED,716.25,09/04/2015
Commercial,Customer Support Group,Building Repairs & Maintenance,60015447,OAKRAY LIMITED,"4,511.30",09/04/2015
Commercial,Customer Support Group,Building Repairs & Maintenance,60015452,OAKRAY LIMITED,"1,057.50",09/04/2015
Commercial,Customer Support Group,Building Repairs & Maintenance,60015472,OAKRAY LIMITED,641.00,09/04/2015
Commercial,Customer Support Group,Building Repairs & Maintenance,60015492,OAKRAY LIMITED,638.00,09/04/2015
Commercial,Customer Support Group,Building Repairs & Maintenance,60015500,OAKRAY LIMITED,525.00,09/04/2015
Commercial,Customer Support Group,Building Repairs & Maintenance,60015525,OAKRAY LIMITED,476.30,09/04/2015
Commercial,Customer Support Group,Building Repairs & Maintenance,60015541,OAKRAY LIMITED,"1,050.00",09/04/2015
Commercial,Customer Support Group,Building Repairs & Maintenance,60015552,OAKRAY LIMITED,729.75,09/04/2015
Commercial,Customer Support Group,Building Repairs & Maintenance,60015571,OAKRAY LIMITED,528.75,09/04/2015
Commercial,Customer Support Group,Building Repairs & Maintenance,60015573,OAKRAY LIMITED,323.25,09/04/2015
Commercial,Customer Support Group,Building Repairs & Maintenance,60015586,OAKRAY LIMITED,"5,112.00",09/04/2015
Commercial,Customer Support Group,Building Repairs & Maintenance,60015587,OAKRAY LIMITED,978.00,09/04/2015
Commercial,Customer Support Group,Building Repairs & Maintenance,60016467,OAKRAY LIMITED,470.00,10/04/2015
Commercial,Customer Support Group,Building Repairs & Maintenance,60016474,OAKRAY LIMITED,609.00,10/04/2015
Commercial,Customer Support Group,Building Repairs & Maintenance,60016475,OAKRAY LIMITED,609.00,10/04/2015
Commercial,Customer Support Group,Building Repairs & Maintenance,60016479,OAKRAY LIMITED,"1,114.00",10/04/2015
Commercial,Customer Support Group,Building Repairs & Maintenance,60016488,OAKRAY LIMITED,459.00,10/04/2015
Commercial,Customer Support Group,Building Repairs & Maintenance,60016502,OAKRAY LIMITED,"2,523.00",10/04/2015
Commercial,Customer Support Group,Building Repairs & Maintenance,60016522,OAKRAY LIMITED,957.00,10/04/2015
Commercial,Customer Support Group,Building Repairs & Maintenance,60016553,OAKRAY LIMITED,"2,366.00",10/04/2015
Commercial,Customer Support Group,Building Repairs & Maintenance,60016565,OAKRAY LIMITED,"1,218.00",10/04/2015
Commercial,Customer Support Group,Building Repairs & Maintenance,60016570,OAKRAY LIMITED,783.00,10/04/2015
Commercial,Customer Support Group,Building Repairs & Maintenance,60016585,OAKRAY LIMITED,609.00,10/04/2015
Commercial,Customer Support Group,Building Repairs & Maintenance,60016588,OAKRAY LIMITED,"2,001.00",10/04/2015
Commercial,Customer Support Group,Building Repairs & Maintenance,60016593,OAKRAY LIMITED,609.00,10/04/2015
Commercial,Customer Support Group,Building Repairs & Maintenance,60016610,OAKRAY LIMITED,"4,367.00",10/04/2015
Commercial,Customer Support Group,Building Repairs & Maintenance,60016646,OAKRAY LIMITED,341.25,10/04/2015
Commercial,Customer Support Group,Building Repairs & Maintenance,60016680,OAKRAY LIMITED,957.00,10/04/2015
Commercial,Customer Support Group,Building Repairs & Maintenance,60016692,OAKRAY LIMITED,476.25,10/04/2015
Commercial,Customer Support Group,Building Repairs & Maintenance,60016693,OAKRAY LIMITED,"1,618.00",10/04/2015
Commercial,Customer Support Group,Building Repairs & Maintenance,60016694,OAKRAY LIMITED,648.75,10/04/2015
Commercial,Customer Support Group,Building Repairs & Maintenance,60016698,OAKRAY LIMITED,957.00,10/04/2015
Commercial,Customer Support Group,Building Repairs & Maintenance,60016699,OAKRAY LIMITED,469.00,10/04/2015
Commercial,Customer Support Group,Building Repairs & Maintenance,60016458,OAKRAY LIMITED,"1,661.00",15/04/2015
Commercial,Customer Support Group,Building Repairs & Maintenance,60016461,OAKRAY LIMITED,514.50,15/04/2015
Commercial,Customer Support Group,Building Repairs & Maintenance,60016468,OAKRAY LIMITED,481.50,15/04/2015
Commercial,Customer Support Group,Building Repairs & Maintenance,60016477,OAKRAY LIMITED,953.00,15/04/2015
Commercial,Customer Support Group,Building Repairs & Maintenance,60016485,OAKRAY LIMITED,"1,129.00",15/04/2015
Commercial,Customer Support Group,Building Repairs & Maintenance,60016486,OAKRAY LIMITED,888.75,15/04/2015
Commercial,Customer Support Group,Building Repairs & Maintenance,60016487,OAKRAY LIMITED,"1,783.50",15/04/2015
Commercial,Customer Support Group,Building Repairs & Maintenance,60016491,OAKRAY LIMITED,"1,311.78",15/04/2015
Commercial,Customer Support Group,Building Repairs & Maintenance,60016493,OAKRAY LIMITED,"1,792.20",15/04/2015
Commercial,Customer Support Group,Building Repairs & Maintenance,60016494,OAKRAY LIMITED,356.25,15/04/2015
Commercial,Customer Support Group,Building Repairs & Maintenance,60016499,OAKRAY LIMITED,514.56,15/04/2015
Commercial,Customer Support Group,Building Repairs & Maintenance,60016504,OAKRAY LIMITED,"2,453.00",15/04/2015
Commercial,Customer Support Group,Building Repairs & Maintenance,60016505,OAKRAY LIMITED,"1,286.25",15/04/2015
Commercial,Customer Support Group,Building Repairs & Maintenance,60016511,OAKRAY LIMITED,690.00,15/04/2015
Commercial,Customer Support Group,Building Repairs & Maintenance,60016512,OAKRAY LIMITED,289.00,15/04/2015
Commercial,Customer Support Group,Building Repairs & Maintenance,60016515,OAKRAY LIMITED,"1,800.00",15/04/2015
Commercial,Customer Support Group,Building Repairs & Maintenance,60016516,OAKRAY LIMITED,510.00,15/04/2015
Commercial,Customer Support Group,Building Repairs & Maintenance,60016532,OAKRAY LIMITED,"2,600.25",15/04/2015
Commercial,Customer Support Group,Building Repairs & Maintenance,60016541,OAKRAY LIMITED,345.00,15/04/2015
Commercial,Customer Support Group,Building Repairs & Maintenance,60016548,OAKRAY LIMITED,"5,446.00",15/04/2015
Commercial,Customer Support Group,Building Repairs & Maintenance,60016560,OAKRAY LIMITED,798.53,15/04/2015
Commercial,Customer Support Group,Building Repairs & Maintenance,60016564,OAKRAY LIMITED,"2,121.75",15/04/2015
Commercial,Customer Support Group,Building Repairs & Maintenance,60016567,OAKRAY LIMITED,414.00,15/04/2015
Commercial,Customer Support Group,Building Repairs & Maintenance,60016608,OAKRAY LIMITED,347.25,15/04/2015
Commercial,Customer Support Group,Building Repairs & Maintenance,60016614,OAKRAY LIMITED,"4,448.00",15/04/2015
Commercial,Customer Support Group,Building Repairs & Maintenance,60016617,OAKRAY LIMITED,468.75,15/04/2015
Commercial,Customer Support Group,Building Repairs & Maintenance,60016633,OAKRAY LIMITED,518.00,15/04/2015
Commercial,Customer Support Group,Building Repairs & Maintenance,60016634,OAKRAY LIMITED,375.00,15/04/2015
Commercial,Customer Support Group,Building Repairs & Maintenance,60016666,OAKRAY LIMITED,"1,215.75",15/04/2015
Commercial,Customer Support Group,Building Repairs & Maintenance,60016685,OAKRAY LIMITED,744.90,15/04/2015
Commercial,Customer Support Group,Building Repairs & Maintenance,60017296,OAKRAY LIMITED,"1,683.80",16/04/2015
Commercial,Customer Support Group,Building Repairs & Maintenance,60017334,OAKRAY LIMITED,663.38,16/04/2015
Commercial,Customer Support Group,Building Repairs & Maintenance,60016695,OAKRAY LIMITED,402.39,28/04/2015
Commercial,Customer Support Group,Building Repairs & Maintenance,60016704,OAKRAY LIMITED,938.83,28/04/2015
Commercial,Customer Support Group,Building Repairs & Maintenance,60018473,REDHILL ANALYSTS LTD,"1,070.00",10/04/2015
Commercial,Customer Support Group,Building Repairs & Maintenance,60014074,RGE SERVICES,540.82,01/04/2015
Commercial,Customer Support Group,Building Repairs & Maintenance,60014083,RGE SERVICES,392.25,01/04/2015
Commercial,Customer Support Group,Building Repairs & Maintenance,60014096,RGE SERVICES,270.03,01/04/2015
Commercial,Customer Support Group,Building Repairs & Maintenance,60014118,RGE SERVICES,374.21,01/04/2015
Commercial,Customer Support Group,Building Repairs & Maintenance,60014134,RGE SERVICES,480.35,01/04/2015
Commercial,Customer Support Group,Building Repairs & Maintenance,60014418,RGE SERVICES,"2,415.25",01/04/2015
Commercial,Customer Support Group,Building Repairs & Maintenance,60014440,RGE SERVICES,623.20,01/04/2015
Commercial,Customer Support Group,Building Repairs & Maintenance,60014467,RGE SERVICES,"1,768.68",01/04/2015
Commercial,Customer Support Group,Building Repairs & Maintenance,60014543,RGE SERVICES,409.50,01/04/2015
Commercial,Customer Support Group,Building Repairs & Maintenance,60014544,RGE SERVICES,285.00,01/04/2015
Commercial,Customer Support Group,Building Repairs & Maintenance,60014731,RGE SERVICES,435.10,01/04/2015
Commercial,Customer Support Group,Building Repairs & Maintenance,60014778,RGE SERVICES,551.95,01/04/2015
Commercial,Customer Support Group,Building Repairs & Maintenance,60014787,RGE SERVICES,288.70,01/04/2015
Commercial,Customer Support Group,Building Repairs & Maintenance,60014810,RGE SERVICES,498.75,01/04/2015
Commercial,Customer Support Group,Building Repairs & Maintenance,60014888,RGE SERVICES,"1,624.00",01/04/2015
Commercial,Customer Support Group,Building Repairs & Maintenance,60014893,RGE SERVICES,762.85,01/04/2015
Commercial,Customer Support Group,Building Repairs & Maintenance,60015517,RGE SERVICES,400.87,08/04/2015
Commercial,Customer Support Group,Building Repairs & Maintenance,60015399,RGE SERVICES,938.74,09/04/2015
Commercial,Customer Support Group,Building Repairs & Maintenance,60015601,RGE SERVICES,"1,556.10",10/04/2015
Commercial,Customer Support Group,Building Repairs & Maintenance,60015635,RGE SERVICES,"1,083.00",10/04/2015
Commercial,Customer Support Group,Building Repairs & Maintenance,60015690,RGE SERVICES,444.60,10/04/2015
Commercial,Customer Support Group,Building Repairs & Maintenance,60015730,RGE SERVICES,308.75,10/04/2015
Commercial,Customer Support Group,Building Repairs & Maintenance,60015738,RGE SERVICES,599.45,10/04/2015
Commercial,Customer Support Group,Building Repairs & Maintenance,60015900,RGE SERVICES,386.76,10/04/2015
Commercial,Customer Support Group,Building Repairs & Maintenance,60015944,RGE SERVICES,"1,440.46",10/04/2015
Commercial,Customer Support Group,Building Repairs & Maintenance,60010881,RGE SERVICES,358.15,15/04/2015
Commercial,Customer Support Group,Building Repairs & Maintenance,60017291,RGE SERVICES,318.00,22/04/2015
Commercial,Customer Support Group,Building Repairs & Maintenance,60017344,RGE SERVICES,552.67,22/04/2015
Commercial,Customer Support Group,Building Repairs & Maintenance,60017472,RGE SERVICES,467.26,23/04/2015
Commercial,Customer Support Group,Building Repairs & Maintenance,60019815,RGE SERVICES,"2,190.82",30/04/2015
Commercial,Customer Support Group,Building Repairs & Maintenance,60018069,ROMFORD INSULATIONS LTD.,"4,500.00",27/04/2015
Commercial,Customer Support Group,Building Repairs & Maintenance,60013351,S W BRUCE & CO LTD,284.34,01/04/2015
Commercial,Customer Support Group,Building Repairs & Maintenance,60014613,S W BRUCE & CO LTD,"1,897.00",01/04/2015
Commercial,Customer Support Group,Building Repairs & Maintenance,60014645,S W BRUCE & CO LTD,256.33,01/04/2015
Commercial,Customer Support Group,Building Repairs & Maintenance,60014647,S W BRUCE & CO LTD,"1,407.00",01/04/2015
Commercial,Customer Support Group,Building Repairs & Maintenance,60014695,S W BRUCE & CO LTD,"2,205.70",01/04/2015
Commercial,Customer Support Group,Building Repairs & Maintenance,60014725,S W BRUCE & CO LTD,552.00,01/04/2015
Commercial,Customer Support Group,Building Repairs & Maintenance,60014904,S W BRUCE & CO LTD,587.60,01/04/2015
Commercial,Customer Support Group,Building Repairs & Maintenance,60009734,S W BRUCE & CO LTD,484.56,10/04/2015
Commercial,Customer Support Group,Building Repairs & Maintenance,60017498,S W BRUCE & CO LTD,400.00,23/04/2015
Commercial,Customer Support Group,Building Repairs & Maintenance,60018160,S W BRUCE & CO LTD,"4,760.00",27/04/2015
Commercial,Customer Support Group,Building Repairs & Maintenance,60017976,ST ANDREWS PAROCHIAL CHURCH COUNCIL,"3,360.00",10/04/2015
Commercial,Customer Support Group,Cleaning and domestic material,60017930,CHURCHILL CONTRACT SERVICES,640.00,08/04/2015
Commercial,Customer Support Group,Cleaning and domestic material,60018018,CHURCHILL CONTRACT SERVICES,640.00,08/04/2015
Commercial,Customer Support Group,Cleaning and domestic material,60018687,CHURCHILL CONTRACT SERVICES,640.00,13/04/2015
Commercial,Customer Support Group,Cleaning and domestic material,60019374,CHURCHILL CONTRACT SERVICES,640.00,24/04/2015
Commercial,Customer Support Group,Cleaning and domestic material,60019457,CHURCHILL CONTRACT SERVICES,640.00,24/04/2015
Commercial,Customer Support Group,Cleaning and domestic material,60018816,CHURCHILL CONTRACT SERVICES,580.00,27/04/2015
Commercial,Customer Support Group,Cleaning and domestic material,60019345,CHURCHILL CONTRACT SERVICES,640.00,27/04/2015
Commercial,Customer Support Group,Cleaning and domestic material,60018279,HERTFORDSHIRE COUNTY COUNCIL,804.65,09/04/2015
Commercial,Customer Support Group,Cleaning and domestic material,60018315,HERTFORDSHIRE COUNTY COUNCIL,"1,201.90",09/04/2015
Commercial,Customer Support Group,Consultants Fees,20018975,ARLINGCLOSE LTD,"26,500.00",10/04/2015
Commercial,Customer Support Group,Consultants Fees,60019440,MOBILISE PUBLIC LTD,"7,175.00",24/04/2015
Commercial,Customer Support Group,CSG Services Contract Payment,60017798,CAPITA BUSINESS SERVICES LTD,"1,141,670.72",13/04/2015
Commercial,Customer Support Group,CSG Services Contract Payment,60017801,CAPITA BUSINESS SERVICES LTD,"75,005.20",13/04/2015
Commercial,Customer Support Group,CSG Services Contract Payment,60017831,CAPITA BUSINESS SERVICES LTD,"14,466.70",13/04/2015
Commercial,Customer Support Group,CSG Services Contract Payment,60017882,CAPITA BUSINESS SERVICES LTD,"78,908.00",13/04/2015
Commercial,Customer Support Group,CSG Services Contract Payment,10012199,CAPITA BUSINESS SERVICES LTD,"200,000.00",16/04/2015
Commercial,Customer Support Group,CSG Services Contract Payment,60017860,CAPITA BUSINESS SERVICES LTD,"17,009.60",22/04/2015
Commercial,Customer Support Group,Electricity,60014023,KENT COUNTY COUNCIL (KCS),550.85,01/04/2015
Commercial,Customer Support Group,Electricity,60014133,KENT COUNTY COUNCIL (KCS),533.53,01/04/2015
Commercial,Customer Support Group,Electricity,60014175,KENT COUNTY COUNCIL (KCS),387.79,01/04/2015
Commercial,Customer Support Group,Electricity,60014176,KENT COUNTY COUNCIL (KCS),260.14,01/04/2015
Commercial,Customer Support Group,Electricity,60016403,KENT COUNTY COUNCIL (KCS),"71,713.02",01/04/2015
Commercial,Customer Support Group,Electricity,60017408,KENT COUNTY COUNCIL (KCS),"8,146.53",01/04/2015
Commercial,Customer Support Group,Electricity,60017439,KENT COUNTY COUNCIL (KCS),"5,614.32",01/04/2015
Commercial,Customer Support Group,Electricity,60017362,KENT COUNTY COUNCIL (KCS),615.51,07/04/2015
Commercial,Customer Support Group,Electricity,60017275,KENT COUNTY COUNCIL (KCS),"1,159.89",08/04/2015
Commercial,Customer Support Group,Electricity,60017421,KENT COUNTY COUNCIL (KCS),"3,989.66",08/04/2015
Commercial,Customer Support Group,Electricity,60019054,KENT COUNTY COUNCIL (KCS),"77,525.37",28/04/2015
Commercial,Customer Support Group,Electricity,60019418,KENT COUNTY COUNCIL (KCS),"8,253.82",28/04/2015
Commercial,Customer Support Group,Equipment and Materials Purcha,20019205,CONNECT VENDING LIMITED,273.01,15/04/2015
Commercial,Customer Support Group,Equipment and Materials Purcha,60018548,DAY PLANT HIRE CO LIMITED,322.00,13/04/2015
Commercial,Customer Support Group,Equipment and Materials Purcha,60018579,DAY PLANT HIRE CO LIMITED,517.26,13/04/2015
Commercial,Customer Support Group,Equipment and Materials Purcha,60014820,SM ELECTRICAL SERVICES,292.50,01/04/2015
Commercial,Customer Support Group,Gas,60017376,KENT COUNTY COUNCIL (KCS),"14,222.17",01/04/2015
Commercial,Customer Support Group,Gas,60017422,KENT COUNTY COUNCIL (KCS),"1,137.82",01/04/2015
Commercial,Customer Support Group,Gas,60019349,KENT COUNTY COUNCIL (KCS),"13,464.20",30/04/2015
Commercial,Customer Support Group,Gas,60019355,KENT COUNTY COUNCIL (KCS),"1,056.46",30/04/2015
Commercial,Customer Support Group,Gas,60019392,KENT COUNTY COUNCIL (KCS),"7,637.53",30/04/2015
Commercial,Customer Support Group,General Office Expenses,20019480,REDACTED - PERSONAL DATA,250.00,23/04/2015
Commercial,Customer Support Group,Grounds maintenance,60019014,THE HONEYWAGON CO.,523.25,22/04/2015
Commercial,Customer Support Group,Insurance-Premises,60017123,MIDDLESEX UNIVERSITY,680.81,07/04/2015
Commercial,Customer Support Group,Insurance-Premises,60019269,MIDDLESEX UNIVERSITY,680.81,28/04/2015
Commercial,Customer Support Group,Insurance-Premises,60019315,MIDDLESEX UNIVERSITY,"1,873.38",28/04/2015
Commercial,Customer Support Group,Operational Leases - Equipment,60017473,XEROX FINANCE LTD,"4,826.01",01/04/2015
Commercial,Customer Support Group,Other Services,60018612,BLUE 9 SECURITY LIMITED,"2,242.50",13/04/2015
Commercial,Customer Support Group,Other Services,60018615,BLUE 9 SECURITY LIMITED,"21,204.00",13/04/2015
Commercial,Customer Support Group,Other Services,60018656,BLUE 9 SECURITY LIMITED,986.00,13/04/2015
Commercial,Customer Support Group,Other Services,60018682,BLUE 9 SECURITY LIMITED,"15,996.50",13/04/2015
Commercial,Customer Support Group,Other Services,60014576,S W BRUCE & CO LTD,506.32,01/04/2015
Commercial,Customer Support Group,Postage,10012168,ROYAL MAIL GROUP LIMITED,"8,977.44",08/04/2015
Commercial,Customer Support Group,Postage,60016503,ROYAL MAIL GROUP LIMITED,"12,602.87",16/04/2015
Commercial,Customer Support Group,Postage,60017090,ROYAL MAIL GROUP LIMITED,"8,298.37",16/04/2015
Commercial,Customer Support Group,Postage,20019341,ROYAL MAIL GROUP LIMITED,"2,319.66",20/04/2015
Commercial,Customer Support Group,Postage,20019342,ROYAL MAIL GROUP LIMITED,331.38,20/04/2015
Commercial,Customer Support Group,Postage,20019343,ROYAL MAIL GROUP LIMITED,331.38,20/04/2015
Commercial,Customer Support Group,Postage,20019344,ROYAL MAIL GROUP LIMITED,331.38,20/04/2015
Commercial,Customer Support Group,Postage,60018937,ROYAL MAIL GROUP LIMITED,"11,126.26",20/04/2015
Commercial,Customer Support Group,Postage,60019048,ROYAL MAIL GROUP LIMITED,"17,035.70",20/04/2015
Commercial,Customer Support Group,Professional Services,60004560,ADAMS ENVIRONMENTAL LTD,450.00,10/04/2015
Commercial,Customer Support Group,Professional Services,60018229,ADAMS ENVIRONMENTAL LTD,450.00,23/04/2015
Commercial,Customer Support Group,Rents,60017370,MIDDLESEX UNIVERSITY,"79,125.00",01/04/2015
Commercial,Customer Support Group,Rents,60017414,MIDDLESEX UNIVERSITY,"39,414.16",01/04/2015
Commercial,Customer Support Group,Rents,60019340,MIDDLESEX UNIVERSITY,"179,561.90",27/04/2015
Commercial,Customer Support Group,Rubbish Collection,60018833,G.B.HOLDINGS LTD,273.75,17/04/2015
Commercial,Customer Support Group,Rubbish Collection,60018739,G.B.HOLDINGS LTD,338.70,20/04/2015
Commercial,Customer Support Group,Service Charges,60017273,MIDDLESEX UNIVERSITY,"9,897.12",01/04/2015
Commercial,Customer Support Group,Service Charges,60017379,MIDDLESEX UNIVERSITY,"69,627.99",01/04/2015
Commercial,Customer Support Group,Service Charges,60017428,MIDDLESEX UNIVERSITY,"10,859.37",01/04/2015
Commercial,Customer Support Group,Service Charges,60017433,MIDDLESEX UNIVERSITY,"8,434.50",01/04/2015
Commercial,Customer Support Group,Water Services,60018746,ANGEL SPRINGS LTD,288.00,17/04/2015
Commercial,HB LAW,Legal and Court Fees,60014411,LONDON BOROUGH OF HARROW,"3,824.52",29/04/2015
Commercial,HB LAW,Legal Disbursements,10012159,LONDON BOROUGH OF HARROW,"123,512.71",07/04/2015
Commercial,HB LAW,Legal Disbursements,10012160,LONDON BOROUGH OF HARROW,-885.60,07/04/2015
Commercial,HB LAW,Legal Disbursements,60015145,LONDON BOROUGH OF HARROW,"119,117.77",07/04/2015
Commercial,HRA,Consultants Fees,20018884,DEBENHAMS OTTAWAY SOLICITORS,"2,500.00",07/04/2015
Commercial,HRA,Consultants Fees,60016746,P P C R ASSOCIATES LTD,"1,877.42",08/04/2015
Commercial,HRA,Consultants Fees,60016854,P P C R ASSOCIATES LTD,"1,749.07",16/04/2015
Commercial,HRA,Consultants Fees,60019113,P P C R ASSOCIATES LTD,"2,140.10",20/04/2015
Commercial,HRA,Consultants Fees,60012845,PRIORITY ESTATES PROJECT LTD,"2,305.05",07/04/2015
Commercial,HRA,Consultants Fees,60012879,PRIORITY ESTATES PROJECT LTD,989.89,07/04/2015
Commercial,HRA,Consultants Fees,60016396,PRIORITY ESTATES PROJECT LTD,"2,095.50",08/04/2015
Commercial,HRA,Consultants Fees,60010517,PRIORITY ESTATES PROJECT LTD,"1,955.80",09/04/2015
Commercial,HRA,Consultants Fees,60010550,PRIORITY ESTATES PROJECT LTD,698.50,09/04/2015
Commercial,HRA,Consultants Fees,60016332,PRIORITY ESTATES PROJECT LTD,"2,339.98",09/04/2015
Commercial,HRA,Consultants Fees,60016425,PRIORITY ESTATES PROJECT LTD,734.71,09/04/2015
Commercial,HRA,Consultants Fees,60016393,PRIORITY ESTATES PROJECT LTD,838.20,10/04/2015
Commercial,HRA,Consultants Fees,60012883,PRIORITY ESTATES PROJECT LTD,"2,263.50",14/04/2015
Commercial,HRA,Consultants Fees,60012889,PRIORITY ESTATES PROJECT LTD,"1,397.00",14/04/2015
Commercial,HRA,Consultants Fees,60016437,PRIORITY ESTATES PROJECT LTD,663.57,14/04/2015
Commercial,HRA,Consultants Fees,60016934,STRATEGIC URBAN FUTURES LIMITED,759.95,08/04/2015
Commercial,HRA,Consultants Fees,60016959,STRATEGIC URBAN FUTURES LIMITED,506.64,08/04/2015
Commercial,HRA,Consultants Fees,60017540,STRATEGIC URBAN FUTURES LIMITED,533.30,16/04/2015
Commercial,HRA,Consultants Fees,60019250,STRATEGIC URBAN FUTURES LIMITED,373.31,28/04/2015
Commercial,HRA,Consultants Fees,60014675,THE BARNETGROUP LIMITED,"1,368.17",01/04/2015
Commercial,HRA,Consultants Fees,60018098,THE BARNETGROUP LIMITED,"10,855.50",08/04/2015
Commercial,HRA,Consultants Fees,60018962,THE BARNETGROUP LIMITED,"20,275.00",20/04/2015
Commercial,HRA,Consultants Fees,60019105,THE BARNETGROUP LIMITED,"1,106.18",21/04/2015
Commercial,HRA,Consultants Fees,60019107,THE BARNETGROUP LIMITED,902.41,21/04/2015
Commercial,HRA,Consultants Fees,60019320,THE BARNETGROUP LIMITED,"157,521.95",23/04/2015
Commercial,HRA,Consultants Fees,60019797,THE BARNETGROUP LIMITED,"20,394.00",30/04/2015
Commercial,HRA,Consultants Fees,60014631,VALUATION OFFICE AGENCY,"3,999.29",01/04/2015
Commercial,HRA,Other Services,60017835,THE BARNETGROUP LIMITED,"59,952.95",08/04/2015
Commercial,HRA,Other Services,60017909,THE BARNETGROUP LIMITED,"109,156.34",08/04/2015
Commercial,HRA,Water Services,60017941,AFFINITY WATER LIMITED,996.89,10/04/2015
Commercial,HRA,Water Services,60017964,AFFINITY WATER LIMITED,"1,039.60",10/04/2015
Commercial,Parking & Infrastructure,Equipment and Materials Purcha,60017132,COBURN SERVICES LTD,440.80,08/04/2015
Commercial,Parking & Infrastructure,Equipment and Materials Purcha,60017250,COBURN SERVICES LTD,"1,113.00",09/04/2015
Commercial,Parking & Infrastructure,Equipment and Materials Purcha,60017138,COBURN SERVICES LTD,"1,113.00",14/04/2015
Commercial,Parking & Infrastructure,Equipment and Materials Purcha,60017911,COBURN SERVICES LTD,"1,113.00",22/04/2015
Commercial,Parking & Infrastructure,Equipment and Materials Purcha,60019181,COBURN SERVICES LTD,"1,113.00",22/04/2015
Commercial,Parking & Infrastructure,Equipment and Materials Purcha,60016476,FABRIKAT (NOTTINGHAM) LIMITED,"1,555.60",14/04/2015
Commercial,Parking & Infrastructure,Equipment and Materials Purcha,60010361,GREENHAM TRADING LIMITED,314.90,30/04/2015
Commercial,Parking & Infrastructure,Equipment and Materials Purcha,60011140,GREENHAM TRADING LIMITED,"1,827.84",30/04/2015
Commercial,Parking & Infrastructure,Equipment and Materials Purcha,60011162,GREENHAM TRADING LIMITED,464.52,30/04/2015
Commercial,Parking & Infrastructure,Equipment and Materials Purcha,60014248,W. FAYERS & SONS,568.22,07/04/2015
Commercial,Parking & Infrastructure,Equipment and Materials Purcha,60015915,W. FAYERS & SONS,284.11,07/04/2015
Commercial,Parking & Infrastructure,Equipment and Materials Purcha,60018517,WM SMITH & SONS LIMITED,"1,008.74",10/04/2015
Commercial,Parking & Infrastructure,Miscellaneous Expenses,60011936,LONDON COUNCILS,"10,689.00",15/04/2015
Commercial,Parking & Infrastructure,Other Services,60017774,BARNET LIGHTING SERVICES LTD,"505,668.09",08/04/2015
Commercial,Parking & Infrastructure,Other Services,60019138,LONDON COUNCILS,"42,991.96",24/04/2015
Commercial,Parking & Infrastructure,Other Services,60019042,NSL LTD,714.30,22/04/2015
Commercial,Parking & Infrastructure,Other Services,60019070,NSL LTD,"33,671.17",22/04/2015
Commercial,Parking & Infrastructure,Other Services,60013900,PARKEON LIMITED,"2,319.76",01/04/2015
Commercial,Parking & Infrastructure,Other Services,60016923,PARKEON LIMITED,"2,157.28",14/04/2015
Commercial,Parking & Infrastructure,Other Services,60016967,PARKEON LIMITED,796.50,14/04/2015
Commercial,Parking & Infrastructure,Professional Services,60017962,NSL LTD,"12,345.97",13/04/2015
Commercial,Parking & Infrastructure,Professional Services,60018134,NSL LTD,"216,742.14",13/04/2015
Commercial,Parking & Infrastructure,Software Licences & Support,60015869,NSL LTD,"4,405.21",13/04/2015
Commercial,Parking & Infrastructure,Software Licences & Support,60019056,NSL LTD,"4,339.72",22/04/2015
Commercial,Parking & Infrastructure,Software Licences & Support,60019235,NSL LTD,"19,782.00",27/04/2015
Commercial,Parking & Infrastructure,Training,60018094,PREMIER PEOPLE SOLUTIONS LTD,715.00,28/04/2015
Commercial,Parking & Infrastructure,Vehicles and Plant Purchase,60019294,LONDON COUNCILS,"1,749.63",24/04/2015
Commercial,Regional Enterprise,Consultants Fees,60017010,EVERSHEDS LLP,"36,401.36",08/04/2015
Commercial,Regional Enterprise,Consultants Fees,60017040,EVERSHEDS LLP,"28,554.55",08/04/2015
Commercial,Regional Enterprise,Consultants Fees,60019102,GVA GRIMLEY LTD,"7,800.00",21/04/2015
Commercial,Regional Enterprise,Consultants Fees,60019126,GVA GRIMLEY LTD,"4,380.00",21/04/2015
Commercial,Regional Enterprise,Consultants Fees,60018043,NORTH LONDON ESTATE PARTNERSHIPS LTD,"22,681.75",15/04/2015
Commercial,Regional Enterprise,Consultants Fees,60012812,PRIORITY ESTATES PROJECT LTD,"3,248.02",29/04/2015
Commercial,Regional Enterprise,Consultants Fees,60018753,RETAIL REVIVAL LTD,600.00,20/04/2015
Commercial,Regional Enterprise,Consultants Fees,60015485,WRAGGE LAWRENCE GRAHAM & CO LLP,"75,000.00",01/04/2015
Commercial,Regional Enterprise,Consultants Fees,60019099,WRAGGE LAWRENCE GRAHAM & CO LLP,"75,000.00",20/04/2015
Commercial,Regional Enterprise,Grant Payments,20019657,AMWELL CONSTRUCTION LTD,"2,334.95",28/04/2015
Commercial,Regional Enterprise,Grant Payments,20019577,DP BUILDERS DISABLED ADAPTATIONS,316.80,27/04/2015
Commercial,Regional Enterprise,Grant Payments,20019576,REDACTED - PERSONAL DATA,"3,433.50",27/04/2015
Commercial,Regional Enterprise,Grant Payments,20019580,REDACTED - PERSONAL DATA,"4,416.00",27/04/2015
Commercial,Regional Enterprise,Grant Payments,20019581,REDACTED - PERSONAL DATA,"4,641.00",27/04/2015
Commercial,Regional Enterprise,Legal and Court Fees,20019113,WILLIAM HILL ORGANISATION,"4,000.00",10/04/2015
Commercial,Regional Enterprise,Other Establishments - Third P,20019134,TFL,"1,153,993.54",13/04/2015
Commercial,Regional Enterprise,Other Services,10005777,CITY SUBURBAN TREE SURGEONS LTD,"1,017.50",01/04/2015
Commercial,Regional Enterprise,Other Services,60014181,CONWAY AECOM LTD,"9,814.72",01/04/2015
Commercial,Regional Enterprise,Other Services,60014304,CONWAY AECOM LTD,"5,016.70",01/04/2015
Commercial,Regional Enterprise,Other Services,60014760,CONWAY AECOM LTD,712.13,01/04/2015
Commercial,Regional Enterprise,Other Services,60016155,CONWAY AECOM LTD,"64,834.34",08/04/2015
Commercial,Regional Enterprise,Other Services,60016164,CONWAY AECOM LTD,"1,044.45",09/04/2015
Commercial,Regional Enterprise,Other Services,60016181,CONWAY AECOM LTD,436.77,09/04/2015
Commercial,Regional Enterprise,Other Services,60016188,CONWAY AECOM LTD,455.76,09/04/2015
Commercial,Regional Enterprise,Other Services,60016193,CONWAY AECOM LTD,873.54,09/04/2015
Commercial,Regional Enterprise,Other Services,60016196,CONWAY AECOM LTD,797.58,09/04/2015
Commercial,Regional Enterprise,Other Services,60016217,CONWAY AECOM LTD,721.62,09/04/2015
Commercial,Regional Enterprise,Other Services,60016243,CONWAY AECOM LTD,759.60,09/04/2015
Commercial,Regional Enterprise,Other Services,60016296,CONWAY AECOM LTD,974.82,09/04/2015
Commercial,Regional Enterprise,Other Services,60016300,CONWAY AECOM LTD,607.50,09/04/2015
Commercial,Regional Enterprise,Other Services,60016310,CONWAY AECOM LTD,455.76,09/04/2015
Commercial,Regional Enterprise,Other Services,60016333,CONWAY AECOM LTD,"1,462.23",09/04/2015
Commercial,Regional Enterprise,Other Services,60016205,CONWAY AECOM LTD,"1,380.00",10/04/2015
Commercial,Regional Enterprise,Other Services,60016318,CONWAY AECOM LTD,"1,080.00",10/04/2015
Commercial,Regional Enterprise,Other Services,60016355,CONWAY AECOM LTD,900.00,10/04/2015
Commercial,Regional Enterprise,Other Services,60016364,CONWAY AECOM LTD,750.00,10/04/2015
Commercial,Regional Enterprise,Other Services,60016439,CONWAY AECOM LTD,"25,607.64",10/04/2015
Commercial,Regional Enterprise,Other Services,60016450,CONWAY AECOM LTD,"1,485.00",10/04/2015
Commercial,Regional Enterprise,Other Services,60016452,CONWAY AECOM LTD,720.00,10/04/2015
Commercial,Regional Enterprise,Other Services,60016201,CONWAY AECOM LTD,"3,902.66",16/04/2015
Commercial,Regional Enterprise,Other Services,60016279,CONWAY AECOM LTD,"1,068.50",16/04/2015
Commercial,Regional Enterprise,Other Services,60018253,CONWAY AECOM LTD,"65,267.34",20/04/2015
Commercial,Regional Enterprise,Other Services,60018230,CONWAY AECOM LTD,"2,310.70",23/04/2015
Commercial,Regional Enterprise,Other Services,60018334,CONWAY AECOM LTD,"2,454.71",23/04/2015
Commercial,Regional Enterprise,Other Services,60018834,CONWAY AECOM LTD,"1,434.36",23/04/2015
Commercial,Regional Enterprise,Other Services,60018851,CONWAY AECOM LTD,"1,459.54",23/04/2015
Commercial,Regional Enterprise,Other Services,60018934,CONWAY AECOM LTD,"15,442.00",27/04/2015
Commercial,Regional Enterprise,Other Services,60018995,CONWAY AECOM LTD,"8,741.20",27/04/2015
Commercial,Regional Enterprise,Other Services,60018956,CONWAY AECOM LTD,"9,000.00",28/04/2015
Commercial,Regional Enterprise,Other Services,60019487,CONWAY AECOM LTD,582.36,29/04/2015
Commercial,Regional Enterprise,Other Services,60019495,CONWAY AECOM LTD,617.18,29/04/2015
Commercial,Regional Enterprise,Other Services,60019502,CONWAY AECOM LTD,"1,215.36",29/04/2015
Commercial,Regional Enterprise,Other Services,60019513,CONWAY AECOM LTD,"1,443.24",29/04/2015
Commercial,Regional Enterprise,Other Services,60019520,CONWAY AECOM LTD,936.84,29/04/2015
Commercial,Regional Enterprise,Other Services,60019523,CONWAY AECOM LTD,780.70,29/04/2015
Commercial,Regional Enterprise,Other Services,60019524,CONWAY AECOM LTD,759.60,29/04/2015
Commercial,Regional Enterprise,Other Services,60019526,CONWAY AECOM LTD,506.40,29/04/2015
Commercial,Regional Enterprise,Other Services,60019527,CONWAY AECOM LTD,538.05,29/04/2015
Commercial,Regional Enterprise,Other Services,60019530,CONWAY AECOM LTD,683.64,29/04/2015
Commercial,Regional Enterprise,Other Services,60019535,CONWAY AECOM LTD,506.40,29/04/2015
Commercial,Regional Enterprise,Other Services,60019556,CONWAY AECOM LTD,"1,076.10",29/04/2015
Commercial,Regional Enterprise,Other Services,60019562,CONWAY AECOM LTD,680.48,29/04/2015
Commercial,Regional Enterprise,Other Services,60019569,CONWAY AECOM LTD,506.40,29/04/2015
Commercial,Regional Enterprise,Other Services,60019573,CONWAY AECOM LTD,797.58,29/04/2015
Commercial,Regional Enterprise,Other Services,60019580,CONWAY AECOM LTD,759.60,29/04/2015
Commercial,Regional Enterprise,Other Services,60019585,CONWAY AECOM LTD,"1,164.72",29/04/2015
Commercial,Regional Enterprise,Other Services,60019596,CONWAY AECOM LTD,775.43,29/04/2015
Commercial,Regional Enterprise,Other Services,60018417,E-ON ENERGY,440.06,10/04/2015
Commercial,Regional Enterprise,Other Transfer Payments,60011996,WATES LIVING SPACE,"40,896.28",23/04/2015
Commercial,Regional Enterprise,Professional Services,10012158,RE (REGIONAL ENTERPRISE) LIMITED,"702,317.00",02/04/2015
Commercial,Regional Enterprise,Professional Services,10012207,RE (REGIONAL ENTERPRISE) LIMITED,"3,813,265.00",21/04/2015
Commercial,Regional Enterprise,Professional Services,60017996,RE (REGIONAL ENTERPRISE) LIMITED,"10,272.35",28/04/2015
Commercial,Regional Enterprise,RE Services Contract Payment,10012091,RE (REGIONAL ENTERPRISE) LIMITED,"10,200.00",07/04/2015
Commercial,Regional Enterprise,RE Services Contract Payment,10012184,RE (REGIONAL ENTERPRISE) LIMITED,"-7,000.00",21/04/2015
Commercial,Regional Enterprise,RE Services Contract Payment,60018128,RE (REGIONAL ENTERPRISE) LIMITED,"1,916.67",21/04/2015
Commercial,Regional Enterprise,RE Services Contract Payment,60017843,RE (REGIONAL ENTERPRISE) LIMITED,"18,000.00",23/04/2015
Commercial,Regional Enterprise,RE Services Contract Payment,60018285,RE (REGIONAL ENTERPRISE) LIMITED,"94,865.92",28/04/2015
Commercial,The Barnet Group,Consultants Fees,60018071,THE BARNETGROUP LIMITED,"28,149.28",08/04/2015
Commissioning,Commissioning,Advertising,60018212,BARNARD &  WESTWOOD LTD,261.28,09/04/2015
Commissioning,Commissioning,Advertising,60016769,LONDON LETTERBOX MARKETING,"6,682.50",01/04/2015
Commissioning,Commissioning,Building Repairs & Maintenance,60016321,ADAMS ENVIRONMENTAL LTD,350.00,13/04/2015
Commissioning,Commissioning,Building Repairs & Maintenance,60018501,AFFINITY WATER LIMITED,"1,828.98",10/04/2015
Commissioning,Commissioning,Building Repairs & Maintenance,60016363,LIFT & ENGINEERING SERVICES LTD,297.00,13/04/2015
Commissioning,Commissioning,Building Repairs & Maintenance,60016442,LIFT & ENGINEERING SERVICES LTD,271.00,13/04/2015
Commissioning,Commissioning,Building Repairs & Maintenance,60016453,LIFT & ENGINEERING SERVICES LTD,296.00,13/04/2015
Commissioning,Commissioning,Building Repairs & Maintenance,60015483,OAKRAY LIMITED,"1,943.33",01/04/2015
Commissioning,Commissioning,Building Repairs & Maintenance,60015371,OAKRAY LIMITED,832.10,07/04/2015
Commissioning,Commissioning,Building Repairs & Maintenance,60014071,RGE SERVICES,552.67,01/04/2015
Commissioning,Commissioning,Building Repairs & Maintenance,60017460,RGE SERVICES,534.08,01/04/2015
Commissioning,Commissioning,Building Repairs & Maintenance,60015566,RGE SERVICES,682.58,08/04/2015
Commissioning,Commissioning,Building Repairs & Maintenance,60015893,RGE SERVICES,"1,197.80",10/04/2015
Commissioning,Commissioning,Building Repairs & Maintenance,60015920,RGE SERVICES,267.59,10/04/2015
Commissioning,Commissioning,Building Repairs & Maintenance,60014597,S W BRUCE & CO LTD,368.00,01/04/2015
Commissioning,Commissioning,Capital Construction and Works,60015425,OAKRAY LIMITED,"1,058.45",01/04/2015
Commissioning,Commissioning,Capital Construction and Works,60015563,RGE SERVICES,"14,410.67",07/04/2015
Commissioning,Commissioning,Capital Construction and Works,60014699,S W BRUCE & CO LTD,401.02,01/04/2015
Commissioning,Commissioning,Capital Construction and Works,60015047,S W BRUCE & CO LTD,"1,035.00",01/04/2015
Commissioning,Commissioning,Conference Expenses,20019615,KIRKLEES COUNCIL,265.00,28/04/2015
Commissioning,Commissioning,Conference Expenses,20019351,REDACTIVE EVENTS LTD,"1,698.00",21/04/2015
Commissioning,Commissioning,Consultants Fees,60019058,COPPER CONSULTING LTD,"9,250.00",21/04/2015
Commissioning,Commissioning,Consultants Fees,60019071,COPPER CONSULTING LTD,"8,125.00",21/04/2015
Commissioning,Commissioning,Consultants Fees,20019389,CORNERSTONE PROPERTY ASSETS LTD,950.00,28/04/2015
Commissioning,Commissioning,Consultants Fees,60015614,MURPHY SURVEYS LIMITED,"1,755.00",27/04/2015
Commissioning,Commissioning,Consultants Fees,60017839,OPINION RESEARCH SERVICES,"25,183.00",08/04/2015
Commissioning,Commissioning,Consultants Fees,60019057,P A CONSULTING SERVICES LTD,"19,030.00",22/04/2015
Commissioning,Commissioning,Consultants Fees,60018475,QUALITY FIELDWORK & RESEARCH,500.00,10/04/2015
Commissioning,Commissioning,Consultants Fees,60013483,QUALITY FIELDWORK & RESEARCH,"5,942.10",29/04/2015
Commissioning,Commissioning,Consultants Fees,60017005,QUALITY FIELDWORK & RESEARCH,"4,941.43",29/04/2015
Commissioning,Commissioning,Consultants Fees,60017018,QUALITY FIELDWORK & RESEARCH,902.73,29/04/2015
Commissioning,Commissioning,Consultants Fees,60017043,QUALITY FIELDWORK & RESEARCH,570.00,29/04/2015
Commissioning,Commissioning,Consultants Fees,60017061,QUALITY FIELDWORK & RESEARCH,345.00,29/04/2015
Commissioning,Commissioning,Consultants Fees,60010974,REDHILL ANALYSTS LTD,"2,912.00",23/04/2015
Commissioning,Commissioning,Consultants Fees,60019490,RESEARCH FOR TODAY,"3,400.00",29/04/2015
Commissioning,Commissioning,Discretionary awards,20018978,BARNET WAR MEMORIAL ASSOCIATION,"1,500.00",10/04/2015
Commissioning,Commissioning,Discretionary awards,20018974,FRIENDS OF FRIARY PARK,"3,675.00",09/04/2015
Commissioning,Commissioning,Discretionary awards,20018823,FRIENDS OF WINDSOR OPEN SPACE,"4,500.00",07/04/2015
Commissioning,Commissioning,Discretionary awards,20019020,GRAHAM PARK INDEPENDENT LIVING,"4,000.00",10/04/2015
Commissioning,Commissioning,Discretionary awards,20018952,LONG LANE PASTURE TRUST,"5,000.00",09/04/2015
Commissioning,Commissioning,Employee Expenses,60005495,BACK CARE SOLUTIONS LIMITED,707.00,16/04/2015
Commissioning,Commissioning,Employee Expenses,60017001,GATENBY SANDERSON,"3,000.00",07/04/2015
Commissioning,Commissioning,Employee Expenses,60017029,GATENBY SANDERSON,"4,800.00",07/04/2015
Commissioning,Commissioning,Employee Expenses,60017055,GATENBY SANDERSON,"1,947.20",07/04/2015
Commissioning,Commissioning,Employee Expenses,60018455,GATENBY SANDERSON,"7,100.00",10/04/2015
Commissioning,Commissioning,Employee Expenses,60018499,GATENBY SANDERSON,"5,500.00",10/04/2015
Commissioning,Commissioning,Employee Expenses,60017085,GATENBY SANDERSON,"3,330.60",16/04/2015
Commissioning,Commissioning,Employee Expenses,60017092,GATENBY SANDERSON,"2,050.16",16/04/2015
Commissioning,Commissioning,Equipment and Materials Purcha,60019076,BARNET & SOUTHGATE COLLEGE,"1,875.00",17/04/2015
Commissioning,Commissioning,Equipment and Materials Purcha,60013232,HD PRODUCTION LTD,"10,187.00",08/04/2015
Commissioning,Commissioning,Equipment and Materials Purcha,60015455,HERMOLIS & CO LTD,"9,896.00",29/04/2015
Commissioning,Commissioning,Grant Payments,20019062,AVENUE HOUSE ESTATE TRUST,"20,833.25",15/04/2015
Commissioning,Commissioning,Grant Payments,20019515,COMMUNITY FOCUS,"17,100.00",24/04/2015
Commissioning,Commissioning,Grant Payments,20019132,HENDON GROVE ALLOTMENT SOCIETY,"1,416.00",13/04/2015
Commissioning,Commissioning,Grant Payments,20018880,OYA,"7,407.00",08/04/2015
Commissioning,Commissioning,Other Agencies - Third Party P,60015784,FAMILY FUND TRADING LTD,"3,283.34",20/04/2015
Commissioning,Commissioning,Other Agencies - Third Party P,60017219,FAMILY FUND TRADING LTD,"4,037.50",20/04/2015
Commissioning,Commissioning,Other Indirect Employee Expens,20019394,MAYOR OF BARNET'S CHARITY APPEAL,260.00,21/04/2015
Commissioning,Commissioning,Other Services,60019391,IMPOWER CONSULTING LIMITED,"6,894.00",27/04/2015
Commissioning,Commissioning,Other Services,60019446,IMPOWER CONSULTING LIMITED,"10,000.00",28/04/2015
Commissioning,Commissioning,Professional Services,60018082,FAMILY FUND TRADING LTD,"4,750.00",08/04/2015
Commissioning,Commissioning,Professional Services,10012129,GENERAL DYNAMICS INFORMATION TECHNOLOGY,"4,024.64",09/04/2015
Commissioning,Commissioning,Professional Services,60014445,LONDON BOROUGH OF EALING,"5,934.00",22/04/2015
Commissioning,Commissioning,Professional Services,60016918,OFFICE FOR PUBLIC MANAGEMENT,480.00,16/04/2015
Commissioning,Commissioning,Professional Services,60016933,OFFICE FOR PUBLIC MANAGEMENT,"14,271.95",16/04/2015
Commissioning,Commissioning,Professional Services,60019103,QUALITY FIELDWORK & RESEARCH,250.00,20/04/2015
Commissioning,Commissioning,Publications,60010658,HD PRODUCTION LTD,"8,379.00",01/04/2015
Commissioning,Commissioning,Publications,60013237,HD PRODUCTION LTD,410.00,08/04/2015
Commissioning,Commissioning,Publications,60017910,REDACTED - PERSONAL DATA,775.00,08/04/2015
Commissioning,Commissioning,Publications,60017878,REDACTED - PERSONAL DATA,300.00,09/04/2015
Commissioning,Commissioning,Publications,60018113,REDACTED - PERSONAL DATA,"1,150.00",09/04/2015
Commissioning,Commissioning,Publications,60017958,REDACTED - PERSONAL DATA,350.00,10/04/2015
Commissioning,Commissioning,Training,60015143,PREMIER PEOPLE SOLUTIONS LTD,378.00,10/04/2015
Commissioning,Commissioning,Training,60018131,PREMIER PEOPLE SOLUTIONS LTD,"2,835.00",23/04/2015
Commissioning,Commissioning,Ttl IT & Comms,60015926,JIGSAW24,"12,334.00",01/04/2015
Corporate Accounting,Corporate Accounting,Government departments - Third,20019592,DEPARTMENT FOR COMMUNITIES AND,"398,787.10",28/04/2015
Corporate Accounting,Corporate Accounting,Legal and Court Fees,20018760,REDACTED - PERSONAL DATA,500.00,02/04/2015
Corporate Accounting,Corporate Accounting,Other Agencies - Third Party P,60016924,CITIBANK NA LONDON,250.00,08/04/2015
Corporate Accounting,Corporate Accounting,Other Agencies - Third Party P,60016940,CITIBANK NA LONDON,"2,558.63",08/04/2015
Corporate Accounting,Corporate Accounting,Other Agencies - Third Party P,60016982,CITIBANK NA LONDON,733.22,08/04/2015
Corporate Accounting,Corporate Accounting,Other Agencies - Third Party P,60017330,CITIBANK NA LONDON,302.35,09/04/2015
Corporate Accounting,Corporate Accounting,Other Agencies - Third Party P,60017335,CITIBANK NA LONDON,250.00,09/04/2015
Corporate Accounting,Corporate Accounting,Other Agencies - Third Party P,60016906,CITIBANK NA LONDON,250.00,10/04/2015
Corporate Accounting,Corporate Accounting,Other Agencies - Third Party P,60015815,CITIBANK NA LONDON,"1,289.92",13/04/2015
Corporate Accounting,Corporate Accounting,Other Agencies - Third Party P,60015831,CITIBANK NA LONDON,331.76,13/04/2015
Corporate Accounting,Corporate Accounting,Other Agencies - Third Party P,60017740,CITIBANK NA LONDON,582.00,13/04/2015
Corporate Accounting,Corporate Accounting,Other Agencies - Third Party P,60017869,CITIBANK NA LONDON,346.70,13/04/2015
Corporate Accounting,Corporate Accounting,Other Establishments - Third P,20018832,BROADFIELDS ACADEMY,"12,786.68",07/04/2015
Corporate Accounting,Corporate Accounting,Other Establishments - Third P,20018828,CHRIST'S COLLEGE FINCHLEY ACADEMY,"15,966.75",07/04/2015
Corporate Accounting,Corporate Accounting,Other Establishments - Third P,20018830,CHRIST'S COLLEGE FINCHLEY ACADEMY,"3,236.45",07/04/2015
Corporate Accounting,Corporate Accounting,Other Establishments - Third P,20018829,COPTHALL SCHOOL (ACADEMY),"1,236.05",07/04/2015
Corporate Accounting,Corporate Accounting,Other Establishments - Third P,20018831,COPTHALL SCHOOL (ACADEMY),"1,440.23",07/04/2015
Corporate Accounting,Corporate Accounting,Other Establishments - Third P,20018834,COPTHALL SCHOOL (ACADEMY),"3,430.44",07/04/2015
Corporate Accounting,Corporate Accounting,Other Establishments - Third P,20018833,GRASVENOR AVENUE INFANT SCHOOL (ACA,"2,620.14",07/04/2015
Corporate Accounting,Corporate Accounting,Other Establishments - Third P,20018835,HENRIETTA BARNETT SCHOOL (ACADEMY),"10,436.05",07/04/2015
Corporate Accounting,Corporate Accounting,Other Local Authorities - Thir,EBX0054446,GREATER LONDON AUTHORITY,"4,004,237.40",07/04/2015
Corporate Accounting,Corporate Accounting,Other Local Authorities - Thir,EBX0056255,GREATER LONDON AUTHORITY,"2,081,276.00",07/04/2015
Corporate Accounting,Corporate Accounting,Other Transfer Payments to Soc,60018726,CITIBANK NA LONDON,"13,987.18",16/04/2015
Corporate Accounting,Corporate Accounting,Other Transfer Payments to Soc,60018805,CITIBANK NA LONDON,"2,061.60",20/04/2015
Corporate Accounting,Corporate Accounting,Other Transfer Payments to Soc,60019034,CITIBANK NA LONDON,"2,040.77",20/04/2015
Corporate Accounting,Corporate Accounting,Other Transfer Payments to Soc,60019037,CITIBANK NA LONDON,320.00,20/04/2015
Corporate Accounting,Corporate Accounting,Other Transfer Payments to Soc,60019064,CITIBANK NA LONDON,586.31,20/04/2015
Corporate Accounting,Corporate Accounting,Other Transfer Payments to Soc,60019083,CITIBANK NA LONDON,292.00,21/04/2015
Corporate Accounting,Corporate Accounting,Other Transfer Payments to Soc,60019088,CITIBANK NA LONDON,292.55,21/04/2015
Corporate Accounting,Corporate Accounting,Other Transfer Payments to Soc,60019104,CITIBANK NA LONDON,307.75,21/04/2015
Corporate Accounting,Corporate Accounting,Other Transfer Payments to Soc,60019118,CITIBANK NA LONDON,417.92,21/04/2015
Corporate Accounting,Corporate Accounting,Other Transfer Payments to Soc,60019297,CITIBANK NA LONDON,633.70,24/04/2015
Corporate Accounting,Corporate Accounting,Other Transfer Payments to Soc,60019301,CITIBANK NA LONDON,250.00,24/04/2015
Corporate Accounting,Corporate Accounting,Other Transfer Payments to Soc,60019324,CITIBANK NA LONDON,264.50,24/04/2015
Delivery Units,Adults and Communities,Advertising,60017776,TMP (UK) LTD,"1,806.90",08/04/2015
Delivery Units,Adults and Communities,Advertising,60017957,TMP (UK) LTD,512.30,13/04/2015
Delivery Units,Adults and Communities,Advertising,60017761,TMP (UK) LTD,525.05,15/04/2015
Delivery Units,Adults and Communities,Advertising,10012001,TMP (UK) LTD,"1,656.90",16/04/2015
Delivery Units,Adults and Communities,Advertising,10012196,TMP (UK) LTD,552.30,16/04/2015
Delivery Units,Adults and Communities,Advertising,10012197,TMP (UK) LTD,552.30,16/04/2015
Delivery Units,Adults and Communities,Advertising,10012198,TMP (UK) LTD,"5,748.40",16/04/2015
Delivery Units,Adults and Communities,Building Repairs & Maintenance,60017997,FREMANTLE TRUST,"26,031.46",08/04/2015
Delivery Units,Adults and Communities,Cleaning and domestic material,60015070,SUPERCLEAN SERVICES WOTHORPE LTD,585.00,07/04/2015
Delivery Units,Adults and Communities,Cleaning and domestic material,60018008,SUPERCLEAN SERVICES WOTHORPE LTD,585.00,07/04/2015
Delivery Units,Adults and Communities,Consultants Fees,60017300,BARNET SENIOR'S ASSEMBLY,"5,000.00",01/04/2015
Delivery Units,Adults and Communities,Consultants Fees,60017381,KAZOU CONSULTANCY LTD,500.00,20/04/2015
Delivery Units,Adults and Communities,Consultants Fees,60017451,THE READER ORGANISATION,"16,250.00",01/04/2015
Delivery Units,Adults and Communities,Electricity,60017954,E-ON ENERGY,642.12,13/04/2015
Delivery Units,Adults and Communities,Electricity,60017793,KENT COUNTY COUNCIL (KCS),429.21,13/04/2015
Delivery Units,Adults and Communities,Electricity,60017862,KENT COUNTY COUNCIL (KCS),368.07,13/04/2015
Delivery Units,Adults and Communities,Electricity,60017880,KENT COUNTY COUNCIL (KCS),393.84,13/04/2015
Delivery Units,Adults and Communities,Employee Expenses,60018085,CENTRAL LONDONCOMMUNITY HEALTHCARE,"8,519.58",10/04/2015
Delivery Units,Adults and Communities,Employee Expenses,60017939,GATENBY SANDERSON,"4,800.00",10/04/2015
Delivery Units,Adults and Communities,Equipment and Materials Purcha,60016132,MEDEQUIP ASSISTIVE TECHNOLOGY LTD,"182,463.79",01/04/2015
Delivery Units,Adults and Communities,Equipment and Materials Purcha,60018099,MEDEQUIP ASSISTIVE TECHNOLOGY LTD,"1,455.99",17/04/2015
Delivery Units,Adults and Communities,Equipment and Materials Purcha,60014341,OAKLEIGH PHARMACY,"2,285.68",07/04/2015
Delivery Units,Adults and Communities,Equipment and Materials Purcha,10012237,OCS GROUP UK LIMITED,"61,142.00",28/04/2015
Delivery Units,Adults and Communities,Equipment and Materials Purcha,60017943,REDLAND HEALTHCARE LTD,"1,959.50",17/04/2015
Delivery Units,Adults and Communities,Equipment and Materials Purcha,60017946,THE BARNETGROUP LIMITED,"13,092.80",13/04/2015
Delivery Units,Adults and Communities,Equipment and Materials Purcha,60017967,THE BARNETGROUP LIMITED,"13,785.99",13/04/2015
Delivery Units,Adults and Communities,Equipment and Materials Repair,60017122,I D INTEGRATED SECURITY LTD,347.50,07/04/2015
Delivery Units,Adults and Communities,Furniture-Purchase-Repair,60016057,BLUE 9 SECURITY LIMITED,"6,156.00",08/04/2015
Delivery Units,Adults and Communities,Furniture-Purchase-Repair,60019313,BLUE 9 SECURITY LIMITED,"6,817.50",23/04/2015
Delivery Units,Adults and Communities,Furniture-Purchase-Repair,60017497,DOORWAY-MAINTENANCE CO.,252.00,07/04/2015
Delivery Units,Adults and Communities,Gas,60015724,KENT COUNTY COUNCIL (KCS),298.09,08/04/2015
Delivery Units,Adults and Communities,Grant Payments,20019578,H D PROPERTY SERVICES LTD,"1,600.80",27/04/2015
Delivery Units,Adults and Communities,Health authorities - Third Par,60018108,NHS BARNET CCG,"8,763.75",10/04/2015
Delivery Units,Adults and Communities,Health authorities - Third Par,60018168,NHS BARNET CCG,"22,695.30",10/04/2015
Delivery Units,Adults and Communities,Other Agencies - Third Party P,30074558,10 ORCHARD AVENUE,"1,092.00",29/04/2015
Delivery Units,Adults and Communities,Other Agencies - Third Party P,30071471,ABBEY RAVENSCROFT PARK NURSING HOME,"2,000.00",08/04/2015
Delivery Units,Adults and Communities,Other Agencies - Third Party P,30071472,ABBEY RAVENSCROFT PARK NURSING HOME,"3,100.00",08/04/2015
Delivery Units,Adults and Communities,Other Agencies - Third Party P,30074598,ABBEY RAVENSCROFT PARK NURSING HOME,"1,047.26",30/04/2015
Delivery Units,Adults and Communities,Other Agencies - Third Party P,30074599,ABBEY RAVENSCROFT PARK NURSING HOME,"1,047.26",30/04/2015
Delivery Units,Adults and Communities,Other Agencies - Third Party P,30072929,ACCEDO CARE LTD,"5,600.00",20/04/2015
Delivery Units,Adults and Communities,Other Agencies - Third Party P,30072930,ACCEDO CARE LTD,"8,400.00",20/04/2015
Delivery Units,Adults and Communities,Other Agencies - Third Party P,30071488,ACTION ON HEARING LOSS,"1,489.20",08/04/2015
Delivery Units,Adults and Communities,Other Agencies - Third Party P,30071490,ACTION ON HEARING LOSS,"5,642.64",08/04/2015
Delivery Units,Adults and Communities,Other Agencies - Third Party P,30071491,ACTION ON HEARING LOSS,-362.80,08/04/2015
Delivery Units,Adults and Communities,Other Agencies - Third Party P,30071492,ACTION ON HEARING LOSS,"9,083.95",08/04/2015
Delivery Units,Adults and Communities,Other Agencies - Third Party P,30071493,ACTION ON HEARING LOSS,-695.84,08/04/2015
Delivery Units,Adults and Communities,Other Agencies - Third Party P,30073403,ACTION ON HEARING LOSS,"1,908.93",21/04/2015
Delivery Units,Adults and Communities,Other Agencies - Third Party P,30073404,ACTION ON HEARING LOSS,-318.73,21/04/2015
Delivery Units,Adults and Communities,Other Agencies - Third Party P,30071407,ADVANTAGE HEALTHCARE GROUP LTD,"1,230.78",08/04/2015
Delivery Units,Adults and Communities,Other Agencies - Third Party P,30071408,ADVANTAGE HEALTHCARE GROUP LTD,626.85,08/04/2015
Delivery Units,Adults and Communities,Other Agencies - Third Party P,30071555,ADVANTAGE HEALTHCARE GROUP LTD,938.44,10/04/2015
Delivery Units,Adults and Communities,Other Agencies - Third Party P,30071556,ADVANTAGE HEALTHCARE GROUP LTD,774.03,10/04/2015
Delivery Units,Adults and Communities,Other Agencies - Third Party P,30071557,ADVANTAGE HEALTHCARE GROUP LTD,"1,149.17",10/04/2015
Delivery Units,Adults and Communities,Other Agencies - Third Party P,30072238,ADVANTAGE HEALTHCARE GROUP LTD,913.37,14/04/2015
Delivery Units,Adults and Communities,Other Agencies - Third Party P,30072239,ADVANTAGE HEALTHCARE GROUP LTD,446.56,14/04/2015
Delivery Units,Adults and Communities,Other Agencies - Third Party P,30072518,ADVANTAGE HEALTHCARE GROUP LTD,685.22,16/04/2015
Delivery Units,Adults and Communities,Other Agencies - Third Party P,30072519,ADVANTAGE HEALTHCARE GROUP LTD,950.88,16/04/2015
Delivery Units,Adults and Communities,Other Agencies - Third Party P,30071409,ADVANTAGE HEALTHCARE GROUP LTD,992.44,22/04/2015
Delivery Units,Adults and Communities,Other Agencies - Third Party P,30071410,ADVANTAGE HEALTHCARE GROUP LTD,968.43,22/04/2015
Delivery Units,Adults and Communities,Other Agencies - Third Party P,30071411,ADVANTAGE HEALTHCARE GROUP LTD,"1,080.19",22/04/2015
Delivery Units,Adults and Communities,Other Agencies - Third Party P,30071412,ADVANTAGE HEALTHCARE GROUP LTD,702.61,22/04/2015
Delivery Units,Adults and Communities,Other Agencies - Third Party P,30071413,ADVANTAGE HEALTHCARE GROUP LTD,744.17,22/04/2015
Delivery Units,Adults and Communities,Other Agencies - Third Party P,30071414,ADVANTAGE HEALTHCARE GROUP LTD,614.86,22/04/2015
Delivery Units,Adults and Communities,Other Agencies - Third Party P,30071415,ADVANTAGE HEALTHCARE GROUP LTD,434.12,22/04/2015
Delivery Units,Adults and Communities,Other Agencies - Third Party P,30071416,ADVANTAGE HEALTHCARE GROUP LTD,"1,218.02",22/04/2015
Delivery Units,Adults and Communities,Other Agencies - Third Party P,30071558,ADVANTAGE HEALTHCARE GROUP LTD,913.21,22/04/2015
Delivery Units,Adults and Communities,Other Agencies - Third Party P,30071559,ADVANTAGE HEALTHCARE GROUP LTD,598.66,22/04/2015
Delivery Units,Adults and Communities,Other Agencies - Third Party P,30072240,ADVANTAGE HEALTHCARE GROUP LTD,633.63,22/04/2015
Delivery Units,Adults and Communities,Other Agencies - Third Party P,30072520,ADVANTAGE HEALTHCARE GROUP LTD,"1,610.07",22/04/2015
Delivery Units,Adults and Communities,Other Agencies - Third Party P,30073231,ADVANTAGE HEALTHCARE GROUP LTD,815.72,22/04/2015
Delivery Units,Adults and Communities,Other Agencies - Third Party P,30072241,ADVANTAGE HEALTHCARE GROUP LTD,"1,366.39",23/04/2015
Delivery Units,Adults and Communities,Other Agencies - Third Party P,30071560,ADVANTAGE HEALTHCARE GROUP LTD,821.57,27/04/2015
Delivery Units,Adults and Communities,Other Agencies - Third Party P,30074287,ADVANTAGE HEALTHCARE GROUP LTD,968.43,28/04/2015
Delivery Units,Adults and Communities,Other Agencies - Third Party P,30074288,ADVANTAGE HEALTHCARE GROUP LTD,896.88,28/04/2015
Delivery Units,Adults and Communities,Other Agencies - Third Party P,30074289,ADVANTAGE HEALTHCARE GROUP LTD,731.57,28/04/2015
Delivery Units,Adults and Communities,Other Agencies - Third Party P,30074290,ADVANTAGE HEALTHCARE GROUP LTD,880.68,28/04/2015
Delivery Units,Adults and Communities,Other Agencies - Third Party P,30074291,ADVANTAGE HEALTHCARE GROUP LTD,703.83,28/04/2015
Delivery Units,Adults and Communities,Other Agencies - Third Party P,30074292,ADVANTAGE HEALTHCARE GROUP LTD,831.92,28/04/2015
Delivery Units,Adults and Communities,Other Agencies - Third Party P,30072242,ADVANTAGE HEALTHCARE GROUP LTD,"1,653.65",30/04/2015
Delivery Units,Adults and Communities,Other Agencies - Third Party P,30071170,AGUDAS ISRAEL HOUSING ASSCTN LTD,"1,600.20",07/04/2015
Delivery Units,Adults and Communities,Other Agencies - Third Party P,20018798,ANDERSEN CARE LTD,"1,385.60",02/04/2015
Delivery Units,Adults and Communities,Other Agencies - Third Party P,20018799,ANDERSEN CARE LTD,"1,676.80",02/04/2015
Delivery Units,Adults and Communities,Other Agencies - Third Party P,20018800,ANDERSEN CARE LTD,"1,697.79",02/04/2015
Delivery Units,Adults and Communities,Other Agencies - Third Party P,20018801,ANDERSEN CARE LTD,"1,676.80",02/04/2015
Delivery Units,Adults and Communities,Other Agencies - Third Party P,20018802,ANDERSEN CARE LTD,419.20,02/04/2015
Delivery Units,Adults and Communities,Other Agencies - Third Party P,30072261,AREA 51 EDUCATION LTD,"1,580.00",14/04/2015
Delivery Units,Adults and Communities,Other Agencies - Third Party P,30072262,AREA 51 EDUCATION LTD,948.00,14/04/2015
Delivery Units,Adults and Communities,Other Agencies - Third Party P,30072263,AREA 51 EDUCATION LTD,632.00,14/04/2015
Delivery Units,Adults and Communities,Other Agencies - Third Party P,30072264,AREA 51 EDUCATION LTD,"1,580.00",14/04/2015
Delivery Units,Adults and Communities,Other Agencies - Third Party P,30072265,AREA 51 EDUCATION LTD,948.00,14/04/2015
Delivery Units,Adults and Communities,Other Agencies - Third Party P,30072266,AREA 51 EDUCATION LTD,632.00,14/04/2015
Delivery Units,Adults and Communities,Other Agencies - Third Party P,30067957,ASHFIELDS RESIDENTIAL CARE HOME,"2,418.04",01/04/2015
Delivery Units,Adults and Communities,Other Agencies - Third Party P,30067958,ASHFIELDS RESIDENTIAL CARE HOME,"2,216.41",01/04/2015
Delivery Units,Adults and Communities,Other Agencies - Third Party P,30067959,ASHFIELDS RESIDENTIAL CARE HOME,"2,216.41",01/04/2015
Delivery Units,Adults and Communities,Other Agencies - Third Party P,30067960,ASHFIELDS RESIDENTIAL CARE HOME,"2,418.04",01/04/2015
Delivery Units,Adults and Communities,Other Agencies - Third Party P,30071479,ASHFIELDS RESIDENTIAL CARE HOME,"3,953.57",08/04/2015
Delivery Units,Adults and Communities,Other Agencies - Third Party P,30071481,ASHTON LODGE CARE CENTRE,"2,570.70",08/04/2015
Delivery Units,Adults and Communities,Other Agencies - Third Party P,30071499,ASHTON LODGE CARE CENTRE,390.01,08/04/2015
Delivery Units,Adults and Communities,Other Agencies - Third Party P,30071480,B & M CARE,"-2,262.04",17/04/2015
Delivery Units,Adults and Communities,Other Agencies - Third Party P,30071487,B & M CARE,"1,265.19",17/04/2015
Delivery Units,Adults and Communities,Other Agencies - Third Party P,30072795,B & M CARE,"2,418.04",17/04/2015
Delivery Units,Adults and Communities,Other Agencies - Third Party P,30072796,B & M CARE,"2,418.04",17/04/2015
Delivery Units,Adults and Communities,Other Agencies - Third Party P,30072797,B & M CARE,"2,184.04",17/04/2015
Delivery Units,Adults and Communities,Other Agencies - Third Party P,30072798,B & M CARE,"2,418.04",17/04/2015
Delivery Units,Adults and Communities,Other Agencies - Third Party P,30072799,B & M CARE,"2,340.04",17/04/2015
Delivery Units,Adults and Communities,Other Agencies - Third Party P,30072800,B & M CARE,"1,072.46",17/04/2015
Delivery Units,Adults and Communities,Other Agencies - Third Party P,30073143,B & M CARE,"-2,184.04",21/04/2015
Delivery Units,Adults and Communities,Other Agencies - Third Party P,30073391,B & M CARE,"2,340.04",21/04/2015
Delivery Units,Adults and Communities,Other Agencies - Third Party P,30073392,B & M CARE,"2,144.91",21/04/2015
Delivery Units,Adults and Communities,Other Agencies - Third Party P,30073393,B & M CARE,"2,340.00",21/04/2015
Delivery Units,Adults and Communities,Other Agencies - Third Party P,30073394,B & M CARE,-553.46,21/04/2015
Delivery Units,Adults and Communities,Other Agencies - Third Party P,30071180,BARNET EXECUTIVE CAR SERVICE,480.00,07/04/2015
Delivery Units,Adults and Communities,Other Agencies - Third Party P,30071181,BARNET EXECUTIVE CAR SERVICE,480.00,07/04/2015
Delivery Units,Adults and Communities,Other Agencies - Third Party P,30071182,BARNET EXECUTIVE CAR SERVICE,480.00,07/04/2015
Delivery Units,Adults and Communities,Other Agencies - Third Party P,30071224,BARNET EXECUTIVE CAR SERVICE,480.00,07/04/2015
Delivery Units,Adults and Communities,Other Agencies - Third Party P,30071225,BARNET EXECUTIVE CAR SERVICE,400.00,07/04/2015
Delivery Units,Adults and Communities,Other Agencies - Third Party P,30071226,BARNET EXECUTIVE CAR SERVICE,400.00,07/04/2015
Delivery Units,Adults and Communities,Other Agencies - Third Party P,30073182,BARNET HOMES LIMITED,"1,097.61",21/04/2015
Delivery Units,Adults and Communities,Other Agencies - Third Party P,30072336,BAYTREE COMMUNITY CARE (LONDON) LTD,"1,280.00",14/04/2015
Delivery Units,Adults and Communities,Other Agencies - Third Party P,30072423,BAYTREE COMMUNITY CARE (LONDON) LTD,734.40,15/04/2015
Delivery Units,Adults and Communities,Other Agencies - Third Party P,30072649,BROADREACH HOUSE,"3,520.71",17/04/2015
Delivery Units,Adults and Communities,Other Agencies - Third Party P,30071105,BROADWAY LODGE,"2,685.00",07/04/2015
Delivery Units,Adults and Communities,Other Agencies - Third Party P,30073230,BROADWAY LODGE,"2,045.71",21/04/2015
Delivery Units,Adults and Communities,Other Agencies - Third Party P,30073703,BRUNSWICK SUPPORTED LIVING SERVICES,"1,321.60",22/04/2015
Delivery Units,Adults and Communities,Other Agencies - Third Party P,30073704,BRUNSWICK SUPPORTED LIVING SERVICES,"1,412.68",22/04/2015
Delivery Units,Adults and Communities,Other Agencies - Third Party P,30073705,BRUNSWICK SUPPORTED LIVING SERVICES,"1,942.84",22/04/2015
Delivery Units,Adults and Communities,Other Agencies - Third Party P,30073708,BRUNSWICK SUPPORTED LIVING SERVICES,"2,153.92",22/04/2015
Delivery Units,Adults and Communities,Other Agencies - Third Party P,30073710,BRUNSWICK SUPPORTED LIVING SERVICES,"1,050.00",22/04/2015
Delivery Units,Adults and Communities,Other Agencies - Third Party P,30071476,BULLSMOOR LODGE,"1,448.00",10/04/2015
Delivery Units,Adults and Communities,Other Agencies - Third Party P,30072802,BUPA CARE HOMES,"2,318.93",17/04/2015
Delivery Units,Adults and Communities,Other Agencies - Third Party P,30072803,BUPA CARE HOMES,"2,924.05",17/04/2015
Delivery Units,Adults and Communities,Other Agencies - Third Party P,30072804,BUPA CARE HOMES,"2,302.06",17/04/2015
Delivery Units,Adults and Communities,Other Agencies - Third Party P,30073396,BUPA CARE HOMES,"2,318.93",21/04/2015
Delivery Units,Adults and Communities,Other Agencies - Third Party P,30073397,BUPA CARE HOMES,"2,318.93",21/04/2015
Delivery Units,Adults and Communities,Other Agencies - Third Party P,30073398,BUPA CARE HOMES,"2,318.93",21/04/2015
Delivery Units,Adults and Communities,Other Agencies - Third Party P,30072761,BUPA NURSING HOMES LTD - ARKLEY,"1,122.06",17/04/2015
Delivery Units,Adults and Communities,Other Agencies - Third Party P,30072762,BUPA NURSING HOMES LTD - ARKLEY,"2,094.52",17/04/2015
Delivery Units,Adults and Communities,Other Agencies - Third Party P,30072763,BUPA NURSING HOMES LTD - ARKLEY,"2,094.52",17/04/2015
Delivery Units,Adults and Communities,Other Agencies - Third Party P,30072764,BUPA NURSING HOMES LTD - ARKLEY,"2,094.52",17/04/2015
Delivery Units,Adults and Communities,Other Agencies - Third Party P,30072765,BUPA NURSING HOMES LTD - ARKLEY,"2,094.52",17/04/2015
Delivery Units,Adults and Communities,Other Agencies - Third Party P,30072766,BUPA NURSING HOMES LTD - ARKLEY,"1,604.52",17/04/2015
Delivery Units,Adults and Communities,Other Agencies - Third Party P,30072767,BUPA NURSING HOMES LTD - ARKLEY,"2,094.52",17/04/2015
Delivery Units,Adults and Communities,Other Agencies - Third Party P,30072768,BUPA NURSING HOMES LTD - ARKLEY,"2,094.52",17/04/2015
Delivery Units,Adults and Communities,Other Agencies - Third Party P,30072769,BUPA NURSING HOMES LTD - ARKLEY,"2,094.52",17/04/2015
Delivery Units,Adults and Communities,Other Agencies - Third Party P,30072770,BUPA NURSING HOMES LTD - ARKLEY,"1,421.28",17/04/2015
Delivery Units,Adults and Communities,Other Agencies - Third Party P,30072771,BUPA NURSING HOMES LTD - ARKLEY,"2,001.92",17/04/2015
Delivery Units,Adults and Communities,Other Agencies - Third Party P,30072772,BUPA NURSING HOMES LTD - ARKLEY,"2,094.52",17/04/2015
Delivery Units,Adults and Communities,Other Agencies - Third Party P,30072773,BUPA NURSING HOMES LTD - ARKLEY,"3,356.44",17/04/2015
Delivery Units,Adults and Communities,Other Agencies - Third Party P,30072774,BUPA NURSING HOMES LTD - ARKLEY,"2,094.52",17/04/2015
Delivery Units,Adults and Communities,Other Agencies - Third Party P,30073401,CAMBIAN BEECHES,"12,739.80",21/04/2015
Delivery Units,Adults and Communities,Other Agencies - Third Party P,30073463,CAMBIAN BEECHES,"12,739.80",21/04/2015
Delivery Units,Adults and Communities,Other Agencies - Third Party P,30073602,CAMPHILL DEVON COMMUNITY LIMITED,"4,508.00",22/04/2015
Delivery Units,Adults and Communities,Other Agencies - Third Party P,30074580,CANDLE COURT NURSING HOME,829.26,30/04/2015
Delivery Units,Adults and Communities,Other Agencies - Third Party P,30074581,CANDLE COURT NURSING HOME,"2,570.70",30/04/2015
Delivery Units,Adults and Communities,Other Agencies - Third Party P,30073567,CARE WORLDWIDE (LONDON) LTD,300.02,22/04/2015
Delivery Units,Adults and Communities,Other Agencies - Third Party P,30073568,CARE WORLDWIDE (LONDON) LTD,300.02,22/04/2015
Delivery Units,Adults and Communities,Other Agencies - Third Party P,30073600,CARE WORLDWIDE (LONDON) LTD,"2,800.82",22/04/2015
Delivery Units,Adults and Communities,Other Agencies - Third Party P,30073601,CARE WORLDWIDE (LONDON) LTD,"2,800.82",22/04/2015
Delivery Units,Adults and Communities,Other Agencies - Third Party P,30073605,CARE WORLDWIDE (LONDON) LTD,"2,800.82",22/04/2015
Delivery Units,Adults and Communities,Other Agencies - Third Party P,30073606,CARE WORLDWIDE (LONDON) LTD,"2,800.82",22/04/2015
Delivery Units,Adults and Communities,Other Agencies - Third Party P,30074038,CARE WORLDWIDE (LONDON) LTD,"2,680.88",24/04/2015
Delivery Units,Adults and Communities,Other Agencies - Third Party P,30074039,CARE WORLDWIDE (LONDON) LTD,"2,800.82",24/04/2015
Delivery Units,Adults and Communities,Other Agencies - Third Party P,30074040,CARE WORLDWIDE (LONDON) LTD,"3,936.46",24/04/2015
Delivery Units,Adults and Communities,Other Agencies - Third Party P,30074041,CARE WORLDWIDE (LONDON) LTD,"4,246.53",24/04/2015
Delivery Units,Adults and Communities,Other Agencies - Third Party P,30074042,CARE WORLDWIDE (LONDON) LTD,"2,685.98",24/04/2015
Delivery Units,Adults and Communities,Other Agencies - Third Party P,30074043,CARE WORLDWIDE (LONDON) LTD,"2,794.44",24/04/2015
Delivery Units,Adults and Communities,Other Agencies - Third Party P,30074044,CARE WORLDWIDE (LONDON) LTD,"2,800.82",24/04/2015
Delivery Units,Adults and Communities,Other Agencies - Third Party P,30072862,CARETECH COMMUNITY SERVICES LTD,"4,896.17",29/04/2015
Delivery Units,Adults and Communities,Other Agencies - Third Party P,30072863,CARETECH COMMUNITY SERVICES LTD,-342.21,29/04/2015
Delivery Units,Adults and Communities,Other Agencies - Third Party P,30072864,CARETECH COMMUNITY SERVICES LTD,"1,053.04",29/04/2015
Delivery Units,Adults and Communities,Other Agencies - Third Party P,30072865,CARETECH COMMUNITY SERVICES LTD,"5,292.51",29/04/2015
Delivery Units,Adults and Communities,Other Agencies - Third Party P,30072866,CARETECH COMMUNITY SERVICES LTD,-342.21,29/04/2015
Delivery Units,Adults and Communities,Other Agencies - Third Party P,30072867,CARETECH COMMUNITY SERVICES LTD,"5,292.51",29/04/2015
Delivery Units,Adults and Communities,Other Agencies - Third Party P,30072868,CARETECH COMMUNITY SERVICES LTD,-342.21,29/04/2015
Delivery Units,Adults and Communities,Other Agencies - Third Party P,30072869,CARETECH COMMUNITY SERVICES LTD,"1,053.04",29/04/2015
Delivery Units,Adults and Communities,Other Agencies - Third Party P,30072870,CARETECH COMMUNITY SERVICES LTD,"4,235.91",29/04/2015
Delivery Units,Adults and Communities,Other Agencies - Third Party P,30072871,CARETECH COMMUNITY SERVICES LTD,-342.21,29/04/2015
Delivery Units,Adults and Communities,Other Agencies - Third Party P,30072872,CARETECH COMMUNITY SERVICES LTD,"5,794.29",29/04/2015
Delivery Units,Adults and Communities,Other Agencies - Third Party P,30072873,CARETECH COMMUNITY SERVICES LTD,-342.21,29/04/2015
Delivery Units,Adults and Communities,Other Agencies - Third Party P,30072874,CARETECH COMMUNITY SERVICES LTD,"4,896.17",29/04/2015
Delivery Units,Adults and Communities,Other Agencies - Third Party P,30072875,CARETECH COMMUNITY SERVICES LTD,-531.21,29/04/2015
Delivery Units,Adults and Communities,Other Agencies - Third Party P,30072876,CARETECH COMMUNITY SERVICES LTD,"1,053.04",29/04/2015
Delivery Units,Adults and Communities,Other Agencies - Third Party P,30072877,CARETECH COMMUNITY SERVICES LTD,"2,506.20",29/04/2015
Delivery Units,Adults and Communities,Other Agencies - Third Party P,30072878,CARETECH COMMUNITY SERVICES LTD,"2,080.59",29/04/2015
Delivery Units,Adults and Communities,Other Agencies - Third Party P,30072880,CARETECH COMMUNITY SERVICES LTD,"1,478.57",29/04/2015
Delivery Units,Adults and Communities,Other Agencies - Third Party P,30073162,CARETECH COMMUNITY SERVICES LTD,889.50,29/04/2015
Delivery Units,Adults and Communities,Other Agencies - Third Party P,30073163,CARETECH COMMUNITY SERVICES LTD,"6,124.29",29/04/2015
Delivery Units,Adults and Communities,Other Agencies - Third Party P,30073164,CARETECH COMMUNITY SERVICES LTD,-342.21,29/04/2015
Delivery Units,Adults and Communities,Other Agencies - Third Party P,30073165,CARETECH COMMUNITY SERVICES LTD,"5,635.71",29/04/2015
Delivery Units,Adults and Communities,Other Agencies - Third Party P,30073166,CARETECH COMMUNITY SERVICES LTD,-469.71,29/04/2015
Delivery Units,Adults and Communities,Other Agencies - Third Party P,30073167,CARETECH COMMUNITY SERVICES LTD,"4,478.57",29/04/2015
Delivery Units,Adults and Communities,Other Agencies - Third Party P,30073168,CARETECH COMMUNITY SERVICES LTD,"4,628.57",29/04/2015
Delivery Units,Adults and Communities,Other Agencies - Third Party P,30073169,CARETECH COMMUNITY SERVICES LTD,"6,844.29",29/04/2015
Delivery Units,Adults and Communities,Other Agencies - Third Party P,30073170,CARETECH COMMUNITY SERVICES LTD,-388.71,29/04/2015
Delivery Units,Adults and Communities,Other Agencies - Third Party P,30073171,CARETECH COMMUNITY SERVICES LTD,889.50,29/04/2015
Delivery Units,Adults and Communities,Other Agencies - Third Party P,30073408,CARETECH COMMUNITY SERVICES LTD,"4,620.00",29/04/2015
Delivery Units,Adults and Communities,Other Agencies - Third Party P,30073409,CARETECH COMMUNITY SERVICES LTD,-342.21,29/04/2015
Delivery Units,Adults and Communities,Other Agencies - Third Party P,30073410,CARETECH COMMUNITY SERVICES LTD,"5,700.00",29/04/2015
Delivery Units,Adults and Communities,Other Agencies - Third Party P,30073411,CARETECH COMMUNITY SERVICES LTD,-342.21,29/04/2015
Delivery Units,Adults and Communities,Other Agencies - Third Party P,30073412,CARETECH COMMUNITY SERVICES LTD,"6,439.16",29/04/2015
Delivery Units,Adults and Communities,Other Agencies - Third Party P,30073413,CARETECH COMMUNITY SERVICES LTD,-342.21,29/04/2015
Delivery Units,Adults and Communities,Other Agencies - Third Party P,30073414,CARETECH COMMUNITY SERVICES LTD,459.94,29/04/2015
Delivery Units,Adults and Communities,Other Agencies - Third Party P,30073415,CARETECH COMMUNITY SERVICES LTD,"4,478.57",29/04/2015
Delivery Units,Adults and Communities,Other Agencies - Third Party P,30073416,CARETECH COMMUNITY SERVICES LTD,"4,478.57",29/04/2015
Delivery Units,Adults and Communities,Other Agencies - Third Party P,30073417,CARETECH COMMUNITY SERVICES LTD,"6,339.90",29/04/2015
Delivery Units,Adults and Communities,Other Agencies - Third Party P,30073418,CARETECH COMMUNITY SERVICES LTD,-531.21,29/04/2015
Delivery Units,Adults and Communities,Other Agencies - Third Party P,30073419,CARETECH COMMUNITY SERVICES LTD,789.81,29/04/2015
Delivery Units,Adults and Communities,Other Agencies - Third Party P,30073420,CARETECH COMMUNITY SERVICES LTD,"4,496.66",29/04/2015
Delivery Units,Adults and Communities,Other Agencies - Third Party P,30073421,CARETECH COMMUNITY SERVICES LTD,"4,661.79",29/04/2015
Delivery Units,Adults and Communities,Other Agencies - Third Party P,30073422,CARETECH COMMUNITY SERVICES LTD,-342.21,29/04/2015
Delivery Units,Adults and Communities,Other Agencies - Third Party P,30073423,CARETECH COMMUNITY SERVICES LTD,699.30,29/04/2015
Delivery Units,Adults and Communities,Other Agencies - Third Party P,30073424,CARETECH COMMUNITY SERVICES LTD,"7,375.71",29/04/2015
Delivery Units,Adults and Communities,Other Agencies - Third Party P,30073425,CARETECH COMMUNITY SERVICES LTD,"4,478.74",29/04/2015
Delivery Units,Adults and Communities,Other Agencies - Third Party P,30073426,CARETECH COMMUNITY SERVICES LTD,"6,339.90",29/04/2015
Delivery Units,Adults and Communities,Other Agencies - Third Party P,30073427,CARETECH COMMUNITY SERVICES LTD,-531.21,29/04/2015
Delivery Units,Adults and Communities,Other Agencies - Third Party P,30073428,CARETECH COMMUNITY SERVICES LTD,789.81,29/04/2015
Delivery Units,Adults and Communities,Other Agencies - Third Party P,30073429,CARETECH COMMUNITY SERVICES LTD,"4,478.57",29/04/2015
Delivery Units,Adults and Communities,Other Agencies - Third Party P,30073430,CARETECH COMMUNITY SERVICES LTD,"6,093.17",29/04/2015
Delivery Units,Adults and Communities,Other Agencies - Third Party P,30073431,CARETECH COMMUNITY SERVICES LTD,"6,439.16",29/04/2015
Delivery Units,Adults and Communities,Other Agencies - Third Party P,30073432,CARETECH COMMUNITY SERVICES LTD,-342.21,29/04/2015
Delivery Units,Adults and Communities,Other Agencies - Third Party P,30073433,CARETECH COMMUNITY SERVICES LTD,459.94,29/04/2015
Delivery Units,Adults and Communities,Other Agencies - Third Party P,30073434,CARETECH COMMUNITY SERVICES LTD,"7,052.57",29/04/2015
Delivery Units,Adults and Communities,Other Agencies - Third Party P,30073435,CARETECH COMMUNITY SERVICES LTD,-342.21,29/04/2015
Delivery Units,Adults and Communities,Other Agencies - Third Party P,30073436,CARETECH COMMUNITY SERVICES LTD,"4,478.57",29/04/2015
Delivery Units,Adults and Communities,Other Agencies - Third Party P,30073437,CARETECH COMMUNITY SERVICES LTD,"6,728.10",29/04/2015
Delivery Units,Adults and Communities,Other Agencies - Third Party P,30073438,CARETECH COMMUNITY SERVICES LTD,-342.21,29/04/2015
Delivery Units,Adults and Communities,Other Agencies - Third Party P,30073713,CARETECH COMMUNITY SERVICES LTD,447.87,29/04/2015
Delivery Units,Adults and Communities,Other Agencies - Third Party P,30071460,CATHERINE LODGE,"2,184.04",08/04/2015
Delivery Units,Adults and Communities,Other Agencies - Third Party P,30072417,CENTRAL MIDDLESEX SKILLS,"1,266.44",15/04/2015
Delivery Units,Adults and Communities,Other Agencies - Third Party P,30072418,CENTRAL MIDDLESEX SKILLS,723.68,15/04/2015
Delivery Units,Adults and Communities,Other Agencies - Third Party P,30072672,CHEQUERS TRANSPORT LIMITED,989.60,17/04/2015
Delivery Units,Adults and Communities,Other Agencies - Third Party P,30074027,CHEQUERS TRANSPORT LIMITED,480.00,24/04/2015
Delivery Units,Adults and Communities,Other Agencies - Third Party P,20019135,CHINGFORD KENNELS,630.50,10/04/2015
Delivery Units,Adults and Communities,Other Agencies - Third Party P,30073347,CHOICE CARE GROUP,"8,454.90",21/04/2015
Delivery Units,Adults and Communities,Other Agencies - Third Party P,30073348,CHOICE CARE GROUP,-344.19,21/04/2015
Delivery Units,Adults and Communities,Other Agencies - Third Party P,30071482,CLARE HOUSE NURSING HOME,"2,094.52",08/04/2015
Delivery Units,Adults and Communities,Other Agencies - Third Party P,30073367,CLOVELLY HOUSE RESID. HOME LTD,"2,600.00",21/04/2015
Delivery Units,Adults and Communities,Other Agencies - Third Party P,30073368,CLOVELLY HOUSE RESID. HOME LTD,"2,184.04",21/04/2015
Delivery Units,Adults and Communities,Other Agencies - Third Party P,30073369,CLOVELLY HOUSE RESID. HOME LTD,"2,600.00",21/04/2015
Delivery Units,Adults and Communities,Other Agencies - Third Party P,30073370,CLOVELLY HOUSE RESID. HOME LTD,"2,184.04",21/04/2015
Delivery Units,Adults and Communities,Other Agencies - Third Party P,30073371,CLOVELLY HOUSE RESID. HOME LTD,"2,184.04",21/04/2015
Delivery Units,Adults and Communities,Other Agencies - Third Party P,30073372,CLOVELLY HOUSE RESID. HOME LTD,-311.40,21/04/2015
Delivery Units,Adults and Communities,Other Agencies - Third Party P,30073373,CLOVELLY HOUSE RESID. HOME LTD,"2,600.00",21/04/2015
Delivery Units,Adults and Communities,Other Agencies - Third Party P,30073374,CLOVELLY HOUSE RESID. HOME LTD,"2,184.04",21/04/2015
Delivery Units,Adults and Communities,Other Agencies - Third Party P,30073375,CLOVELLY HOUSE RESID. HOME LTD,"2,184.04",21/04/2015
Delivery Units,Adults and Communities,Other Agencies - Third Party P,30073377,CLOVELLY HOUSE RESID. HOME LTD,-713.04,21/04/2015
Delivery Units,Adults and Communities,Other Agencies - Third Party P,30071168,CMG HOMES LTD,"3,086.84",07/04/2015
Delivery Units,Adults and Communities,Other Agencies - Third Party P,30071169,CMG HOMES LTD,"2,315.13",07/04/2015
Delivery Units,Adults and Communities,Other Agencies - Third Party P,30071171,CMG HOMES LTD,"4,800.00",07/04/2015
Delivery Units,Adults and Communities,Other Agencies - Third Party P,30071172,CMG HOMES LTD,"3,600.00",07/04/2015
Delivery Units,Adults and Communities,Other Agencies - Third Party P,30072311,CMG HOMES LTD,771.71,14/04/2015
Delivery Units,Adults and Communities,Other Agencies - Third Party P,30072315,CMG HOMES LTD,"1,200.00",14/04/2015
Delivery Units,Adults and Communities,Other Agencies - Third Party P,30072631,CMG HOMES LTD,592.40,17/04/2015
Delivery Units,Adults and Communities,Other Agencies - Third Party P,30072632,CMG HOMES LTD,"2,097.96",17/04/2015
Delivery Units,Adults and Communities,Other Agencies - Third Party P,30072633,CMG HOMES LTD,-495.80,17/04/2015
Delivery Units,Adults and Communities,Other Agencies - Third Party P,30072634,CMG HOMES LTD,592.40,17/04/2015
Delivery Units,Adults and Communities,Other Agencies - Third Party P,30072635,CMG HOMES LTD,"2,097.96",17/04/2015
Delivery Units,Adults and Communities,Other Agencies - Third Party P,30072636,CMG HOMES LTD,-495.80,17/04/2015
Delivery Units,Adults and Communities,Other Agencies - Third Party P,30072637,CMG HOMES LTD,592.40,17/04/2015
Delivery Units,Adults and Communities,Other Agencies - Third Party P,30072638,CMG HOMES LTD,"2,097.96",17/04/2015
Delivery Units,Adults and Communities,Other Agencies - Third Party P,30072639,CMG HOMES LTD,-495.80,17/04/2015
Delivery Units,Adults and Communities,Other Agencies - Third Party P,30072640,CMG HOMES LTD,"2,097.96",17/04/2015
Delivery Units,Adults and Communities,Other Agencies - Third Party P,30072641,CMG HOMES LTD,-495.80,17/04/2015
Delivery Units,Adults and Communities,Other Agencies - Third Party P,30072642,CMG HOMES LTD,592.40,17/04/2015
Delivery Units,Adults and Communities,Other Agencies - Third Party P,30072644,CMG HOMES LTD,"3,990.12",17/04/2015
Delivery Units,Adults and Communities,Other Agencies - Third Party P,30072645,CMG HOMES LTD,-495.80,17/04/2015
Delivery Units,Adults and Communities,Other Agencies - Third Party P,30072646,CMG HOMES LTD,"3,990.12",17/04/2015
Delivery Units,Adults and Communities,Other Agencies - Third Party P,30072647,CMG HOMES LTD,-495.80,17/04/2015
Delivery Units,Adults and Communities,Other Agencies - Third Party P,30071470,COOPERSCROFT CARE HOME,"6,552.12",08/04/2015
Delivery Units,Adults and Communities,Other Agencies - Third Party P,30072337,DABB PAA,"1,092.73",14/04/2015
Delivery Units,Adults and Communities,Other Agencies - Third Party P,30072341,DEVELOPMENT AND LEARNING OPPORTUNIT,"1,620.00",14/04/2015
Delivery Units,Adults and Communities,Other Agencies - Third Party P,30073094,DEVELOPMENT AND LEARNING OPPORTUNIT,652.40,20/04/2015
Delivery Units,Adults and Communities,Other Agencies - Third Party P,30073095,DEVELOPMENT AND LEARNING OPPORTUNIT,500.00,20/04/2015
Delivery Units,Adults and Communities,Other Agencies - Third Party P,30074115,DEVELOPMENT AND LEARNING OPPORTUNIT,"2,025.00",24/04/2015
Delivery Units,Adults and Communities,Other Agencies - Third Party P,30071335,DIMENSIONS UK,"1,131.35",07/04/2015
Delivery Units,Adults and Communities,Other Agencies - Third Party P,30071336,DIMENSIONS UK,"1,122.00",07/04/2015
Delivery Units,Adults and Communities,Other Agencies - Third Party P,30071341,DIMENSIONS UK,374.00,07/04/2015
Delivery Units,Adults and Communities,Other Agencies - Third Party P,30071342,DIMENSIONS UK,374.00,07/04/2015
Delivery Units,Adults and Communities,Other Agencies - Third Party P,30071343,DIMENSIONS UK,"1,196.80",07/04/2015
Delivery Units,Adults and Communities,Other Agencies - Third Party P,30071344,DIMENSIONS UK,"1,196.80",07/04/2015
Delivery Units,Adults and Communities,Other Agencies - Third Party P,30071348,DIMENSIONS UK,"1,570.80",07/04/2015
Delivery Units,Adults and Communities,Other Agencies - Third Party P,30071349,DIMENSIONS UK,"1,570.80",07/04/2015
Delivery Units,Adults and Communities,Other Agencies - Third Party P,30071350,DIMENSIONS UK,"1,870.00",07/04/2015
Delivery Units,Adults and Communities,Other Agencies - Third Party P,30071351,DIMENSIONS UK,"1,870.00",07/04/2015
Delivery Units,Adults and Communities,Other Agencies - Third Party P,30072396,DIMENSIONS UK,"2,128.00",14/04/2015
Delivery Units,Adults and Communities,Other Agencies - Third Party P,30072484,DIMENSIONS UK,"1,541.00",15/04/2015
Delivery Units,Adults and Communities,Other Agencies - Third Party P,30072619,DIMENSIONS UK,"7,950.68",16/04/2015
Delivery Units,Adults and Communities,Other Agencies - Third Party P,30072856,DIMENSIONS UK,965.60,17/04/2015
Delivery Units,Adults and Communities,Other Agencies - Third Party P,30072859,DIMENSIONS UK,"6,025.32",17/04/2015
Delivery Units,Adults and Communities,Other Agencies - Third Party P,30072860,DIMENSIONS UK,"4,495.76",17/04/2015
Delivery Units,Adults and Communities,Other Agencies - Third Party P,30072861,DIMENSIONS UK,"4,495.76",17/04/2015
Delivery Units,Adults and Communities,Other Agencies - Third Party P,30073328,DIMENSIONS UK,"2,040.00",21/04/2015
Delivery Units,Adults and Communities,Other Agencies - Third Party P,30074137,DIMENSIONS UK,279.72,24/04/2015
Delivery Units,Adults and Communities,Other Agencies - Third Party P,30073109,DYNAMIC PEOPLE LTD,940.00,20/04/2015
Delivery Units,Adults and Communities,Other Agencies - Third Party P,30073110,DYNAMIC PEOPLE LTD,670.00,20/04/2015
Delivery Units,Adults and Communities,Other Agencies - Third Party P,30073111,DYNAMIC PEOPLE LTD,510.00,20/04/2015
Delivery Units,Adults and Communities,Other Agencies - Third Party P,30073112,DYNAMIC PEOPLE LTD,785.00,20/04/2015
Delivery Units,Adults and Communities,Other Agencies - Third Party P,30073113,DYNAMIC PEOPLE LTD,490.00,20/04/2015
Delivery Units,Adults and Communities,Other Agencies - Third Party P,30073115,DYNAMIC PEOPLE LTD,512.50,20/04/2015
Delivery Units,Adults and Communities,Other Agencies - Third Party P,30073117,DYNAMIC PEOPLE LTD,970.00,20/04/2015
Delivery Units,Adults and Communities,Other Agencies - Third Party P,30073118,DYNAMIC PEOPLE LTD,370.00,20/04/2015
Delivery Units,Adults and Communities,Other Agencies - Third Party P,30073119,DYNAMIC PEOPLE LTD,490.00,20/04/2015
Delivery Units,Adults and Communities,Other Agencies - Third Party P,30073122,DYNAMIC PEOPLE LTD,490.00,20/04/2015
Delivery Units,Adults and Communities,Other Agencies - Third Party P,30073123,DYNAMIC PEOPLE LTD,250.00,20/04/2015
Delivery Units,Adults and Communities,Other Agencies - Third Party P,30073124,DYNAMIC PEOPLE LTD,490.00,20/04/2015
Delivery Units,Adults and Communities,Other Agencies - Third Party P,30073125,DYNAMIC PEOPLE LTD,445.00,20/04/2015
Delivery Units,Adults and Communities,Other Agencies - Third Party P,30073689,DYNAMIC PEOPLE LTD,712.50,22/04/2015
Delivery Units,Adults and Communities,Other Agencies - Third Party P,30074266,DYNAMIC PEOPLE LTD,370.00,27/04/2015
Delivery Units,Adults and Communities,Other Agencies - Third Party P,30073334,EASTSIDE HOUSE RESIDENTIAL CARE HOM,"2,001.92",21/04/2015
Delivery Units,Adults and Communities,Other Agencies - Third Party P,30074582,ELEANOR PALMER TRUST NO 2 A/C.,546.01,30/04/2015
Delivery Units,Adults and Communities,Other Agencies - Third Party P,30071483,EMMAUS HOUSE,"2,184.04",08/04/2015
Delivery Units,Adults and Communities,Other Agencies - Third Party P,30071218,EVE HERSOV & CO,262.00,07/04/2015
Delivery Units,Adults and Communities,Other Agencies - Third Party P,30073940,FERNBANK NURSING HOME.,"2,244.00",23/04/2015
Delivery Units,Adults and Communities,Other Agencies - Third Party P,30073941,FERNBANK NURSING HOME.,"2,244.00",23/04/2015
Delivery Units,Adults and Communities,Other Agencies - Third Party P,30073942,FERNBANK NURSING HOME.,"2,244.00",23/04/2015
Delivery Units,Adults and Communities,Other Agencies - Third Party P,30073943,FERNBANK NURSING HOME.,"2,244.00",23/04/2015
Delivery Units,Adults and Communities,Other Agencies - Third Party P,30073944,FERNBANK NURSING HOME.,"2,244.00",23/04/2015
Delivery Units,Adults and Communities,Other Agencies - Third Party P,30073945,FERNBANK NURSING HOME.,"2,244.00",23/04/2015
Delivery Units,Adults and Communities,Other Agencies - Third Party P,30073946,FERNBANK NURSING HOME.,"2,244.00",23/04/2015
Delivery Units,Adults and Communities,Other Agencies - Third Party P,30073947,FERNBANK NURSING HOME.,"2,487.60",23/04/2015
Delivery Units,Adults and Communities,Other Agencies - Third Party P,30073938,FERNBANK NURSING HOME.,"2,318.80",29/04/2015
Delivery Units,Adults and Communities,Other Agencies - Third Party P,30072731,FINBOND LIMITED,"2,657.14",17/04/2015
Delivery Units,Adults and Communities,Other Agencies - Third Party P,30072835,FLAGSWAN TWO LTD,"2,418.04",17/04/2015
Delivery Units,Adults and Communities,Other Agencies - Third Party P,30072836,FLAGSWAN TWO LTD,"3,383.92",17/04/2015
Delivery Units,Adults and Communities,Other Agencies - Third Party P,30072837,FLAGSWAN TWO LTD,"2,546.43",17/04/2015
Delivery Units,Adults and Communities,Other Agencies - Third Party P,30071495,FOUR SEASONS HEALTH CARE,"2,090.12",08/04/2015
Delivery Units,Adults and Communities,Other Agencies - Third Party P,30071496,FOUR SEASONS HEALTH CARE,"2,090.16",08/04/2015
Delivery Units,Adults and Communities,Other Agencies - Third Party P,30071497,FOUR SEASONS HEALTH CARE,"2,094.52",08/04/2015
Delivery Units,Adults and Communities,Other Agencies - Third Party P,30071498,FOUR SEASONS HEALTH CARE,"8,540.61",08/04/2015
Delivery Units,Adults and Communities,Other Agencies - Third Party P,30072809,FOUR SEASONS HEALTH CARE,"2,447.76",17/04/2015
Delivery Units,Adults and Communities,Other Agencies - Third Party P,30072810,FOUR SEASONS HEALTH CARE,"2,090.12",17/04/2015
Delivery Units,Adults and Communities,Other Agencies - Third Party P,30072811,FOUR SEASONS HEALTH CARE,"2,090.12",17/04/2015
Delivery Units,Adults and Communities,Other Agencies - Third Party P,30072812,FOUR SEASONS HEALTH CARE,"2,127.92",17/04/2015
Delivery Units,Adults and Communities,Other Agencies - Third Party P,30072813,FOUR SEASONS HEALTH CARE,"2,317.52",17/04/2015
Delivery Units,Adults and Communities,Other Agencies - Third Party P,30072814,FOUR SEASONS HEALTH CARE,"2,317.52",17/04/2015
Delivery Units,Adults and Communities,Other Agencies - Third Party P,30072815,FOUR SEASONS HEALTH CARE,"2,090.12",17/04/2015
Delivery Units,Adults and Communities,Other Agencies - Third Party P,30072816,FOUR SEASONS HEALTH CARE,"2,090.12",17/04/2015
Delivery Units,Adults and Communities,Other Agencies - Third Party P,30072817,FOUR SEASONS HEALTH CARE,"2,090.16",17/04/2015
Delivery Units,Adults and Communities,Other Agencies - Third Party P,30072818,FOUR SEASONS HEALTH CARE,"2,090.12",17/04/2015
Delivery Units,Adults and Communities,Other Agencies - Third Party P,30072819,FOUR SEASONS HEALTH CARE,"2,317.52",17/04/2015
Delivery Units,Adults and Communities,Other Agencies - Third Party P,30072820,FOUR SEASONS HEALTH CARE,"2,094.52",17/04/2015
Delivery Units,Adults and Communities,Other Agencies - Third Party P,30072821,FOUR SEASONS HEALTH CARE,"2,090.12",17/04/2015
Delivery Units,Adults and Communities,Other Agencies - Third Party P,30072891,FOUR SEASONS HEALTH CARE,"2,094.52",17/04/2015
Delivery Units,Adults and Communities,Other Agencies - Third Party P,30072892,FOUR SEASONS HEALTH CARE,"2,072.96",17/04/2015
Delivery Units,Adults and Communities,Other Agencies - Third Party P,30073707,FOUR SEASONS HEALTH CARE,"2,127.92",22/04/2015
Delivery Units,Adults and Communities,Other Agencies - Third Party P,30072884,FREEWAYS TRUST LIMITED,"2,979.76",17/04/2015
Delivery Units,Adults and Communities,Other Agencies - Third Party P,30072885,FREEWAYS TRUST LIMITED,-890.20,17/04/2015
Delivery Units,Adults and Communities,Other Agencies - Third Party P,30072886,FREEWAYS TRUST LIMITED,829.80,17/04/2015
Delivery Units,Adults and Communities,Other Agencies - Third Party P,30073152,FREMANTLE TRUST,"3,564.58",20/04/2015
Delivery Units,Adults and Communities,Other Agencies - Third Party P,30073153,FREMANTLE TRUST,-634.20,20/04/2015
Delivery Units,Adults and Communities,Other Agencies - Third Party P,30073154,FREMANTLE TRUST,"18,593.62",20/04/2015
Delivery Units,Adults and Communities,Other Agencies - Third Party P,30073155,FREMANTLE TRUST,"-3,507.72",20/04/2015
Delivery Units,Adults and Communities,Other Agencies - Third Party P,30073156,FREMANTLE TRUST,"32,322.07",20/04/2015
Delivery Units,Adults and Communities,Other Agencies - Third Party P,30073157,FREMANTLE TRUST,"-2,326.00",20/04/2015
Delivery Units,Adults and Communities,Other Agencies - Third Party P,30074608,FREMANTLE TRUST,"1,652.14",30/04/2015
Delivery Units,Adults and Communities,Other Agencies - Third Party P,30072971,FRIARY LODGE,"2,184.04",23/04/2015
Delivery Units,Adults and Communities,Other Agencies - Third Party P,30072975,FRIARY LODGE,"2,340.04",23/04/2015
Delivery Units,Adults and Communities,Other Agencies - Third Party P,30072982,FRIARY LODGE,"2,340.04",23/04/2015
Delivery Units,Adults and Communities,Other Agencies - Third Party P,30073091,FRIARY LODGE,"2,418.04",23/04/2015
Delivery Units,Adults and Communities,Other Agencies - Third Party P,30073126,FRIARY LODGE,"2,418.04",23/04/2015
Delivery Units,Adults and Communities,Other Agencies - Third Party P,30073129,FRIARY LODGE,"2,184.04",23/04/2015
Delivery Units,Adults and Communities,Other Agencies - Third Party P,30073132,FRIARY LODGE,"2,418.04",23/04/2015
Delivery Units,Adults and Communities,Other Agencies - Third Party P,30073233,FRIARY LODGE,"2,340.04",23/04/2015
Delivery Units,Adults and Communities,Other Agencies - Third Party P,30073234,FRIARY LODGE,"2,216.41",23/04/2015
Delivery Units,Adults and Communities,Other Agencies - Third Party P,30073240,FRIARY LODGE,"2,144.91",23/04/2015
Delivery Units,Adults and Communities,Other Agencies - Third Party P,30073262,FRIARY LODGE,"2,418.04",23/04/2015
Delivery Units,Adults and Communities,Other Agencies - Third Party P,30073264,FRIARY LODGE,"2,340.04",23/04/2015
Delivery Units,Adults and Communities,Other Agencies - Third Party P,30073603,FRIARY LODGE,"2,418.04",23/04/2015
Delivery Units,Adults and Communities,Other Agencies - Third Party P,30073604,FRIARY LODGE,"2,340.04",23/04/2015
Delivery Units,Adults and Communities,Other Agencies - Third Party P,30071485,FRIERN RESIDENTIAL CARE HOME,"1,219.71",08/04/2015
Delivery Units,Adults and Communities,Other Agencies - Third Party P,30071486,FRIERN RESIDENTIAL CARE HOME,-529.11,08/04/2015
Delivery Units,Adults and Communities,Other Agencies - Third Party P,30074600,FRIERN RESIDENTIAL CARE HOME,"3,728.57",30/04/2015
Delivery Units,Adults and Communities,Other Agencies - Third Party P,30074601,FRIERN RESIDENTIAL CARE HOME,"3,985.71",30/04/2015
Delivery Units,Adults and Communities,Other Agencies - Third Party P,30074602,FRIERN RESIDENTIAL CARE HOME,"3,600.00",30/04/2015
Delivery Units,Adults and Communities,Other Agencies - Third Party P,30074603,FRIERN RESIDENTIAL CARE HOME,"3,985.71",30/04/2015
Delivery Units,Adults and Communities,Other Agencies - Third Party P,30074604,FRIERN RESIDENTIAL CARE HOME,"3,985.71",30/04/2015
Delivery Units,Adults and Communities,Other Agencies - Third Party P,30074605,FRIERN RESIDENTIAL CARE HOME,"3,857.14",30/04/2015
Delivery Units,Adults and Communities,Other Agencies - Third Party P,30074606,FRIERN RESIDENTIAL CARE HOME,"3,985.71",30/04/2015
Delivery Units,Adults and Communities,Other Agencies - Third Party P,30071217,GENTLE HANDS CARE HOMES LIMITED,"4,394.00",07/04/2015
Delivery Units,Adults and Communities,Other Agencies - Third Party P,30071444,GLEBELANDS,"12,000.00",08/04/2015
Delivery Units,Adults and Communities,Other Agencies - Third Party P,30073378,GLENHOLME PSYCHIATRIC AFTER CARE HO,"3,964.89",21/04/2015
Delivery Units,Adults and Communities,Other Agencies - Third Party P,30073406,GLENHOLME PSYCHIATRIC AFTER CARE HO,"3,857.57",21/04/2015
Delivery Units,Adults and Communities,Other Agencies - Third Party P,30073462,GLENHOLME PSYCHIATRIC AFTER CARE HO,"4,071.43",21/04/2015
Delivery Units,Adults and Communities,Other Agencies - Third Party P,30073345,GREENFIELDS RESIDENTIAL HOME,"2,144.91",21/04/2015
Delivery Units,Adults and Communities,Other Agencies - Third Party P,30073346,GREENFIELDS RESIDENTIAL HOME,-824.14,21/04/2015
Delivery Units,Adults and Communities,Other Agencies - Third Party P,30071505,HARDEN,"5,584.01",08/04/2015
Delivery Units,Adults and Communities,Other Agencies - Third Party P,30073150,HARTWIG CARE LIMITED,"1,132.93",20/04/2015
Delivery Units,Adults and Communities,Other Agencies - Third Party P,30073151,HARTWIG CARE LIMITED,"1,211.69",20/04/2015
Delivery Units,Adults and Communities,Other Agencies - Third Party P,30067854,HEADWAY EAST LONDON,376.08,09/04/2015
Delivery Units,Adults and Communities,Other Agencies - Third Party P,30067855,HEADWAY EAST LONDON,340.00,09/04/2015
Delivery Units,Adults and Communities,Other Agencies - Third Party P,30067856,HEADWAY EAST LONDON,340.00,09/04/2015
Delivery Units,Adults and Communities,Other Agencies - Third Party P,30071561,HEADWAY EAST LONDON,376.08,27/04/2015
Delivery Units,Adults and Communities,Other Agencies - Third Party P,30071562,HEADWAY EAST LONDON,340.00,27/04/2015
Delivery Units,Adults and Communities,Other Agencies - Third Party P,30071452,HENRY NIHILL HOUSE,"2,001.92",08/04/2015
Delivery Units,Adults and Communities,Other Agencies - Third Party P,30071453,HENRY NIHILL HOUSE,-495.80,08/04/2015
Delivery Units,Adults and Communities,Other Agencies - Third Party P,30071454,HENRY NIHILL HOUSE,"2,321.92",08/04/2015
Delivery Units,Adults and Communities,Other Agencies - Third Party P,30073903,HILLVIEW COURT NURSING HOME,"3,880.60",23/04/2015
Delivery Units,Adults and Communities,Other Agencies - Third Party P,30071494,HILTON LODGE LTD.,"1,170.02",08/04/2015
Delivery Units,Adults and Communities,Other Agencies - Third Party P,30074563,HILTON LODGE LTD.,"1,638.02",29/04/2015
Delivery Units,Adults and Communities,Other Agencies - Third Party P,30071543,HOLLY HOUSE,"1,748.60",08/04/2015
Delivery Units,Adults and Communities,Other Agencies - Third Party P,30073712,HOLLY HOUSE RESIDENTIAL CARE HOME,"3,421.02",23/04/2015
Delivery Units,Adults and Communities,Other Agencies - Third Party P,30073452,HOME FROM HOME CARE LTD,"9,769.00",21/04/2015
Delivery Units,Adults and Communities,Other Agencies - Third Party P,30073453,HOME FROM HOME CARE LTD,-350.60,21/04/2015
Delivery Units,Adults and Communities,Other Agencies - Third Party P,30071475,HONISTER RESIDENTIAL CARE LTD,"3,432.06",08/04/2015
Delivery Units,Adults and Communities,Other Agencies - Third Party P,30072776,HONISTER RESIDENTIAL CARE LTD,"2,340.04",17/04/2015
Delivery Units,Adults and Communities,Other Agencies - Third Party P,30072309,INDEPENDENCE HOMES LIMITED,"2,900.00",14/04/2015
Delivery Units,Adults and Communities,Other Agencies - Third Party P,30072310,INDEPENDENCE HOMES LIMITED,"5,400.00",14/04/2015
Delivery Units,Adults and Communities,Other Agencies - Third Party P,30071115,INDIVIDUALISED CARE LIMITED,"2,512.00",07/04/2015
Delivery Units,Adults and Communities,Other Agencies - Third Party P,30071116,INDIVIDUALISED CARE LIMITED,912.00,07/04/2015
Delivery Units,Adults and Communities,Other Agencies - Third Party P,30071117,INDIVIDUALISED CARE LIMITED,"2,400.00",07/04/2015
Delivery Units,Adults and Communities,Other Agencies - Third Party P,30071118,INDIVIDUALISED CARE LIMITED,"1,000.00",07/04/2015
Delivery Units,Adults and Communities,Other Agencies - Third Party P,30071119,INDIVIDUALISED CARE LIMITED,700.00,07/04/2015
Delivery Units,Adults and Communities,Other Agencies - Third Party P,30071120,INDIVIDUALISED CARE LIMITED,500.00,07/04/2015
Delivery Units,Adults and Communities,Other Agencies - Third Party P,30071121,INDIVIDUALISED CARE LIMITED,800.00,07/04/2015
Delivery Units,Adults and Communities,Other Agencies - Third Party P,30071122,INDIVIDUALISED CARE LIMITED,552.00,07/04/2015
Delivery Units,Adults and Communities,Other Agencies - Third Party P,30071123,INDIVIDUALISED CARE LIMITED,712.00,07/04/2015
Delivery Units,Adults and Communities,Other Agencies - Third Party P,30071124,INDIVIDUALISED CARE LIMITED,700.00,07/04/2015
Delivery Units,Adults and Communities,Other Agencies - Third Party P,30071126,INDIVIDUALISED CARE LIMITED,255.00,07/04/2015
Delivery Units,Adults and Communities,Other Agencies - Third Party P,30071129,INDIVIDUALISED CARE LIMITED,700.00,07/04/2015
Delivery Units,Adults and Communities,Other Agencies - Third Party P,30071131,INDIVIDUALISED CARE LIMITED,300.00,07/04/2015
Delivery Units,Adults and Communities,Other Agencies - Third Party P,30071132,INDIVIDUALISED CARE LIMITED,476.50,07/04/2015
Delivery Units,Adults and Communities,Other Agencies - Third Party P,30071133,INDIVIDUALISED CARE LIMITED,812.00,07/04/2015
Delivery Units,Adults and Communities,Other Agencies - Third Party P,30071134,INDIVIDUALISED CARE LIMITED,300.00,07/04/2015
Delivery Units,Adults and Communities,Other Agencies - Third Party P,30071135,INDIVIDUALISED CARE LIMITED,300.00,07/04/2015
Delivery Units,Adults and Communities,Other Agencies - Third Party P,30071137,INDIVIDUALISED CARE LIMITED,400.00,07/04/2015
Delivery Units,Adults and Communities,Other Agencies - Third Party P,30071138,INDIVIDUALISED CARE LIMITED,560.00,07/04/2015
Delivery Units,Adults and Communities,Other Agencies - Third Party P,30071139,INDIVIDUALISED CARE LIMITED,600.00,07/04/2015
Delivery Units,Adults and Communities,Other Agencies - Third Party P,30071140,INDIVIDUALISED CARE LIMITED,600.00,07/04/2015
Delivery Units,Adults and Communities,Other Agencies - Third Party P,30071141,INDIVIDUALISED CARE LIMITED,600.00,07/04/2015
Delivery Units,Adults and Communities,Other Agencies - Third Party P,30071142,INDIVIDUALISED CARE LIMITED,300.00,07/04/2015
Delivery Units,Adults and Communities,Other Agencies - Third Party P,30071144,INDIVIDUALISED CARE LIMITED,386.00,07/04/2015
Delivery Units,Adults and Communities,Other Agencies - Third Party P,30071145,INDIVIDUALISED CARE LIMITED,300.00,07/04/2015
Delivery Units,Adults and Communities,Other Agencies - Third Party P,30071148,INDIVIDUALISED CARE LIMITED,"1,000.00",07/04/2015
Delivery Units,Adults and Communities,Other Agencies - Third Party P,30071149,INDIVIDUALISED CARE LIMITED,300.00,07/04/2015
Delivery Units,Adults and Communities,Other Agencies - Third Party P,30071418,INDIVIDUALISED CARE LIMITED,684.00,08/04/2015
Delivery Units,Adults and Communities,Other Agencies - Third Party P,30071420,INDIVIDUALISED CARE LIMITED,700.00,08/04/2015
Delivery Units,Adults and Communities,Other Agencies - Third Party P,30073232,INDIVIDUALISED CARE LIMITED,738.00,21/04/2015
Delivery Units,Adults and Communities,Other Agencies - Third Party P,30071219,ISLINGTON OUTLOOK (ST JOHNS),879.60,07/04/2015
Delivery Units,Adults and Communities,Other Agencies - Third Party P,30071220,ISLINGTON OUTLOOK (ST JOHNS),659.70,07/04/2015
Delivery Units,Adults and Communities,Other Agencies - Third Party P,30071221,ISLINGTON OUTLOOK (ST JOHNS),879.60,07/04/2015
Delivery Units,Adults and Communities,Other Agencies - Third Party P,30071222,ISLINGTON OUTLOOK (ST JOHNS),879.60,07/04/2015
Delivery Units,Adults and Communities,Other Agencies - Third Party P,30073339,JANITH HOMES LTD,"2,564.76",21/04/2015
Delivery Units,Adults and Communities,Other Agencies - Third Party P,30073340,JANITH HOMES LTD,-344.36,21/04/2015
Delivery Units,Adults and Communities,Other Agencies - Third Party P,30071527,JEMINI RESPONSE,"9,100.00",08/04/2015
Delivery Units,Adults and Communities,Other Agencies - Third Party P,30071528,JEMINI RESPONSE,"13,000.00",08/04/2015
Delivery Units,Adults and Communities,Other Agencies - Third Party P,30071473,JEWISH CARE,"11,938.73",08/04/2015
Delivery Units,Adults and Communities,Other Agencies - Third Party P,30074595,JEWISH CARE,289.71,30/04/2015
Delivery Units,Adults and Communities,Other Agencies - Third Party P,30074596,JEWISH CARE,"1,051.00",30/04/2015
Delivery Units,Adults and Communities,Other Agencies - Third Party P,30074597,JEWISH CARE,"1,276.21",30/04/2015
Delivery Units,Adults and Communities,Other Agencies - Third Party P,30071152,JIGSAW CREATIVE CARE LIMITED,"2,824.00",07/04/2015
Delivery Units,Adults and Communities,Other Agencies - Third Party P,30071153,JIGSAW CREATIVE CARE LIMITED,"5,566.00",07/04/2015
Delivery Units,Adults and Communities,Other Agencies - Third Party P,30072267,JIGSAW CREATIVE CARE LIMITED,"5,997.36",14/04/2015
Delivery Units,Adults and Communities,Other Agencies - Third Party P,30072268,JIGSAW CREATIVE CARE LIMITED,"1,412.00",14/04/2015
Delivery Units,Adults and Communities,Other Agencies - Third Party P,30072269,JIGSAW CREATIVE CARE LIMITED,"2,783.00",14/04/2015
Delivery Units,Adults and Communities,Other Agencies - Third Party P,30072410,JIGSAW CREATIVE CARE LIMITED,"2,998.68",15/04/2015
Delivery Units,Adults and Communities,Other Agencies - Third Party P,30072411,JIGSAW CREATIVE CARE LIMITED,"1,412.00",15/04/2015
Delivery Units,Adults and Communities,Other Agencies - Third Party P,30072412,JIGSAW CREATIVE CARE LIMITED,"2,783.00",15/04/2015
Delivery Units,Adults and Communities,Other Agencies - Third Party P,20019299,JOHN NODES FUNERAL SERVICE,350.00,17/04/2015
Delivery Units,Adults and Communities,Other Agencies - Third Party P,30074570,KEMBLE HOUSE,"4,079.15",30/04/2015
Delivery Units,Adults and Communities,Other Agencies - Third Party P,30073329,KENWARD TRUST,"2,480.00",21/04/2015
Delivery Units,Adults and Communities,Other Agencies - Third Party P,30071227,KILCULLEN HOMES (UK) LLP,"1,569.48",07/04/2015
Delivery Units,Adults and Communities,Other Agencies - Third Party P,30072317,KISHARON DAY SCHOOL,"1,464.03",14/04/2015
Delivery Units,Adults and Communities,Other Agencies - Third Party P,30072318,KISHARON DAY SCHOOL,"4,260.72",14/04/2015
Delivery Units,Adults and Communities,Other Agencies - Third Party P,30072319,KISHARON DAY SCHOOL,"2,144.10",14/04/2015
Delivery Units,Adults and Communities,Other Agencies - Third Party P,30072320,KISHARON DAY SCHOOL,"2,284.24",14/04/2015
Delivery Units,Adults and Communities,Other Agencies - Third Party P,30072321,KISHARON DAY SCHOOL,794.08,14/04/2015
Delivery Units,Adults and Communities,Other Agencies - Third Party P,30072322,KISHARON DAY SCHOOL,381.54,14/04/2015
Delivery Units,Adults and Communities,Other Agencies - Third Party P,30072323,KISHARON DAY SCHOOL,"1,373.49",14/04/2015
Delivery Units,Adults and Communities,Other Agencies - Third Party P,30072324,KISHARON DAY SCHOOL,"1,679.87",14/04/2015
Delivery Units,Adults and Communities,Other Agencies - Third Party P,30072325,KISHARON DAY SCHOOL,"1,241.16",14/04/2015
Delivery Units,Adults and Communities,Other Agencies - Third Party P,30072326,KISHARON DAY SCHOOL,"1,369.23",14/04/2015
Delivery Units,Adults and Communities,Other Agencies - Third Party P,30072327,KISHARON DAY SCHOOL,"1,133.60",14/04/2015
Delivery Units,Adults and Communities,Other Agencies - Third Party P,30072328,KISHARON DAY SCHOOL,"1,373.68",14/04/2015
Delivery Units,Adults and Communities,Other Agencies - Third Party P,30072329,KISHARON DAY SCHOOL,733.72,14/04/2015
Delivery Units,Adults and Communities,Other Agencies - Third Party P,30072331,KISHARON DAY SCHOOL,"1,275.96",14/04/2015
Delivery Units,Adults and Communities,Other Agencies - Third Party P,30072335,KISHARON DAY SCHOOL,"1,340.18",14/04/2015
Delivery Units,Adults and Communities,Other Agencies - Third Party P,30072420,KISHARON DAY SCHOOL,"1,373.49",15/04/2015
Delivery Units,Adults and Communities,Other Agencies - Third Party P,30072421,KISHARON DAY SCHOOL,397.11,15/04/2015
Delivery Units,Adults and Communities,Other Agencies - Third Party P,30072422,KISHARON DAY SCHOOL,686.88,15/04/2015
Delivery Units,Adults and Communities,Other Agencies - Third Party P,30072678,KISHARON DAY SCHOOL,"3,098.05",17/04/2015
Delivery Units,Adults and Communities,Other Agencies - Third Party P,30072679,KISHARON DAY SCHOOL,-353.62,17/04/2015
Delivery Units,Adults and Communities,Other Agencies - Third Party P,30072680,KISHARON DAY SCHOOL,"5,044.23",17/04/2015
Delivery Units,Adults and Communities,Other Agencies - Third Party P,30072681,KISHARON DAY SCHOOL,-353.62,17/04/2015
Delivery Units,Adults and Communities,Other Agencies - Third Party P,30072682,KISHARON DAY SCHOOL,"3,098.05",17/04/2015
Delivery Units,Adults and Communities,Other Agencies - Third Party P,30072683,KISHARON DAY SCHOOL,-353.62,17/04/2015
Delivery Units,Adults and Communities,Other Agencies - Third Party P,30072684,KISHARON DAY SCHOOL,"3,098.05",17/04/2015
Delivery Units,Adults and Communities,Other Agencies - Third Party P,30072685,KISHARON DAY SCHOOL,-353.62,17/04/2015
Delivery Units,Adults and Communities,Other Agencies - Third Party P,30071183,LANGDON COMMUNITY LTD,"1,413.60",07/04/2015
Delivery Units,Adults and Communities,Other Agencies - Third Party P,30073135,LANGDON COMMUNITY LTD,"2,403.92",20/04/2015
Delivery Units,Adults and Communities,Other Agencies - Third Party P,30073136,LANGDON COMMUNITY LTD,"2,979.20",20/04/2015
Delivery Units,Adults and Communities,Other Agencies - Third Party P,30073137,LANGDON COMMUNITY LTD,851.20,20/04/2015
Delivery Units,Adults and Communities,Other Agencies - Third Party P,30073141,LANGDON COMMUNITY LTD,"1,276.80",20/04/2015
Delivery Units,Adults and Communities,Other Agencies - Third Party P,30073142,LANGDON COMMUNITY LTD,956.38,20/04/2015
Delivery Units,Adults and Communities,Other Agencies - Third Party P,30073144,LANGDON COMMUNITY LTD,"3,144.56",20/04/2015
Delivery Units,Adults and Communities,Other Agencies - Third Party P,30073146,LANGDON COMMUNITY LTD,"3,411.49",20/04/2015
Delivery Units,Adults and Communities,Other Agencies - Third Party P,30073147,LANGDON COMMUNITY LTD,"1,763.20",20/04/2015
Delivery Units,Adults and Communities,Other Agencies - Third Party P,30073148,LANGDON COMMUNITY LTD,425.60,20/04/2015
Delivery Units,Adults and Communities,Other Agencies - Third Party P,30073149,LANGDON COMMUNITY LTD,"1,772.32",20/04/2015
Delivery Units,Adults and Communities,Other Agencies - Third Party P,30073159,LANGDON COMMUNITY LTD,"2,097.60",20/04/2015
Delivery Units,Adults and Communities,Other Agencies - Third Party P,30073160,LANGDON COMMUNITY LTD,"5,002.64",20/04/2015
Delivery Units,Adults and Communities,Other Agencies - Third Party P,30073172,LANGDON COMMUNITY LTD,"1,315.12",20/04/2015
Delivery Units,Adults and Communities,Other Agencies - Third Party P,30073173,LANGDON COMMUNITY LTD,608.00,20/04/2015
Delivery Units,Adults and Communities,Other Agencies - Third Party P,30073174,LANGDON COMMUNITY LTD,"1,064.00",20/04/2015
Delivery Units,Adults and Communities,Other Agencies - Third Party P,30071540,LEWIS.W.HAMMERSON MEMORIAL HOME,"2,216.41",08/04/2015
Delivery Units,Adults and Communities,Other Agencies - Third Party P,30071541,LEWIS.W.HAMMERSON MEMORIAL HOME,"2,001.92",08/04/2015
Delivery Units,Adults and Communities,Other Agencies - Third Party P,30071542,LEWIS.W.HAMMERSON MEMORIAL HOME,"1,715.93",08/04/2015
Delivery Units,Adults and Communities,Other Agencies - Third Party P,30072822,LIFESTYLE CARE 2011 PLC,"2,138.00",17/04/2015
Delivery Units,Adults and Communities,Other Agencies - Third Party P,30072823,LIFESTYLE CARE 2011 PLC,"2,138.00",17/04/2015
Delivery Units,Adults and Communities,Other Agencies - Third Party P,30072467,LIFEWAYS,"3,145.24",15/04/2015
Delivery Units,Adults and Communities,Other Agencies - Third Party P,30072468,LIFEWAYS,"6,930.00",15/04/2015
Delivery Units,Adults and Communities,Other Agencies - Third Party P,30072469,LIFEWAYS,"5,037.40",15/04/2015
Delivery Units,Adults and Communities,Other Agencies - Third Party P,30072470,LIFEWAYS,"5,943.00",15/04/2015
Delivery Units,Adults and Communities,Other Agencies - Third Party P,30072475,LIFEWAYS,"3,656.00",15/04/2015
Delivery Units,Adults and Communities,Other Agencies - Third Party P,30072476,LIFEWAYS,"5,766.44",15/04/2015
Delivery Units,Adults and Communities,Other Agencies - Third Party P,30072477,LIFEWAYS,"2,377.20",15/04/2015
Delivery Units,Adults and Communities,Other Agencies - Third Party P,30072478,LIFEWAYS,"4,828.24",15/04/2015
Delivery Units,Adults and Communities,Other Agencies - Third Party P,30072481,LIFEWAYS,530.00,15/04/2015
Delivery Units,Adults and Communities,Other Agencies - Third Party P,30072482,LIFEWAYS,"1,060.00",15/04/2015
Delivery Units,Adults and Communities,Other Agencies - Third Party P,30071565,LIONCARE LIMITED,"3,471.27",29/04/2015
Delivery Units,Adults and Communities,Other Agencies - Third Party P,30071477,LIVABILITY,"2,400.00",08/04/2015
Delivery Units,Adults and Communities,Other Agencies - Third Party P,30071503,LIVABILITY,"4,891.20",08/04/2015
Delivery Units,Adults and Communities,Other Agencies - Third Party P,30072777,LIVABILITY,"1,252.95",17/04/2015
Delivery Units,Adults and Communities,Other Agencies - Third Party P,30072779,LIVABILITY,"1,345.14",17/04/2015
Delivery Units,Adults and Communities,Other Agencies - Third Party P,30072780,LIVABILITY,"1,442.57",17/04/2015
Delivery Units,Adults and Communities,Other Agencies - Third Party P,20019355,LYNDON (THE SALVATION ARMY),"1,414.00",21/04/2015
Delivery Units,Adults and Communities,Other Agencies - Third Party P,30071529,MACINTYRE CARE,"4,015.72",08/04/2015
Delivery Units,Adults and Communities,Other Agencies - Third Party P,30071530,MACINTYRE CARE,-319.82,08/04/2015
Delivery Units,Adults and Communities,Other Agencies - Third Party P,30071531,MACINTYRE CARE,"2,332.48",08/04/2015
Delivery Units,Adults and Communities,Other Agencies - Third Party P,30071532,MACINTYRE CARE,-319.82,08/04/2015
Delivery Units,Adults and Communities,Other Agencies - Third Party P,30071533,MACINTYRE CARE,"3,812.84",08/04/2015
Delivery Units,Adults and Communities,Other Agencies - Third Party P,30071534,MACINTYRE CARE,-319.82,08/04/2015
Delivery Units,Adults and Communities,Other Agencies - Third Party P,30071535,MACINTYRE CARE,"3,570.16",08/04/2015
Delivery Units,Adults and Communities,Other Agencies - Third Party P,30071536,MACINTYRE CARE,-319.82,08/04/2015
Delivery Units,Adults and Communities,Other Agencies - Third Party P,30071537,MACINTYRE CARE,"2,326.48",08/04/2015
Delivery Units,Adults and Communities,Other Agencies - Third Party P,30071538,MACINTYRE CARE,-319.82,08/04/2015
Delivery Units,Adults and Communities,Other Agencies - Third Party P,30071539,MACINTYRE CARE,750.40,08/04/2015
Delivery Units,Adults and Communities,Other Agencies - Third Party P,30073441,MACINTYRE CARE,"4,015.72",23/04/2015
Delivery Units,Adults and Communities,Other Agencies - Third Party P,30073442,MACINTYRE CARE,-321.80,23/04/2015
Delivery Units,Adults and Communities,Other Agencies - Third Party P,30073443,MACINTYRE CARE,"2,332.48",23/04/2015
Delivery Units,Adults and Communities,Other Agencies - Third Party P,30073444,MACINTYRE CARE,-321.80,23/04/2015
Delivery Units,Adults and Communities,Other Agencies - Third Party P,30073445,MACINTYRE CARE,750.40,23/04/2015
Delivery Units,Adults and Communities,Other Agencies - Third Party P,30073446,MACINTYRE CARE,"3,570.16",23/04/2015
Delivery Units,Adults and Communities,Other Agencies - Third Party P,30073447,MACINTYRE CARE,-321.80,23/04/2015
Delivery Units,Adults and Communities,Other Agencies - Third Party P,30073448,MACINTYRE CARE,"2,326.48",23/04/2015
Delivery Units,Adults and Communities,Other Agencies - Third Party P,30073449,MACINTYRE CARE,-321.80,23/04/2015
Delivery Units,Adults and Communities,Other Agencies - Third Party P,30073464,MACINTYRE CARE,"3,812.84",23/04/2015
Delivery Units,Adults and Communities,Other Agencies - Third Party P,30073465,MACINTYRE CARE,-321.80,23/04/2015
Delivery Units,Adults and Communities,Other Agencies - Third Party P,30072883,MADELAYNE COURT,"2,216.41",17/04/2015
Delivery Units,Adults and Communities,Other Agencies - Third Party P,30071461,MAISON MOTI LTD,"3,400.00",08/04/2015
Delivery Units,Adults and Communities,Other Agencies - Third Party P,30071462,MAISON MOTI LTD,"3,260.00",08/04/2015
Delivery Units,Adults and Communities,Other Agencies - Third Party P,30071566,MAISON MOTI LTD,"2,240.00",10/04/2015
Delivery Units,Adults and Communities,Other Agencies - Third Party P,30071567,MAISON MOTI LTD,"2,440.00",10/04/2015
Delivery Units,Adults and Communities,Other Agencies - Third Party P,30071568,MAISON MOTI LTD,"2,440.00",10/04/2015
Delivery Units,Adults and Communities,Other Agencies - Third Party P,30071569,MAISON MOTI LTD,"1,026.00",10/04/2015
Delivery Units,Adults and Communities,Other Agencies - Third Party P,30071572,MAISON MOTI LTD,343.40,10/04/2015
Delivery Units,Adults and Communities,Other Agencies - Third Party P,30072316,MAISON MOTI LTD,"1,642.48",14/04/2015
Delivery Units,Adults and Communities,Other Agencies - Third Party P,30073352,MAISON MOTI LTD,803.57,21/04/2015
Delivery Units,Adults and Communities,Other Agencies - Third Party P,30072617,MARRILYNE LODGE,"2,554.16",16/04/2015
Delivery Units,Adults and Communities,Other Agencies - Third Party P,30072618,MARRILYNE LODGE,"2,235.12",16/04/2015
Delivery Units,Adults and Communities,Other Agencies - Third Party P,30069085,MCCH SOCIETY LIMITED,"4,280.00",10/04/2015
Delivery Units,Adults and Communities,Other Agencies - Third Party P,30069086,MCCH SOCIETY LIMITED,-495.80,10/04/2015
Delivery Units,Adults and Communities,Other Agencies - Third Party P,30072881,MCCH SOCIETY LIMITED,"4,280.00",28/04/2015
Delivery Units,Adults and Communities,Other Agencies - Third Party P,30072882,MCCH SOCIETY LIMITED,-495.80,28/04/2015
Delivery Units,Adults and Communities,Other Agencies - Third Party P,30074564,MENTAL HEALTH CARE (UK) LTD,"3,422.83",29/04/2015
Delivery Units,Adults and Communities,Other Agencies - Third Party P,30074565,MENTAL HEALTH CARE (UK) LTD,"10,610.77",29/04/2015
Delivery Units,Adults and Communities,Other Agencies - Third Party P,30074566,MENTAL HEALTH CARE (UK) LTD,"9,583.92",29/04/2015
Delivery Units,Adults and Communities,Other Agencies - Third Party P,30074568,MENTAL HEALTH CARE (UK) LTD,"10,268.49",29/04/2015
Delivery Units,Adults and Communities,Other Agencies - Third Party P,20019738,MENTAL HEALTH CARE (UK) LTD,"10,610.77",30/04/2015
Delivery Units,Adults and Communities,Other Agencies - Third Party P,30071500,METHODIST HOMES FOR THE AGED,"2,001.92",08/04/2015
Delivery Units,Adults and Communities,Other Agencies - Third Party P,30071526,METHODIST HOMES FOR THE AGED,"2,500.00",08/04/2015
Delivery Units,Adults and Communities,Other Agencies - Third Party P,30071547,METHODIST HOMES FOR THE AGED,"2,321.92",08/04/2015
Delivery Units,Adults and Communities,Other Agencies - Third Party P,30071548,METHODIST HOMES FOR THE AGED,-495.80,08/04/2015
Delivery Units,Adults and Communities,Other Agencies - Third Party P,30073455,MILBURY,"6,236.46",21/04/2015
Delivery Units,Adults and Communities,Other Agencies - Third Party P,30073456,MILBURY,-320.86,21/04/2015
Delivery Units,Adults and Communities,Other Agencies - Third Party P,30071474,NAS SERVICES LTD,"7,707.92",20/04/2015
Delivery Units,Adults and Communities,Other Agencies - Third Party P,30074609,NAZARETH HOUSE,"2,001.56",30/04/2015
Delivery Units,Adults and Communities,Other Agencies - Third Party P,30074610,NAZARETH HOUSE,"2,001.92",30/04/2015
Delivery Units,Adults and Communities,Other Agencies - Third Party P,30071223,NEW LEAF RECOVERY CIC,"2,700.00",07/04/2015
Delivery Units,Adults and Communities,Other Agencies - Third Party P,30071432,NEW LEAF RECOVERY CIC,"1,350.00",08/04/2015
Delivery Units,Adults and Communities,Other Agencies - Third Party P,30072611,NEXT STEP SUPPORT LIMITED,"2,240.00",16/04/2015
Delivery Units,Adults and Communities,Other Agencies - Third Party P,30073343,NORTH LONDON CARE SERVICES LTD,"6,058.88",21/04/2015
Delivery Units,Adults and Communities,Other Agencies - Third Party P,30073344,NORTH LONDON CARE SERVICES LTD,-391.92,21/04/2015
Delivery Units,Adults and Communities,Other Agencies - Third Party P,30071352,NORWOOD RAVENSWOOD SCHOOLS LTD,"1,520.00",07/04/2015
Delivery Units,Adults and Communities,Other Agencies - Third Party P,30071353,NORWOOD RAVENSWOOD SCHOOLS LTD,790.40,07/04/2015
Delivery Units,Adults and Communities,Other Agencies - Third Party P,30071366,NORWOOD RAVENSWOOD SCHOOLS LTD,364.80,07/04/2015
Delivery Units,Adults and Communities,Other Agencies - Third Party P,30071371,NORWOOD RAVENSWOOD SCHOOLS LTD,486.40,07/04/2015
Delivery Units,Adults and Communities,Other Agencies - Third Party P,30071587,NORWOOD RAVENSWOOD SCHOOLS LTD,608.00,10/04/2015
Delivery Units,Adults and Communities,Other Agencies - Third Party P,30071588,NORWOOD RAVENSWOOD SCHOOLS LTD,729.60,10/04/2015
Delivery Units,Adults and Communities,Other Agencies - Third Party P,30071589,NORWOOD RAVENSWOOD SCHOOLS LTD,304.00,10/04/2015
Delivery Units,Adults and Communities,Other Agencies - Third Party P,30071593,NORWOOD RAVENSWOOD SCHOOLS LTD,"1,021.44",10/04/2015
Delivery Units,Adults and Communities,Other Agencies - Third Party P,30071597,NORWOOD RAVENSWOOD SCHOOLS LTD,"1,021.44",10/04/2015
Delivery Units,Adults and Communities,Other Agencies - Third Party P,30071599,NORWOOD RAVENSWOOD SCHOOLS LTD,820.80,10/04/2015
Delivery Units,Adults and Communities,Other Agencies - Third Party P,30071602,NORWOOD RAVENSWOOD SCHOOLS LTD,440.00,10/04/2015
Delivery Units,Adults and Communities,Other Agencies - Third Party P,30071603,NORWOOD RAVENSWOOD SCHOOLS LTD,440.00,10/04/2015
Delivery Units,Adults and Communities,Other Agencies - Third Party P,30071604,NORWOOD RAVENSWOOD SCHOOLS LTD,880.00,10/04/2015
Delivery Units,Adults and Communities,Other Agencies - Third Party P,30073714,NORWOOD RAVENSWOOD SCHOOLS LTD,"5,732.00",22/04/2015
Delivery Units,Adults and Communities,Other Agencies - Third Party P,30073715,NORWOOD RAVENSWOOD SCHOOLS LTD,-503.53,22/04/2015
Delivery Units,Adults and Communities,Other Agencies - Third Party P,30073716,NORWOOD RAVENSWOOD SCHOOLS LTD,"6,528.00",22/04/2015
Delivery Units,Adults and Communities,Other Agencies - Third Party P,30073717,NORWOOD RAVENSWOOD SCHOOLS LTD,-321.38,22/04/2015
Delivery Units,Adults and Communities,Other Agencies - Third Party P,30073718,NORWOOD RAVENSWOOD SCHOOLS LTD,"4,656.00",22/04/2015
Delivery Units,Adults and Communities,Other Agencies - Third Party P,30073719,NORWOOD RAVENSWOOD SCHOOLS LTD,-321.38,22/04/2015
Delivery Units,Adults and Communities,Other Agencies - Third Party P,30073722,NORWOOD RAVENSWOOD SCHOOLS LTD,"5,792.00",22/04/2015
Delivery Units,Adults and Communities,Other Agencies - Third Party P,30073723,NORWOOD RAVENSWOOD SCHOOLS LTD,-321.38,22/04/2015
Delivery Units,Adults and Communities,Other Agencies - Third Party P,30073724,NORWOOD RAVENSWOOD SCHOOLS LTD,"7,788.00",22/04/2015
Delivery Units,Adults and Communities,Other Agencies - Third Party P,30073725,NORWOOD RAVENSWOOD SCHOOLS LTD,-503.53,22/04/2015
Delivery Units,Adults and Communities,Other Agencies - Third Party P,30071605,NORWOOD RAVENSWOOD SERVICES LTD,440.00,10/04/2015
Delivery Units,Adults and Communities,Other Agencies - Third Party P,30072840,NOTTING HILL HOUSING TRUST,"19,136.25",17/04/2015
Delivery Units,Adults and Communities,Other Agencies - Third Party P,30072378,OLYMPUS CARE SERVICES LTD,480.00,14/04/2015
Delivery Units,Adults and Communities,Other Agencies - Third Party P,30071433,ONE STEP (SUPPORT) LTD,"1,339.80",08/04/2015
Delivery Units,Adults and Communities,Other Agencies - Third Party P,30071434,ONE STEP (SUPPORT) LTD,"3,395.80",08/04/2015
Delivery Units,Adults and Communities,Other Agencies - Third Party P,30071435,ONE STEP (SUPPORT) LTD,638.00,08/04/2015
Delivery Units,Adults and Communities,Other Agencies - Third Party P,30071436,ONE STEP (SUPPORT) LTD,956.00,08/04/2015
Delivery Units,Adults and Communities,Other Agencies - Third Party P,30071441,ONE STEP (SUPPORT) LTD,"2,618.20",08/04/2015
Delivery Units,Adults and Communities,Other Agencies - Third Party P,30072405,ONE STEP (SUPPORT) LTD,638.00,14/04/2015
Delivery Units,Adults and Communities,Other Agencies - Third Party P,30071573,ORIGIN HOUSING LIMITED,"1,065.60",10/04/2015
Delivery Units,Adults and Communities,Other Agencies - Third Party P,30071607,ORIGIN HOUSING LIMITED,"1,728.00",10/04/2015
Delivery Units,Adults and Communities,Other Agencies - Third Party P,30071608,ORIGIN HOUSING LIMITED,"1,728.00",10/04/2015
Delivery Units,Adults and Communities,Other Agencies - Third Party P,30071609,ORIGIN HOUSING LIMITED,"1,324.80",10/04/2015
Delivery Units,Adults and Communities,Other Agencies - Third Party P,30071611,ORIGIN HOUSING LIMITED,"1,728.00",10/04/2015
Delivery Units,Adults and Communities,Other Agencies - Third Party P,30071612,ORIGIN HOUSING LIMITED,"1,728.00",10/04/2015
Delivery Units,Adults and Communities,Other Agencies - Third Party P,30071613,ORIGIN HOUSING LIMITED,"1,324.80",10/04/2015
Delivery Units,Adults and Communities,Other Agencies - Third Party P,30071614,ORIGIN HOUSING LIMITED,"1,065.60",10/04/2015
Delivery Units,Adults and Communities,Other Agencies - Third Party P,30072407,ORIGIN HOUSING LIMITED,485.73,14/04/2015
Delivery Units,Adults and Communities,Other Agencies - Third Party P,30061946,P J CARE LTD,"7,517.50",24/04/2015
Delivery Units,Adults and Communities,Other Agencies - Third Party P,30066105,P J CARE LTD,"11,377.80",24/04/2015
Delivery Units,Adults and Communities,Other Agencies - Third Party P,30066106,P J CARE LTD,"11,757.06",24/04/2015
Delivery Units,Adults and Communities,Other Agencies - Third Party P,30066107,P J CARE LTD,"-4,102.80",24/04/2015
Delivery Units,Adults and Communities,Other Agencies - Third Party P,30066108,P J CARE LTD,"-4,239.56",24/04/2015
Delivery Units,Adults and Communities,Other Agencies - Third Party P,30066359,P J CARE LTD,"6,790.00",24/04/2015
Delivery Units,Adults and Communities,Other Agencies - Third Party P,30073336,PAULMAY RESIDENTIAL HOME,"2,184.04",23/04/2015
Delivery Units,Adults and Communities,Other Agencies - Third Party P,30072385,PILLARCARE,"6,554.00",14/04/2015
Delivery Units,Adults and Communities,Other Agencies - Third Party P,30072254,PLAN PERSONNEL,302.57,14/04/2015
Delivery Units,Adults and Communities,Other Agencies - Third Party P,30074274,PLATINUM HEALTH RESOURCES LTD,"1,597.84",27/04/2015
Delivery Units,Adults and Communities,Other Agencies - Third Party P,30071102,PROSPECTS STAFF BUREAU LTD,356.50,07/04/2015
Delivery Units,Adults and Communities,Other Agencies - Third Party P,30072927,PROSPECTS STAFF BUREAU LTD,373.75,20/04/2015
Delivery Units,Adults and Communities,Other Agencies - Third Party P,30071421,PRT BARNET CARERS CENTRE,"2,120.40",08/04/2015
Delivery Units,Adults and Communities,Other Agencies - Third Party P,30072259,PRT BARNET CARERS CENTRE,"2,145.61",14/04/2015
Delivery Units,Adults and Communities,Other Agencies - Third Party P,30072676,QUANTUM CARE LIMITED,"2,320.53",17/04/2015
Delivery Units,Adults and Communities,Other Agencies - Third Party P,30072677,QUANTUM CARE LIMITED,-548.92,17/04/2015
Delivery Units,Adults and Communities,Other Agencies - Third Party P,30073349,QUANTUM CARE LIMITED,"2,922.86",21/04/2015
Delivery Units,Adults and Communities,Other Agencies - Third Party P,30073350,QUANTUM CARE LIMITED,"2,321.90",21/04/2015
Delivery Units,Adults and Communities,Other Agencies - Third Party P,30071451,RAINBOW HOMES LONDON LTD,"4,110.60",08/04/2015
Delivery Units,Adults and Communities,Other Agencies - Third Party P,30071458,REHABILITATION EDUCATION AND,"3,348.00",08/04/2015
Delivery Units,Adults and Communities,Other Agencies - Third Party P,30071459,REHABILITATION EDUCATION AND,-495.80,08/04/2015
Delivery Units,Adults and Communities,Other Agencies - Third Party P,30073351,RIDGEWAY NURSING HOME,"2,357.10",21/04/2015
Delivery Units,Adults and Communities,Other Agencies - Third Party P,30071506,ROSEACRES CARE HOME LIMITED,"2,340.04",09/04/2015
Delivery Units,Adults and Communities,Other Agencies - Third Party P,30071507,ROSEACRES CARE HOME LIMITED,"1,872.03",09/04/2015
Delivery Units,Adults and Communities,Other Agencies - Third Party P,30071508,ROSEACRES CARE HOME LIMITED,"2,418.04",09/04/2015
Delivery Units,Adults and Communities,Other Agencies - Third Party P,30071510,ROSEACRES CARE HOME LIMITED,"2,418.04",09/04/2015
Delivery Units,Adults and Communities,Other Agencies - Third Party P,30071511,ROSEACRES CARE HOME LIMITED,"2,418.04",09/04/2015
Delivery Units,Adults and Communities,Other Agencies - Third Party P,30071512,ROSEACRES CARE HOME LIMITED,"2,418.04",09/04/2015
Delivery Units,Adults and Communities,Other Agencies - Third Party P,30071513,ROSEACRES CARE HOME LIMITED,"2,418.04",09/04/2015
Delivery Units,Adults and Communities,Other Agencies - Third Party P,30071514,ROSEACRES CARE HOME LIMITED,"2,418.04",09/04/2015
Delivery Units,Adults and Communities,Other Agencies - Third Party P,30071515,ROSEACRES CARE HOME LIMITED,"2,418.04",09/04/2015
Delivery Units,Adults and Communities,Other Agencies - Third Party P,30071516,ROSEACRES CARE HOME LIMITED,"1,482.03",09/04/2015
Delivery Units,Adults and Communities,Other Agencies - Third Party P,30071517,ROSEACRES CARE HOME LIMITED,"2,418.04",09/04/2015
Delivery Units,Adults and Communities,Other Agencies - Third Party P,30071518,ROSEACRES CARE HOME LIMITED,"2,418.04",09/04/2015
Delivery Units,Adults and Communities,Other Agencies - Third Party P,30071519,ROSEACRES CARE HOME LIMITED,"2,418.04",09/04/2015
Delivery Units,Adults and Communities,Other Agencies - Third Party P,30071520,ROSEACRES CARE HOME LIMITED,"2,418.04",09/04/2015
Delivery Units,Adults and Communities,Other Agencies - Third Party P,30071521,ROSEACRES CARE HOME LIMITED,"2,418.04",09/04/2015
Delivery Units,Adults and Communities,Other Agencies - Third Party P,30071522,ROSEACRES CARE HOME LIMITED,"2,418.04",09/04/2015
Delivery Units,Adults and Communities,Other Agencies - Third Party P,30071523,ROSEACRES CARE HOME LIMITED,"2,418.04",09/04/2015
Delivery Units,Adults and Communities,Other Agencies - Third Party P,30071524,ROSEACRES CARE HOME LIMITED,"2,418.04",09/04/2015
Delivery Units,Adults and Communities,Other Agencies - Third Party P,30071525,ROSEACRES CARE HOME LIMITED,"2,418.04",09/04/2015
Delivery Units,Adults and Communities,Other Agencies - Third Party P,30073711,ROSEACRES CARE HOME LIMITED,624.01,22/04/2015
Delivery Units,Adults and Communities,Other Agencies - Third Party P,30072312,ROYAL MENCAP SOCIETY,"1,722.60",14/04/2015
Delivery Units,Adults and Communities,Other Agencies - Third Party P,30072313,ROYAL MENCAP SOCIETY,"1,595.00",14/04/2015
Delivery Units,Adults and Communities,Other Agencies - Third Party P,30071179,SANCTUARY HOUSING ASSOCIATION,"23,940.00",07/04/2015
Delivery Units,Adults and Communities,Other Agencies - Third Party P,30072625,SAXON COURT,392.60,29/04/2015
Delivery Units,Adults and Communities,Other Agencies - Third Party P,30072627,SAXON COURT,392.59,29/04/2015
Delivery Units,Adults and Communities,Other Agencies - Third Party P,30069557,SCIMITAR CARE HOTELS PLC,"3,428.57",01/04/2015
Delivery Units,Adults and Communities,Other Agencies - Third Party P,30069787,SCIMITAR CARE HOTELS PLC,362.00,13/04/2015
Delivery Units,Adults and Communities,Other Agencies - Third Party P,30073405,SCIMITAR CARE HOTELS PLC,"2,340.04",21/04/2015
Delivery Units,Adults and Communities,Other Agencies - Third Party P,30071484,SCIMITAR CARE HOTELS PLC,"1,357.50",23/04/2015
Delivery Units,Adults and Communities,Other Agencies - Third Party P,30071442,SCOPE,"4,000.00",08/04/2015
Delivery Units,Adults and Communities,Other Agencies - Third Party P,30071443,SCOPE,-362.80,08/04/2015
Delivery Units,Adults and Communities,Other Agencies - Third Party P,30071554,SCOPE,368.32,10/04/2015
Delivery Units,Adults and Communities,Other Agencies - Third Party P,30072790,SEAFORTH LODGE,"2,340.04",17/04/2015
Delivery Units,Adults and Communities,Other Agencies - Third Party P,30072806,SEAFORTH LODGE,"2,144.91",17/04/2015
Delivery Units,Adults and Communities,Other Agencies - Third Party P,30072887,SEAFORTH LODGE,"2,340.04",17/04/2015
Delivery Units,Adults and Communities,Other Agencies - Third Party P,30072888,SEAFORTH LODGE,"2,340.04",17/04/2015
Delivery Units,Adults and Communities,Other Agencies - Third Party P,30073360,SEAFORTH LODGE,"2,340.04",21/04/2015
Delivery Units,Adults and Communities,Other Agencies - Third Party P,30071186,SELF UNLIMITED-LONDON REGION,"2,120.72",07/04/2015
Delivery Units,Adults and Communities,Other Agencies - Third Party P,30071187,SELF UNLIMITED-LONDON REGION,"10,929.04",07/04/2015
Delivery Units,Adults and Communities,Other Agencies - Third Party P,30071188,SELF UNLIMITED-LONDON REGION,"1,921.28",07/04/2015
Delivery Units,Adults and Communities,Other Agencies - Third Party P,30071189,SELF UNLIMITED-LONDON REGION,"2,120.72",07/04/2015
Delivery Units,Adults and Communities,Other Agencies - Third Party P,30071190,SELF UNLIMITED-LONDON REGION,"4,221.36",07/04/2015
Delivery Units,Adults and Communities,Other Agencies - Third Party P,30071191,SELF UNLIMITED-LONDON REGION,"3,947.12",07/04/2015
Delivery Units,Adults and Communities,Other Agencies - Third Party P,30071192,SELF UNLIMITED-LONDON REGION,"1,781.44",07/04/2015
Delivery Units,Adults and Communities,Other Agencies - Third Party P,30071193,SELF UNLIMITED-LONDON REGION,"1,690.24",07/04/2015
Delivery Units,Adults and Communities,Other Agencies - Third Party P,30071194,SELF UNLIMITED-LONDON REGION,"1,088.32",07/04/2015
Delivery Units,Adults and Communities,Other Agencies - Third Party P,30071195,SELF UNLIMITED-LONDON REGION,"4,025.56",07/04/2015
Delivery Units,Adults and Communities,Other Agencies - Third Party P,30071196,SELF UNLIMITED-LONDON REGION,"3,279.56",07/04/2015
Delivery Units,Adults and Communities,Other Agencies - Third Party P,30071197,SELF UNLIMITED-LONDON REGION,"1,459.20",07/04/2015
Delivery Units,Adults and Communities,Other Agencies - Third Party P,30071198,SELF UNLIMITED-LONDON REGION,"6,157.84",07/04/2015
Delivery Units,Adults and Communities,Other Agencies - Third Party P,30071199,SELF UNLIMITED-LONDON REGION,"3,240.64",07/04/2015
Delivery Units,Adults and Communities,Other Agencies - Third Party P,30071200,SELF UNLIMITED-LONDON REGION,"2,783.44",07/04/2015
Delivery Units,Adults and Communities,Other Agencies - Third Party P,30071201,SELF UNLIMITED-LONDON REGION,"2,145.04",07/04/2015
Delivery Units,Adults and Communities,Other Agencies - Third Party P,30071202,SELF UNLIMITED-LONDON REGION,"3,432.76",07/04/2015
Delivery Units,Adults and Communities,Other Agencies - Third Party P,30071203,SELF UNLIMITED-LONDON REGION,"4,496.16",07/04/2015
Delivery Units,Adults and Communities,Other Agencies - Third Party P,30071204,SELF UNLIMITED-LONDON REGION,"10,929.04",07/04/2015
Delivery Units,Adults and Communities,Other Agencies - Third Party P,30071205,SELF UNLIMITED-LONDON REGION,"3,947.12",07/04/2015
Delivery Units,Adults and Communities,Other Agencies - Third Party P,30071206,SELF UNLIMITED-LONDON REGION,"3,149.44",07/04/2015
Delivery Units,Adults and Communities,Other Agencies - Third Party P,30071207,SELF UNLIMITED-LONDON REGION,"1,094.40",07/04/2015
Delivery Units,Adults and Communities,Other Agencies - Third Party P,30071208,SELF UNLIMITED-LONDON REGION,"1,428.80",07/04/2015
Delivery Units,Adults and Communities,Other Agencies - Third Party P,30071209,SELF UNLIMITED-LONDON REGION,"4,859.12",07/04/2015
Delivery Units,Adults and Communities,Other Agencies - Third Party P,30071210,SELF UNLIMITED-LONDON REGION,"1,921.28",07/04/2015
Delivery Units,Adults and Communities,Other Agencies - Third Party P,30071211,SELF UNLIMITED-LONDON REGION,"1,914.00",07/04/2015
Delivery Units,Adults and Communities,Other Agencies - Third Party P,30071212,SELF UNLIMITED-LONDON REGION,"2,926.32",07/04/2015
Delivery Units,Adults and Communities,Other Agencies - Third Party P,30071213,SELF UNLIMITED-LONDON REGION,"2,110.96",07/04/2015
Delivery Units,Adults and Communities,Other Agencies - Third Party P,30071214,SELF UNLIMITED-LONDON REGION,"1,177.20",07/04/2015
Delivery Units,Adults and Communities,Other Agencies - Third Party P,30071570,SELF UNLIMITED-LONDON REGION,"1,520.00",10/04/2015
Delivery Units,Adults and Communities,Other Agencies - Third Party P,30071571,SELF UNLIMITED-LONDON REGION,"2,342.64",10/04/2015
Delivery Units,Adults and Communities,Other Agencies - Third Party P,20019136,SELF UNLIMITED-LONDON REGION,"2,948.23",13/04/2015
Delivery Units,Adults and Communities,Other Agencies - Third Party P,30072379,SELF UNLIMITED-LONDON REGION,"3,920.00",14/04/2015
Delivery Units,Adults and Communities,Other Agencies - Third Party P,30072380,SELF UNLIMITED-LONDON REGION,"3,920.00",14/04/2015
Delivery Units,Adults and Communities,Other Agencies - Third Party P,30072381,SELF UNLIMITED-LONDON REGION,"3,920.00",14/04/2015
Delivery Units,Adults and Communities,Other Agencies - Third Party P,20019354,SELF UNLIMITED-LONDON REGION,"2,948.23",21/04/2015
Delivery Units,Adults and Communities,Other Agencies - Third Party P,30073326,SELF UNLIMITED-LONDON REGION,288.80,21/04/2015
Delivery Units,Adults and Communities,Other Agencies - Third Party P,30072391,SENSE CAS FINANCE TEAM,"2,413.60",14/04/2015
Delivery Units,Adults and Communities,Other Agencies - Third Party P,30072392,SENSE CAS FINANCE TEAM,"3,866.28",14/04/2015
Delivery Units,Adults and Communities,Other Agencies - Third Party P,30072841,SENSE CAS FINANCE TEAM,"8,206.94",17/04/2015
Delivery Units,Adults and Communities,Other Agencies - Third Party P,30072842,SENSE CAS FINANCE TEAM,-548.92,17/04/2015
Delivery Units,Adults and Communities,Other Agencies - Third Party P,30072843,SENSE CAS FINANCE TEAM,"6,658.37",17/04/2015
Delivery Units,Adults and Communities,Other Agencies - Third Party P,30072844,SENSE CAS FINANCE TEAM,-411.39,17/04/2015
Delivery Units,Adults and Communities,Other Agencies - Third Party P,30072845,SENSE CAS FINANCE TEAM,"7,015.18",17/04/2015
Delivery Units,Adults and Communities,Other Agencies - Third Party P,30072846,SENSE CAS FINANCE TEAM,-330.81,17/04/2015
Delivery Units,Adults and Communities,Other Agencies - Third Party P,30072847,SENSE CAS FINANCE TEAM,"4,616.85",17/04/2015
Delivery Units,Adults and Communities,Other Agencies - Third Party P,30072848,SENSE CAS FINANCE TEAM,-411.39,17/04/2015
Delivery Units,Adults and Communities,Other Agencies - Third Party P,30072387,SGSL LTD,"2,880.00",14/04/2015
Delivery Units,Adults and Communities,Other Agencies - Third Party P,30074136,SGSL LTD,"2,880.00",24/04/2015
Delivery Units,Adults and Communities,Other Agencies - Third Party P,30072382,SHINE PARTNERSHIPS LTD,"2,016.00",14/04/2015
Delivery Units,Adults and Communities,Other Agencies - Third Party P,30072386,SHINE PARTNERSHIPS LTD,"2,640.00",14/04/2015
Delivery Units,Adults and Communities,Other Agencies - Third Party P,30072393,SHINE PARTNERSHIPS LTD,"2,640.00",14/04/2015
Delivery Units,Adults and Communities,Other Agencies - Third Party P,30072652,SIGN HEALTH,"10,185.71",17/04/2015
Delivery Units,Adults and Communities,Other Agencies - Third Party P,30072653,SIGN HEALTH,-273.24,17/04/2015
Delivery Units,Adults and Communities,Other Agencies - Third Party P,30072793,SISTERS OF CHARITY SETON UNIT,"2,216.41",17/04/2015
Delivery Units,Adults and Communities,Other Agencies - Third Party P,30072794,SISTERS OF CHARITY SETON UNIT,-548.92,17/04/2015
Delivery Units,Adults and Communities,Other Agencies - Third Party P,30073333,SNEH CARE,358.00,21/04/2015
Delivery Units,Adults and Communities,Other Agencies - Third Party P,30072608,SODEXO HEALTHCARE SERVICES LTD,"5,616.63",16/04/2015
Delivery Units,Adults and Communities,Other Agencies - Third Party P,30072537,SOMA HEALTHCARE LTD,330.00,16/04/2015
Delivery Units,Adults and Communities,Other Agencies - Third Party P,30072538,SOMA HEALTHCARE LTD,360.00,16/04/2015
Delivery Units,Adults and Communities,Other Agencies - Third Party P,30072539,SOMA HEALTHCARE LTD,457.50,16/04/2015
Delivery Units,Adults and Communities,Other Agencies - Third Party P,30072540,SOMA HEALTHCARE LTD,440.00,16/04/2015
Delivery Units,Adults and Communities,Other Agencies - Third Party P,30072541,SOMA HEALTHCARE LTD,396.00,16/04/2015
Delivery Units,Adults and Communities,Other Agencies - Third Party P,30074624,SOUTHDOWN HOUSING ASSOC. LIMITED,-319.40,30/04/2015
Delivery Units,Adults and Communities,Other Agencies - Third Party P,30074626,SOUTHDOWN HOUSING ASSOC. LIMITED,-319.40,30/04/2015
Delivery Units,Adults and Communities,Other Agencies - Third Party P,30074628,SOUTHDOWN HOUSING ASSOC. LIMITED,-319.40,30/04/2015
Delivery Units,Adults and Communities,Other Agencies - Third Party P,30072879,ST AGNELL'S HOUSE (CARETECH),"5,978.57",17/04/2015
Delivery Units,Adults and Communities,Other Agencies - Third Party P,30071455,ST DOMINIC'S NURSING HOME,"2,094.52",08/04/2015
Delivery Units,Adults and Communities,Other Agencies - Third Party P,30073439,ST ELIZABETH'S CENTRE,"4,211.40",21/04/2015
Delivery Units,Adults and Communities,Other Agencies - Third Party P,30073440,ST ELIZABETH'S CENTRE,-541.22,21/04/2015
Delivery Units,Adults and Communities,Other Agencies - Third Party P,30072284,ST JOSEPH'S PASTORAL CENTRE,624.00,14/04/2015
Delivery Units,Adults and Communities,Other Agencies - Third Party P,30072285,ST JOSEPH'S PASTORAL CENTRE,640.00,14/04/2015
Delivery Units,Adults and Communities,Other Agencies - Third Party P,30072287,ST JOSEPH'S PASTORAL CENTRE,496.00,14/04/2015
Delivery Units,Adults and Communities,Other Agencies - Third Party P,30072292,ST JOSEPH'S PASTORAL CENTRE,292.00,14/04/2015
Delivery Units,Adults and Communities,Other Agencies - Third Party P,30072283,ST JOSEPH'S PASTORAL CENTRE,628.00,15/04/2015
Delivery Units,Adults and Communities,Other Agencies - Third Party P,30073451,ST MARTIN OF TOURS HA LTD,"3,642.86",21/04/2015
Delivery Units,Adults and Communities,Other Agencies - Third Party P,30071468,ST MUNGO ASSOCIATION,"2,720.00",08/04/2015
Delivery Units,Adults and Communities,Other Agencies - Third Party P,30071469,ST MUNGO ASSOCIATION,-495.80,08/04/2015
Delivery Units,Adults and Communities,Other Agencies - Third Party P,30071456,ST RAPHAELS HOME,"2,462.28",08/04/2015
Delivery Units,Adults and Communities,Other Agencies - Third Party P,30071457,ST RAPHAELS HOME,-548.92,08/04/2015
Delivery Units,Adults and Communities,Other Agencies - Third Party P,30071431,ST. MARK'S DAY SERVICE,"1,999.08",10/04/2015
Delivery Units,Adults and Communities,Other Agencies - Third Party P,30073365,ST.DAVIDS CARE IN THE,"3,801.90",29/04/2015
Delivery Units,Adults and Communities,Other Agencies - Third Party P,30073366,ST.DAVIDS CARE IN THE,-344.32,29/04/2015
Delivery Units,Adults and Communities,Other Agencies - Third Party P,30071467,SUNRIDGE HOUSING ASSOCIATION LTD,-560.16,08/04/2015
Delivery Units,Adults and Communities,Other Agencies - Third Party P,30072752,SWANBOROUGH HOUSE,"3,722.44",17/04/2015
Delivery Units,Adults and Communities,Other Agencies - Third Party P,30071173,SWEETTREE HOME CARE SERVICES,700.00,07/04/2015
Delivery Units,Adults and Communities,Other Agencies - Third Party P,30071550,SYDMAR LODGE,"2,184.04",09/04/2015
Delivery Units,Adults and Communities,Other Agencies - Third Party P,30074395,THE BARNETGROUP LIMITED,881.60,28/04/2015
Delivery Units,Adults and Communities,Other Agencies - Third Party P,30072732,THE CONIFERS,"2,497.59",17/04/2015
Delivery Units,Adults and Communities,Other Agencies - Third Party P,30072733,THE CONIFERS,-522.35,17/04/2015
Delivery Units,Adults and Communities,Other Agencies - Third Party P,30073700,THE DISABILITIES TRUST,"7,507.80",22/04/2015
Delivery Units,Adults and Communities,Other Agencies - Third Party P,30072343,THE EXTRA MILE CARE CO LTD,666.96,14/04/2015
Delivery Units,Adults and Communities,Other Agencies - Third Party P,30072344,THE EXTRA MILE CARE CO LTD,613.64,14/04/2015
Delivery Units,Adults and Communities,Other Agencies - Third Party P,30072348,THE EXTRA MILE CARE CO LTD,304.06,14/04/2015
Delivery Units,Adults and Communities,Other Agencies - Third Party P,30072349,THE EXTRA MILE CARE CO LTD,306.82,14/04/2015
Delivery Units,Adults and Communities,Other Agencies - Third Party P,30072350,THE EXTRA MILE CARE CO LTD,306.82,14/04/2015
Delivery Units,Adults and Communities,Other Agencies - Third Party P,30072351,THE EXTRA MILE CARE CO LTD,"1,293.84",14/04/2015
Delivery Units,Adults and Communities,Other Agencies - Third Party P,30072352,THE EXTRA MILE CARE CO LTD,298.90,14/04/2015
Delivery Units,Adults and Communities,Other Agencies - Third Party P,30072353,THE EXTRA MILE CARE CO LTD,"1,150.72",14/04/2015
Delivery Units,Adults and Communities,Other Agencies - Third Party P,30072354,THE EXTRA MILE CARE CO LTD,910.00,14/04/2015
Delivery Units,Adults and Communities,Other Agencies - Third Party P,30072355,THE EXTRA MILE CARE CO LTD,306.80,14/04/2015
Delivery Units,Adults and Communities,Other Agencies - Third Party P,30072357,THE EXTRA MILE CARE CO LTD,264.50,14/04/2015
Delivery Units,Adults and Communities,Other Agencies - Third Party P,30072359,THE EXTRA MILE CARE CO LTD,"1,389.08",14/04/2015
Delivery Units,Adults and Communities,Other Agencies - Third Party P,30072360,THE EXTRA MILE CARE CO LTD,494.62,14/04/2015
Delivery Units,Adults and Communities,Other Agencies - Third Party P,30072361,THE EXTRA MILE CARE CO LTD,537.08,14/04/2015
Delivery Units,Adults and Communities,Other Agencies - Third Party P,30072362,THE EXTRA MILE CARE CO LTD,767.34,14/04/2015
Delivery Units,Adults and Communities,Other Agencies - Third Party P,30072365,THE EXTRA MILE CARE CO LTD,830.68,14/04/2015
Delivery Units,Adults and Communities,Other Agencies - Third Party P,30072366,THE EXTRA MILE CARE CO LTD,939.22,14/04/2015
Delivery Units,Adults and Communities,Other Agencies - Third Party P,30072367,THE EXTRA MILE CARE CO LTD,383.38,14/04/2015
Delivery Units,Adults and Communities,Other Agencies - Third Party P,30072368,THE EXTRA MILE CARE CO LTD,306.82,14/04/2015
Delivery Units,Adults and Communities,Other Agencies - Third Party P,30072369,THE EXTRA MILE CARE CO LTD,941.58,14/04/2015
Delivery Units,Adults and Communities,Other Agencies - Third Party P,30072370,THE EXTRA MILE CARE CO LTD,"1,908.06",14/04/2015
Delivery Units,Adults and Communities,Other Agencies - Third Party P,30072371,THE EXTRA MILE CARE CO LTD,809.70,14/04/2015
Delivery Units,Adults and Communities,Other Agencies - Third Party P,30072372,THE EXTRA MILE CARE CO LTD,296.24,14/04/2015
Delivery Units,Adults and Communities,Other Agencies - Third Party P,30072373,THE EXTRA MILE CARE CO LTD,613.64,14/04/2015
Delivery Units,Adults and Communities,Other Agencies - Third Party P,30072374,THE EXTRA MILE CARE CO LTD,"1,074.16",14/04/2015
Delivery Units,Adults and Communities,Other Agencies - Third Party P,30072375,THE EXTRA MILE CARE CO LTD,767.34,14/04/2015
Delivery Units,Adults and Communities,Other Agencies - Third Party P,30072376,THE EXTRA MILE CARE CO LTD,304.26,14/04/2015
Delivery Units,Adults and Communities,Other Agencies - Third Party P,30072425,THE EXTRA MILE CARE CO LTD,537.08,15/04/2015
Delivery Units,Adults and Communities,Other Agencies - Third Party P,30072427,THE EXTRA MILE CARE CO LTD,460.52,15/04/2015
Delivery Units,Adults and Communities,Other Agencies - Third Party P,30072428,THE EXTRA MILE CARE CO LTD,306.82,15/04/2015
Delivery Units,Adults and Communities,Other Agencies - Third Party P,30072429,THE EXTRA MILE CARE CO LTD,545.99,15/04/2015
Delivery Units,Adults and Communities,Other Agencies - Third Party P,30072430,THE EXTRA MILE CARE CO LTD,460.52,15/04/2015
Delivery Units,Adults and Communities,Other Agencies - Third Party P,30072431,THE EXTRA MILE CARE CO LTD,"1,296.48",15/04/2015
Delivery Units,Adults and Communities,Other Agencies - Third Party P,30072432,THE EXTRA MILE CARE CO LTD,732.80,15/04/2015
Delivery Units,Adults and Communities,Other Agencies - Third Party P,30072434,THE EXTRA MILE CARE CO LTD,"1,013.18",15/04/2015
Delivery Units,Adults and Communities,Other Agencies - Third Party P,30072435,THE EXTRA MILE CARE CO LTD,264.50,15/04/2015
Delivery Units,Adults and Communities,Other Agencies - Third Party P,30072436,THE EXTRA MILE CARE CO LTD,"2,563.83",15/04/2015
Delivery Units,Adults and Communities,Other Agencies - Third Party P,30072438,THE EXTRA MILE CARE CO LTD,687.68,15/04/2015
Delivery Units,Adults and Communities,Other Agencies - Third Party P,30072439,THE EXTRA MILE CARE CO LTD,923.22,15/04/2015
Delivery Units,Adults and Communities,Other Agencies - Third Party P,30072440,THE EXTRA MILE CARE CO LTD,296.24,15/04/2015
Delivery Units,Adults and Communities,Other Agencies - Third Party P,30072441,THE EXTRA MILE CARE CO LTD,"1,740.80",15/04/2015
Delivery Units,Adults and Communities,Other Agencies - Third Party P,30072442,THE EXTRA MILE CARE CO LTD,277.62,15/04/2015
Delivery Units,Adults and Communities,Other Agencies - Third Party P,30072443,THE EXTRA MILE CARE CO LTD,"1,524.08",15/04/2015
Delivery Units,Adults and Communities,Other Agencies - Third Party P,30072444,THE EXTRA MILE CARE CO LTD,481.52,15/04/2015
Delivery Units,Adults and Communities,Other Agencies - Third Party P,30072445,THE EXTRA MILE CARE CO LTD,820.22,15/04/2015
Delivery Units,Adults and Communities,Other Agencies - Third Party P,30072446,THE EXTRA MILE CARE CO LTD,613.64,15/04/2015
Delivery Units,Adults and Communities,Other Agencies - Third Party P,30072447,THE EXTRA MILE CARE CO LTD,605.70,15/04/2015
Delivery Units,Adults and Communities,Other Agencies - Third Party P,30072448,THE EXTRA MILE CARE CO LTD,388.92,15/04/2015
Delivery Units,Adults and Communities,Other Agencies - Third Party P,30072449,THE EXTRA MILE CARE CO LTD,306.82,15/04/2015
Delivery Units,Adults and Communities,Other Agencies - Third Party P,30072451,THE EXTRA MILE CARE CO LTD,983.98,15/04/2015
Delivery Units,Adults and Communities,Other Agencies - Third Party P,30072453,THE EXTRA MILE CARE CO LTD,613.64,15/04/2015
Delivery Units,Adults and Communities,Other Agencies - Third Party P,30072454,THE EXTRA MILE CARE CO LTD,420.82,15/04/2015
Delivery Units,Adults and Communities,Other Agencies - Third Party P,30072456,THE EXTRA MILE CARE CO LTD,531.56,15/04/2015
Delivery Units,Adults and Communities,Other Agencies - Third Party P,30072457,THE EXTRA MILE CARE CO LTD,"1,148.08",15/04/2015
Delivery Units,Adults and Communities,Other Agencies - Third Party P,30072458,THE EXTRA MILE CARE CO LTD,383.38,15/04/2015
Delivery Units,Adults and Communities,Other Agencies - Third Party P,30072459,THE EXTRA MILE CARE CO LTD,766.76,15/04/2015
Delivery Units,Adults and Communities,Other Agencies - Third Party P,30072460,THE EXTRA MILE CARE CO LTD,535.41,15/04/2015
Delivery Units,Adults and Communities,Other Agencies - Third Party P,30072462,THE EXTRA MILE CARE CO LTD,"1,797.92",15/04/2015
Delivery Units,Adults and Communities,Other Agencies - Third Party P,30072463,THE EXTRA MILE CARE CO LTD,"1,481.42",15/04/2015
Delivery Units,Adults and Communities,Other Agencies - Third Party P,30072465,THE EXTRA MILE CARE CO LTD,306.80,15/04/2015
Delivery Units,Adults and Communities,Other Agencies - Third Party P,30072466,THE EXTRA MILE CARE CO LTD,494.84,15/04/2015
Delivery Units,Adults and Communities,Other Agencies - Third Party P,30072543,THE EXTRA MILE CARE CO LTD,"1,602.52",16/04/2015
Delivery Units,Adults and Communities,Other Agencies - Third Party P,30072545,THE EXTRA MILE CARE CO LTD,"1,602.52",16/04/2015
Delivery Units,Adults and Communities,Other Agencies - Third Party P,30072547,THE EXTRA MILE CARE CO LTD,"1,589.30",16/04/2015
Delivery Units,Adults and Communities,Other Agencies - Third Party P,30072549,THE EXTRA MILE CARE CO LTD,"1,696.39",16/04/2015
Delivery Units,Adults and Communities,Other Agencies - Third Party P,30072551,THE EXTRA MILE CARE CO LTD,"1,602.52",16/04/2015
Delivery Units,Adults and Communities,Other Agencies - Third Party P,30072553,THE EXTRA MILE CARE CO LTD,"1,602.52",16/04/2015
Delivery Units,Adults and Communities,Other Agencies - Third Party P,30072556,THE EXTRA MILE CARE CO LTD,396.60,16/04/2015
Delivery Units,Adults and Communities,Other Agencies - Third Party P,30072558,THE EXTRA MILE CARE CO LTD,383.38,16/04/2015
Delivery Units,Adults and Communities,Other Agencies - Third Party P,30072559,THE EXTRA MILE CARE CO LTD,846.66,16/04/2015
Delivery Units,Adults and Communities,Other Agencies - Third Party P,30072560,THE EXTRA MILE CARE CO LTD,555.24,16/04/2015
Delivery Units,Adults and Communities,Other Agencies - Third Party P,30072561,THE EXTRA MILE CARE CO LTD,730.02,16/04/2015
Delivery Units,Adults and Communities,Other Agencies - Third Party P,30072562,THE EXTRA MILE CARE CO LTD,759.40,16/04/2015
Delivery Units,Adults and Communities,Other Agencies - Third Party P,30072563,THE EXTRA MILE CARE CO LTD,"1,987.26",16/04/2015
Delivery Units,Adults and Communities,Other Agencies - Third Party P,30072564,THE EXTRA MILE CARE CO LTD,759.40,16/04/2015
Delivery Units,Adults and Communities,Other Agencies - Third Party P,30072565,THE EXTRA MILE CARE CO LTD,537.08,16/04/2015
Delivery Units,Adults and Communities,Other Agencies - Third Party P,30072566,THE EXTRA MILE CARE CO LTD,"2,562.72",16/04/2015
Delivery Units,Adults and Communities,Other Agencies - Third Party P,30072567,THE EXTRA MILE CARE CO LTD,978.28,16/04/2015
Delivery Units,Adults and Communities,Other Agencies - Third Party P,30072568,THE EXTRA MILE CARE CO LTD,515.92,16/04/2015
Delivery Units,Adults and Communities,Other Agencies - Third Party P,30072569,THE EXTRA MILE CARE CO LTD,383.38,16/04/2015
Delivery Units,Adults and Communities,Other Agencies - Third Party P,30072570,THE EXTRA MILE CARE CO LTD,383.38,16/04/2015
Delivery Units,Adults and Communities,Other Agencies - Third Party P,30072571,THE EXTRA MILE CARE CO LTD,843.90,16/04/2015
Delivery Units,Adults and Communities,Other Agencies - Third Party P,30072572,THE EXTRA MILE CARE CO LTD,264.40,16/04/2015
Delivery Units,Adults and Communities,Other Agencies - Third Party P,30072573,THE EXTRA MILE CARE CO LTD,"2,349.02",16/04/2015
Delivery Units,Adults and Communities,Other Agencies - Third Party P,30072574,THE EXTRA MILE CARE CO LTD,788.75,16/04/2015
Delivery Units,Adults and Communities,Other Agencies - Third Party P,30072575,THE EXTRA MILE CARE CO LTD,661.00,16/04/2015
Delivery Units,Adults and Communities,Other Agencies - Third Party P,30072576,THE EXTRA MILE CARE CO LTD,843.90,16/04/2015
Delivery Units,Adults and Communities,Other Agencies - Third Party P,30072577,THE EXTRA MILE CARE CO LTD,"1,208.54",16/04/2015
Delivery Units,Adults and Communities,Other Agencies - Third Party P,30072578,THE EXTRA MILE CARE CO LTD,613.64,16/04/2015
Delivery Units,Adults and Communities,Other Agencies - Third Party P,30072579,THE EXTRA MILE CARE CO LTD,"1,405.10",16/04/2015
Delivery Units,Adults and Communities,Other Agencies - Third Party P,30072581,THE EXTRA MILE CARE CO LTD,444.36,16/04/2015
Delivery Units,Adults and Communities,Other Agencies - Third Party P,30072582,THE EXTRA MILE CARE CO LTD,420.82,16/04/2015
Delivery Units,Adults and Communities,Other Agencies - Third Party P,30072583,THE EXTRA MILE CARE CO LTD,690.20,16/04/2015
Delivery Units,Adults and Communities,Other Agencies - Third Party P,30072585,THE EXTRA MILE CARE CO LTD,"1,987.18",16/04/2015
Delivery Units,Adults and Communities,Other Agencies - Third Party P,30072586,THE EXTRA MILE CARE CO LTD,613.84,16/04/2015
Delivery Units,Adults and Communities,Other Agencies - Third Party P,30072587,THE EXTRA MILE CARE CO LTD,306.82,16/04/2015
Delivery Units,Adults and Communities,Other Agencies - Third Party P,30072588,THE EXTRA MILE CARE CO LTD,817.66,16/04/2015
Delivery Units,Adults and Communities,Other Agencies - Third Party P,30072589,THE EXTRA MILE CARE CO LTD,"1,074.16",16/04/2015
Delivery Units,Adults and Communities,Other Agencies - Third Party P,30072590,THE EXTRA MILE CARE CO LTD,676.96,16/04/2015
Delivery Units,Adults and Communities,Other Agencies - Third Party P,30072591,THE EXTRA MILE CARE CO LTD,613.64,16/04/2015
Delivery Units,Adults and Communities,Other Agencies - Third Party P,30072593,THE EXTRA MILE CARE CO LTD,608.58,16/04/2015
Delivery Units,Adults and Communities,Other Agencies - Third Party P,30072595,THE EXTRA MILE CARE CO LTD,669.44,16/04/2015
Delivery Units,Adults and Communities,Other Agencies - Third Party P,30072596,THE EXTRA MILE CARE CO LTD,330.50,16/04/2015
Delivery Units,Adults and Communities,Other Agencies - Third Party P,30072597,THE EXTRA MILE CARE CO LTD,767.34,16/04/2015
Delivery Units,Adults and Communities,Other Agencies - Third Party P,30072598,THE EXTRA MILE CARE CO LTD,619.16,16/04/2015
Delivery Units,Adults and Communities,Other Agencies - Third Party P,30072599,THE EXTRA MILE CARE CO LTD,751.46,16/04/2015
Delivery Units,Adults and Communities,Other Agencies - Third Party P,30072600,THE EXTRA MILE CARE CO LTD,460.52,16/04/2015
Delivery Units,Adults and Communities,Other Agencies - Third Party P,30072603,THE EXTRA MILE CARE CO LTD,571.54,16/04/2015
Delivery Units,Adults and Communities,Other Agencies - Third Party P,30072605,THE EXTRA MILE CARE CO LTD,"1,994.04",16/04/2015
Delivery Units,Adults and Communities,Other Agencies - Third Party P,30072606,THE EXTRA MILE CARE CO LTD,835.96,16/04/2015
Delivery Units,Adults and Communities,Other Agencies - Third Party P,30072607,THE EXTRA MILE CARE CO LTD,"1,457.54",16/04/2015
Delivery Units,Adults and Communities,Other Agencies - Third Party P,30072734,THE EXTRA MILE CARE CO LTD,433.90,17/04/2015
Delivery Units,Adults and Communities,Other Agencies - Third Party P,30072736,THE EXTRA MILE CARE CO LTD,851.34,17/04/2015
Delivery Units,Adults and Communities,Other Agencies - Third Party P,30072738,THE EXTRA MILE CARE CO LTD,306.82,17/04/2015
Delivery Units,Adults and Communities,Other Agencies - Third Party P,30072739,THE EXTRA MILE CARE CO LTD,"1,284.27",17/04/2015
Delivery Units,Adults and Communities,Other Agencies - Third Party P,30072740,THE EXTRA MILE CARE CO LTD,766.76,17/04/2015
Delivery Units,Adults and Communities,Other Agencies - Third Party P,30072741,THE EXTRA MILE CARE CO LTD,"1,457.54",17/04/2015
Delivery Units,Adults and Communities,Other Agencies - Third Party P,30072743,THE EXTRA MILE CARE CO LTD,"1,888.32",17/04/2015
Delivery Units,Adults and Communities,Other Agencies - Third Party P,30072744,THE EXTRA MILE CARE CO LTD,"1,966.08",17/04/2015
Delivery Units,Adults and Communities,Other Agencies - Third Party P,30072745,THE EXTRA MILE CARE CO LTD,613.64,17/04/2015
Delivery Units,Adults and Communities,Other Agencies - Third Party P,30072747,THE EXTRA MILE CARE CO LTD,767.34,17/04/2015
Delivery Units,Adults and Communities,Other Agencies - Third Party P,30073101,THE EXTRA MILE CARE CO LTD,518.56,20/04/2015
Delivery Units,Adults and Communities,Other Agencies - Third Party P,30073103,THE EXTRA MILE CARE CO LTD,"1,669.95",20/04/2015
Delivery Units,Adults and Communities,Other Agencies - Third Party P,30073105,THE EXTRA MILE CARE CO LTD,796.54,20/04/2015
Delivery Units,Adults and Communities,Other Agencies - Third Party P,30073316,THE EXTRA MILE CARE CO LTD,761.88,21/04/2015
Delivery Units,Adults and Communities,Other Agencies - Third Party P,30073317,THE EXTRA MILE CARE CO LTD,"1,764.34",21/04/2015
Delivery Units,Adults and Communities,Other Agencies - Third Party P,30073318,THE EXTRA MILE CARE CO LTD,"1,963.44",21/04/2015
Delivery Units,Adults and Communities,Other Agencies - Third Party P,30073319,THE EXTRA MILE CARE CO LTD,695.74,21/04/2015
Delivery Units,Adults and Communities,Other Agencies - Third Party P,30073320,THE EXTRA MILE CARE CO LTD,"1,772.86",21/04/2015
Delivery Units,Adults and Communities,Other Agencies - Third Party P,30074119,THE EXTRA MILE CARE CO LTD,380.86,24/04/2015
Delivery Units,Adults and Communities,Other Agencies - Third Party P,30074120,THE EXTRA MILE CARE CO LTD,346.48,24/04/2015
Delivery Units,Adults and Communities,Other Agencies - Third Party P,30074121,THE EXTRA MILE CARE CO LTD,349.12,24/04/2015
Delivery Units,Adults and Communities,Other Agencies - Third Party P,30074123,THE EXTRA MILE CARE CO LTD,690.78,24/04/2015
Delivery Units,Adults and Communities,Other Agencies - Third Party P,30074264,THE EXTRA MILE CARE CO LTD,338.70,27/04/2015
Delivery Units,Adults and Communities,Other Agencies - Third Party P,30074592,THE EXTRA MILE CARE CO LTD,523.90,30/04/2015
Delivery Units,Adults and Communities,Other Agencies - Third Party P,30074594,THE EXTRA MILE CARE CO LTD,754.10,30/04/2015
Delivery Units,Adults and Communities,Other Agencies - Third Party P,30073342,THE GRANGE,"2,184.04",21/04/2015
Delivery Units,Adults and Communities,Other Agencies - Third Party P,30073353,THE GRANGE,"2,184.04",21/04/2015
Delivery Units,Adults and Communities,Other Agencies - Third Party P,30073354,THE GRANGE,-767.64,21/04/2015
Delivery Units,Adults and Communities,Other Agencies - Third Party P,30073356,THE GRANGE,"2,184.04",21/04/2015
Delivery Units,Adults and Communities,Other Agencies - Third Party P,30073357,THE GRANGE,"2,184.04",21/04/2015
Delivery Units,Adults and Communities,Other Agencies - Third Party P,30073358,THE GRANGE,-503.53,21/04/2015
Delivery Units,Adults and Communities,Other Agencies - Third Party P,30073359,THE GRANGE,"2,184.04",21/04/2015
Delivery Units,Adults and Communities,Other Agencies - Third Party P,30071368,THE HOME CARE CONNECTION,775.00,07/04/2015
Delivery Units,Adults and Communities,Other Agencies - Third Party P,30071369,THE HOME CARE CONNECTION,775.00,07/04/2015
Delivery Units,Adults and Communities,Other Agencies - Third Party P,30071370,THE HOME CARE CONNECTION,775.00,07/04/2015
Delivery Units,Adults and Communities,Other Agencies - Third Party P,20019417,THE HOME CARE CONNECTION,775.00,21/04/2015
Delivery Units,Adults and Communities,Other Agencies - Third Party P,20019418,THE HOME CARE CONNECTION,775.00,21/04/2015
Delivery Units,Adults and Communities,Other Agencies - Third Party P,20019419,THE HOME CARE CONNECTION,775.00,21/04/2015
Delivery Units,Adults and Communities,Other Agencies - Third Party P,20019421,THE HOME CARE CONNECTION,775.00,21/04/2015
Delivery Units,Adults and Communities,Other Agencies - Third Party P,20019422,THE HOME CARE CONNECTION,775.00,21/04/2015
Delivery Units,Adults and Communities,Other Agencies - Third Party P,30073330,THE HOME CARE CONNECTION,775.00,21/04/2015
Delivery Units,Adults and Communities,Other Agencies - Third Party P,30073331,THE HOME CARE CONNECTION,775.00,21/04/2015
Delivery Units,Adults and Communities,Other Agencies - Third Party P,30073332,THE HOME CARE CONNECTION,775.00,21/04/2015
Delivery Units,Adults and Communities,Other Agencies - Third Party P,30072807,THE KINGSDOWNE SOCIETY,"2,073.42",17/04/2015
Delivery Units,Adults and Communities,Other Agencies - Third Party P,30072808,THE KINGSDOWNE SOCIETY,"2,073.42",17/04/2015
Delivery Units,Adults and Communities,Other Agencies - Third Party P,30072838,THE LEONARD CHESHIRE FOUNDATION,"3,439.54",23/04/2015
Delivery Units,Adults and Communities,Other Agencies - Third Party P,30072839,THE LEONARD CHESHIRE FOUNDATION,-548.92,23/04/2015
Delivery Units,Adults and Communities,Other Agencies - Third Party P,30071501,THE LIMES RESIDENTIAL HOME,"1,358.45",08/04/2015
Delivery Units,Adults and Communities,Other Agencies - Third Party P,30068227,THE NATIONAL SOCIETY FOR EPILEPSY,"5,562.41",01/04/2015
Delivery Units,Adults and Communities,Other Agencies - Third Party P,30068228,THE NATIONAL SOCIETY FOR EPILEPSY,"11,751.43",01/04/2015
Delivery Units,Adults and Communities,Other Agencies - Third Party P,30072389,THE REGARD PARTNERSHIP LTD,"3,856.84",14/04/2015
Delivery Units,Adults and Communities,Other Agencies - Third Party P,30074559,THE WELL HOUSE,"4,350.00",29/04/2015
Delivery Units,Adults and Communities,Other Agencies - Third Party P,30072760,THE WOODSIDE HOME,"2,073.42",17/04/2015
Delivery Units,Adults and Communities,Other Agencies - Third Party P,30072784,THE WOODSIDE HOME,"2,073.42",17/04/2015
Delivery Units,Adults and Communities,Other Agencies - Third Party P,30072786,THE WOODSIDE HOME,"2,144.91",17/04/2015
Delivery Units,Adults and Communities,Other Agencies - Third Party P,30072787,THE WOODSIDE HOME,285.99,17/04/2015
Delivery Units,Adults and Communities,Other Agencies - Third Party P,30072789,THE WOODSIDE HOME,357.49,17/04/2015
Delivery Units,Adults and Communities,Other Agencies - Third Party P,30072791,THE WOODSIDE HOME,"2,073.42",17/04/2015
Delivery Units,Adults and Communities,Other Agencies - Third Party P,30072824,THE WOODSIDE HOME,"2,073.42",17/04/2015
Delivery Units,Adults and Communities,Other Agencies - Third Party P,30072828,THE WOODSIDE HOME,"6,863.73",17/04/2015
Delivery Units,Adults and Communities,Other Agencies - Third Party P,30072829,THE WOODSIDE HOME,"1,715.93",17/04/2015
Delivery Units,Adults and Communities,Other Agencies - Third Party P,30073701,THORNDENE LTD,510.04,22/04/2015
Delivery Units,Adults and Communities,Other Agencies - Third Party P,30073702,THORNDENE LTD,"2,541.79",22/04/2015
Delivery Units,Adults and Communities,Other Agencies - Third Party P,30073364,THOUGHTS OF OTHERS LTD,"6,336.36",21/04/2015
Delivery Units,Adults and Communities,Other Agencies - Third Party P,60017492,TIME BANKING UK,"9,137.50",27/04/2015
Delivery Units,Adults and Communities,Other Agencies - Third Party P,30072775,TORRINGTON HOMES,"1,482.02",17/04/2015
Delivery Units,Adults and Communities,Other Agencies - Third Party P,30072782,TORRINGTON HOMES,"1,930.42",17/04/2015
Delivery Units,Adults and Communities,Other Agencies - Third Party P,30072783,TORRINGTON HOMES,"1,286.94",17/04/2015
Delivery Units,Adults and Communities,Other Agencies - Third Party P,30072785,TORRINGTON HOMES,624.01,17/04/2015
Delivery Units,Adults and Communities,Other Agencies - Third Party P,30072825,TORRINGTON HOMES,"4,368.08",17/04/2015
Delivery Units,Adults and Communities,Other Agencies - Third Party P,20019356,TORRINGTON HOMES,"1,716.03",21/04/2015
Delivery Units,Adults and Communities,Other Agencies - Third Party P,30073361,TORRINGTON HOMES,"2,184.04",21/04/2015
Delivery Units,Adults and Communities,Other Agencies - Third Party P,30073362,TORRINGTON HOMES,"2,184.04",21/04/2015
Delivery Units,Adults and Communities,Other Agencies - Third Party P,30073363,TORRINGTON HOMES,"2,184.04",21/04/2015
Delivery Units,Adults and Communities,Other Agencies - Third Party P,30073388,TORRINGTON HOMES,"2,184.04",21/04/2015
Delivery Units,Adults and Communities,Other Agencies - Third Party P,30073389,TORRINGTON HOMES,"2,184.04",21/04/2015
Delivery Units,Adults and Communities,Other Agencies - Third Party P,30073390,TORRINGTON HOMES,"2,001.92",21/04/2015
Delivery Units,Adults and Communities,Other Agencies - Third Party P,30073399,TORRINGTON HOMES,"2,184.04",21/04/2015
Delivery Units,Adults and Communities,Other Agencies - Third Party P,30073400,TORRINGTON HOMES,"2,184.04",21/04/2015
Delivery Units,Adults and Communities,Other Agencies - Third Party P,30073402,TORRINGTON HOMES,"2,001.92",21/04/2015
Delivery Units,Adults and Communities,Other Agencies - Third Party P,30073355,TOWERTREND LTD,"3,214.29",21/04/2015
Delivery Units,Adults and Communities,Other Agencies - Third Party P,30071156,TWO RIVERS,"1,740.00",07/04/2015
Delivery Units,Adults and Communities,Other Agencies - Third Party P,30071157,TWO RIVERS,"1,740.00",07/04/2015
Delivery Units,Adults and Communities,Other Agencies - Third Party P,30071158,TWO RIVERS,"1,740.00",07/04/2015
Delivery Units,Adults and Communities,Other Agencies - Third Party P,30071159,TWO RIVERS,"1,740.00",07/04/2015
Delivery Units,Adults and Communities,Other Agencies - Third Party P,30072390,UNIQUE CARE SERVICES,"2,455.24",14/04/2015
Delivery Units,Adults and Communities,Other Agencies - Third Party P,30073327,VALE HOUSE STABILISATION SERVICES,"1,194.27",21/04/2015
Delivery Units,Adults and Communities,Other Agencies - Third Party P,30071445,VENTRY RESIDENTIAL CARE LTD,"2,184.04",08/04/2015
Delivery Units,Adults and Communities,Other Agencies - Third Party P,30071478,VENTRY RESIDENTIAL CARE LTD,"2,184.04",08/04/2015
Delivery Units,Adults and Communities,Other Agencies - Third Party P,30074569,VENTRY RESIDENTIAL CARE LTD,500.48,30/04/2015
Delivery Units,Adults and Communities,Other Agencies - Third Party P,30067374,VILLA SCALABRINI,"2,184.04",01/04/2015
Delivery Units,Adults and Communities,Other Agencies - Third Party P,30074631,VILLA SCALABRINI,"1,092.00",30/04/2015
Delivery Units,Adults and Communities,Other Agencies - Third Party P,30073407,VIVRE CARE LTD,"6,956.32",21/04/2015
Delivery Units,Adults and Communities,Other Agencies - Third Party P,30073457,VOYAGE CARE,"6,801.46",21/04/2015
Delivery Units,Adults and Communities,Other Agencies - Third Party P,30073458,VOYAGE CARE,-320.86,21/04/2015
Delivery Units,Adults and Communities,Other Agencies - Third Party P,30073459,VOYAGE CARE,"5,097.47",21/04/2015
Delivery Units,Adults and Communities,Other Agencies - Third Party P,30073460,VOYAGE CARE,-501.51,21/04/2015
Delivery Units,Adults and Communities,Other Agencies - Third Party P,30073379,VOYAGE CARE,"5,571.43",30/04/2015
Delivery Units,Adults and Communities,Other Agencies - Third Party P,30073380,VOYAGE CARE,-509.79,30/04/2015
Delivery Units,Adults and Communities,Other Agencies - Third Party P,30073381,VOYAGE CARE,"4,717.50",30/04/2015
Delivery Units,Adults and Communities,Other Agencies - Third Party P,30073382,VOYAGE CARE,-391.93,30/04/2015
Delivery Units,Adults and Communities,Other Agencies - Third Party P,30073383,VOYAGE CARE,"7,236.43",30/04/2015
Delivery Units,Adults and Communities,Other Agencies - Third Party P,30073384,VOYAGE CARE,-344.36,30/04/2015
Delivery Units,Adults and Communities,Other Agencies - Third Party P,30074629,VOYAGE CARE,"6,802.40",30/04/2015
Delivery Units,Adults and Communities,Other Agencies - Third Party P,30074630,VOYAGE CARE,-321.80,30/04/2015
Delivery Units,Adults and Communities,Other Agencies - Third Party P,30073450,VOYAGE LTD (SOLOR CARE),"6,342.26",21/04/2015
Delivery Units,Adults and Communities,Other Agencies - Third Party P,30073454,VOYAGE LTD (SOLOR CARE),764.80,21/04/2015
Delivery Units,Adults and Communities,Other Agencies - Third Party P,20019386,W. SHERRY & SONS,460.00,21/04/2015
Delivery Units,Adults and Communities,Other Agencies - Third Party P,20019714,W. SHERRY & SONS,"3,090.00",28/04/2015
Delivery Units,Adults and Communities,Other Agencies - Third Party P,20019715,W. SHERRY & SONS,"3,090.00",28/04/2015
Delivery Units,Adults and Communities,Other Agencies - Third Party P,30071544,WENSLEY HOUSE RESIDENTIAL HOME,"2,657.14",08/04/2015
Delivery Units,Adults and Communities,Other Agencies - Third Party P,30071545,WENSLEY HOUSE RESIDENTIAL HOME,"2,657.14",08/04/2015
Delivery Units,Adults and Communities,Other Agencies - Third Party P,30071546,WENSLEY HOUSE RESIDENTIAL HOME,"2,657.14",08/04/2015
Delivery Units,Adults and Communities,Other Agencies - Third Party P,30071446,WESTMINSTER HEALTH CARE LTD,"4,495.93",08/04/2015
Delivery Units,Adults and Communities,Other Agencies - Third Party P,30071447,WESTMINSTER HEALTH CARE LTD,"2,318.93",08/04/2015
Delivery Units,Adults and Communities,Other Agencies - Third Party P,30071448,WESTMINSTER HEALTH CARE LTD,"4,864.08",08/04/2015
Delivery Units,Adults and Communities,Other Agencies - Third Party P,30071449,WESTMINSTER HEALTH CARE LTD,"4,864.08",08/04/2015
Delivery Units,Adults and Communities,Other Agencies - Third Party P,30071450,WESTMINSTER HEALTH CARE LTD,"5,087.68",08/04/2015
Delivery Units,Adults and Communities,Other Agencies - Third Party P,30073726,WILLOW CARE HOMES,"5,066.00",22/04/2015
Delivery Units,Adults and Communities,Other Agencies - Third Party P,30074615,WOODFIELD HOUSE,"3,600.00",30/04/2015
Delivery Units,Adults and Communities,Other Agencies - Third Party P,30074616,WOODFIELD HOUSE,"2,700.00",30/04/2015
Delivery Units,Adults and Communities,Other Agencies - Third Party P,30074617,WOODFIELD HOUSE,"3,200.00",30/04/2015
Delivery Units,Adults and Communities,Other Agencies - Third Party P,30074618,WOODFIELD HOUSE,"6,368.00",30/04/2015
Delivery Units,Adults and Communities,Other Agencies - Third Party P,30074619,WOODFIELD HOUSE,"4,200.00",30/04/2015
Delivery Units,Adults and Communities,Other Agencies - Third Party P,30074632,WOODFIELD HOUSE,"2,700.00",30/04/2015
Delivery Units,Adults and Communities,Other Agencies - Third Party P,30074633,WOODFIELD HOUSE,"2,700.00",30/04/2015
Delivery Units,Adults and Communities,Other Agencies - Third Party P,30074634,WOODFIELD HOUSE,"2,700.00",30/04/2015
Delivery Units,Adults and Communities,Other Agencies - Third Party P,30074635,WOODFIELD HOUSE,"4,688.00",30/04/2015
Delivery Units,Adults and Communities,Other Agencies - Third Party P,30074636,WOODFIELD HOUSE,"3,000.00",30/04/2015
Delivery Units,Adults and Communities,Other Agencies - Third Party P,30067376,YAD VOEZER LIMITED,"4,838.88",01/04/2015
Delivery Units,Adults and Communities,Other Agencies - Third Party P,30067379,YAD VOEZER LIMITED,"5,199.88",01/04/2015
Delivery Units,Adults and Communities,Other Agencies - Third Party P,30067380,YAD VOEZER LIMITED,-319.40,01/04/2015
Delivery Units,Adults and Communities,Other Agencies - Third Party P,30071549,YAD VOEZER LIMITED,"1,820.82",08/04/2015
Delivery Units,Adults and Communities,Other Agencies - Third Party P,30072889,YAD VOEZER LIMITED,"4,838.88",28/04/2015
Delivery Units,Adults and Communities,Other Agencies - Third Party P,30072890,YAD VOEZER LIMITED,"6,100.60",28/04/2015
Delivery Units,Adults and Communities,Other Agencies - Third Party P,30073341,Z & M CARE LTD,"2,184.04",21/04/2015
Delivery Units,Adults and Communities,Other Energy,60017739,E ON (GAS),771.82,10/04/2015
Delivery Units,Adults and Communities,Other Services,60017918,ASSOCIATION OF DIRECTORS OF ADULT,499.00,10/04/2015
Delivery Units,Adults and Communities,Other Services,20018886,HEALTH PRIVATE LTD,545.55,08/04/2015
Delivery Units,Adults and Communities,Other Services,60015856,KORU MEDICAL LTD,"2,804.66",09/04/2015
Delivery Units,Adults and Communities,Other Services,60014814,LEE SECURITY LONDON LIMITED,745.00,01/04/2015
Delivery Units,Adults and Communities,Other Services,60015628,LMS (BOLTON) LTD,"3,714.97",01/04/2015
Delivery Units,Adults and Communities,Other Services,60017315,LMS (BOLTON) LTD,"1,597.43",20/04/2015
Delivery Units,Adults and Communities,Other Services,60018675,LMS (BOLTON) LTD,"1,245.39",27/04/2015
Delivery Units,Adults and Communities,Other Services,60015943,LONDON BOROUGH OF ENFIELD,"16,534.32",01/04/2015
Delivery Units,Adults and Communities,Other Services,60017667,MI HOMECARE LIMITED,"1,797.60",10/04/2015
Delivery Units,Adults and Communities,Other Services,60017709,MI HOMECARE LIMITED,"1,797.60",10/04/2015
Delivery Units,Adults and Communities,Other Services,60016827,REDACTED - PERSONAL DATA,991.93,16/04/2015
Delivery Units,Adults and Communities,Other Services,10012235,THE KEYHOLDING CO LTD,405.00,27/04/2015
Delivery Units,Adults and Communities,Other Services,60018510,WHITTINGTON HOSPITAL NHS TRUST,360.00,14/04/2015
Delivery Units,Adults and Communities,Other Services,60018538,WHITTINGTON HOSPITAL NHS TRUST,480.00,14/04/2015
Delivery Units,Adults and Communities,Other Services,30073212,WILLOW HOUSING & CARE LTD.,711.38,21/04/2015
Delivery Units,Adults and Communities,Other Transfer Payments to Soc,60016800,AKRAS SOLUTIONS LIMITED,519.00,16/04/2015
Delivery Units,Adults and Communities,Other Transfer Payments to Soc,60017524,THE BARNETGROUP LIMITED,"24,888.18",09/04/2015
Delivery Units,Adults and Communities,Other Transfer Payments to Soc,60017565,THE BARNETGROUP LIMITED,"21,624.73",09/04/2015
Delivery Units,Adults and Communities,Other Transfer Payments to Soc,60017571,THE BARNETGROUP LIMITED,"20,991.45",09/04/2015
Delivery Units,Adults and Communities,Private Contractors - Third Pa,60018299,GREENWICH LEISURE LTD,"2,467.49",10/04/2015
Delivery Units,Adults and Communities,Private Contractors - Third Pa,60018359,GREENWICH LEISURE LTD,"2,341.06",10/04/2015
Delivery Units,Adults and Communities,Rents,60016761,LCS PARTNERSHIPS LTD,856.00,08/04/2015
Delivery Units,Adults and Communities,Software Licences & Support,60018731,CARE MONITORING 2000 LTD,"7,358.93",16/04/2015
Delivery Units,Adults and Communities,Stationery,60017675,THE ART OF DESIGN,480.00,13/04/2015
Delivery Units,Adults and Communities,Transport Hire Charges,60014942,M1 EXPRESS CAR SERVICES,360.00,07/04/2015
Delivery Units,Adults and Communities,Transport Hire Charges,60015010,M1 EXPRESS CAR SERVICES,335.00,08/04/2015
Delivery Units,Adults and Communities,Transport Hire Charges,60015013,M1 EXPRESS CAR SERVICES,300.00,10/04/2015
Delivery Units,Adults and Communities,Transport Hire Charges,60015058,M1 EXPRESS CAR SERVICES,330.00,10/04/2015
Delivery Units,Adults and Communities,Transport Hire Charges,60015113,M1 EXPRESS CAR SERVICES,357.00,10/04/2015
Delivery Units,Adults and Communities,Ttl IT & Comms,60016412,ROYAL BOROUGH OF KENSINGTON &,"13,800.00",16/04/2015
Delivery Units,Adults and Communities,Voluntary Associations - Third,30073190,ALMSHOUSE CHARITY OF CHARLES DAY,369.56,21/04/2015
Delivery Units,Adults and Communities,Voluntary Associations - Third,30073177,ASRA GREATER LONDON HOUSING ASSOC,379.30,21/04/2015
Delivery Units,Adults and Communities,Voluntary Associations - Third,30073178,BARNET ASIAN WOMENS ASSOCIATION,"2,471.35",21/04/2015
Delivery Units,Adults and Communities,Voluntary Associations - Third,30073179,BARNET BEREAVEMENT SERVICE,"3,869.88",21/04/2015
Delivery Units,Adults and Communities,Voluntary Associations - Third,20019391,BARNET MENCAP,"10,523.61",21/04/2015
Delivery Units,Adults and Communities,Voluntary Associations - Third,30073184,BARNET MENCAP,"26,333.33",21/04/2015
Delivery Units,Adults and Communities,Voluntary Associations - Third,30073185,BARNET REFUGEE SERVICE,"5,578.83",23/04/2015
Delivery Units,Adults and Communities,Voluntary Associations - Third,30073186,BRITISH RED CROSS SOCIETY,"3,164.63",21/04/2015
Delivery Units,Adults and Communities,Voluntary Associations - Third,30073187,CHERRY LODGE CANCER CARE,"1,173.83",21/04/2015
Delivery Units,Adults and Communities,Voluntary Associations - Third,30073188,CHINESE MENTAL HEALTH ASSOCIATION,"3,907.90",21/04/2015
Delivery Units,Adults and Communities,Voluntary Associations - Third,30073189,CHRISTIAN ACTION (ENFIELD),365.80,21/04/2015
Delivery Units,Adults and Communities,Voluntary Associations - Third,30073181,DEPRESSION ALLIANCE (BARNET),454.26,21/04/2015
Delivery Units,Adults and Communities,Voluntary Associations - Third,30073191,ELEANOR PALMER TRUST NO 2 A/C.,486.50,21/04/2015
Delivery Units,Adults and Communities,Voluntary Associations - Third,30073192,GENESIS HOUSING ASSOCIATION LIMITED,"95,142.58",21/04/2015
Delivery Units,Adults and Communities,Voluntary Associations - Third,30073193,HABINTEG HOUSING ASSOCIATION,446.37,21/04/2015
Delivery Units,Adults and Communities,Voluntary Associations - Third,30073194,HANOVER HOUSING ASSOCIATION,257.97,21/04/2015
Delivery Units,Adults and Communities,Voluntary Associations - Third,30073196,JEWISH COMMUNITY HOUSING ASSOCIATIO,568.17,21/04/2015
Delivery Units,Adults and Communities,Voluntary Associations - Third,30073206,LINEN & WOOLLEN DRAPERS COTTAGE,730.11,21/04/2015
Delivery Units,Adults and Communities,Voluntary Associations - Third,30073199,MIDDLESEX ASSOCIATION  FOR THE BLIN,"2,203.08",21/04/2015
Delivery Units,Adults and Communities,Voluntary Associations - Third,30073200,MIND IN BARNET,"6,418.22",21/04/2015
Delivery Units,Adults and Communities,Voluntary Associations - Third,30073203,ORBIT HOUSING ASSOCIATION,304.99,21/04/2015
Delivery Units,Adults and Communities,Voluntary Associations - Third,30073208,SANCTUARY HOUSING ASSOCIATION,407.80,21/04/2015
Delivery Units,Adults and Communities,Voluntary Associations - Third,30073209,SCOTSCARE,361.52,21/04/2015
Delivery Units,Adults and Communities,Voluntary Associations - Third,30073205,ST PANCRAS & HUMANIST H.A.,661.55,21/04/2015
Delivery Units,Adults and Communities,Voluntary Associations - Third,30073207,THE RICHMOND FELLOWSHIP,"44,166.67",21/04/2015
Delivery Units,Children's Education & Skills,Advertising,60018460,TMP (UK) LTD,829.00,14/04/2015
Delivery Units,Children's Education & Skills,Advertising,60018495,TMP (UK) LTD,740.00,14/04/2015
Delivery Units,Children's Education & Skills,Advertising for staff,60017082,THE LONDON APPRENTICESHIP CO,550.00,08/04/2015
Delivery Units,Children's Education & Skills,Advertising for staff,60018014,THE LONDON APPRENTICESHIP CO,"1,137.00",15/04/2015
Delivery Units,Children's Education & Skills,Advertising for staff,60016744,THE LONDON APPRENTICESHIP CO,"1,134.54",16/04/2015
Delivery Units,Children's Education & Skills,Advertising for staff,60017083,THE LONDON APPRENTICESHIP CO,275.00,16/04/2015
Delivery Units,Children's Education & Skills,Books-CDs-Audio-Video,60017437,GL ASSESSMENT,"2,113.36",22/04/2015
Delivery Units,Children's Education & Skills,Books-CDs-Audio-Video,60017971,PEARSON EDUCATION LTD,"1,306.00",22/04/2015
Delivery Units,Children's Education & Skills,Books-CDs-Audio-Video,60018148,PEARSON EDUCATION LTD,"1,527.00",22/04/2015
Delivery Units,Children's Education & Skills,Books-CDs-Audio-Video,60018147,PEARSON EDUCATION LTD,518.00,23/04/2015
Delivery Units,Children's Education & Skills,Building Repairs & Maintenance,60015741,QUANTUM GEOTECHNICAL LTD,390.00,01/04/2015
Delivery Units,Children's Education & Skills,Building Repairs & Maintenance,10012210,TEAM Q MAINTENANCE LTD,"-10,275.84",22/04/2015
Delivery Units,Children's Education & Skills,Building Repairs & Maintenance,60002134,TEAM Q MAINTENANCE LTD,"10,275.84",27/04/2015
Delivery Units,Children's Education & Skills,Capital Construction and Works,60018165,BELFRY PROPERTY SERVICES LTD,"62,832.00",08/04/2015
Delivery Units,Children's Education & Skills,Capital Construction and Works,60016691,EAST BARNET SCHOOL,"41,991.75",16/04/2015
Delivery Units,Children's Education & Skills,Capital Construction and Works,60015503,GARDINER & THEOBALD LLP,"3,000.00",01/04/2015
Delivery Units,Children's Education & Skills,Capital Construction and Works,60016392,GTI ENVIRONMENTAL SERVICES LTD,"14,984.00",10/04/2015
Delivery Units,Children's Education & Skills,Capital Construction and Works,60013271,LONDON DIOCESAN BOARD FOR SCHOOL,"17,120.61",07/04/2015
Delivery Units,Children's Education & Skills,Capital Construction and Works,60016298,LOVELOCK & TAYLOUR LTD,"29,154.45",16/04/2015
Delivery Units,Children's Education & Skills,Capital Construction and Works,60018163,MENORAH FOUNDATION SCHOOL (GOVERNOR,"128,032.12",09/04/2015
Delivery Units,Children's Education & Skills,Capital Construction and Works,60017246,MORGAN SINDALL,"45,395.26",01/04/2015
Delivery Units,Children's Education & Skills,Capital Construction and Works,60017608,MORGAN SINDALL,"166,290.00",08/04/2015
Delivery Units,Children's Education & Skills,Capital Construction and Works,60017487,PORTAKABIN LTD,"1,934.85",13/04/2015
Delivery Units,Children's Education & Skills,Capital Construction and Works,60015653,QUANTUM GEOTECHNICAL LTD,390.00,01/04/2015
Delivery Units,Children's Education & Skills,Capital Construction and Works,60015309,REAM CONTRACTS,"25,921.00",01/04/2015
Delivery Units,Children's Education & Skills,Capital Construction and Works,60015012,S W BRUCE & CO LTD,847.56,01/04/2015
Delivery Units,Children's Education & Skills,Capital Construction and Works,60015533,S W BRUCE & CO LTD,"46,075.00",01/04/2015
Delivery Units,Children's Education & Skills,Capital Construction and Works,10012211,TEAM Q MAINTENANCE LTD,"47,853.15",22/04/2015
Delivery Units,Children's Education & Skills,Capital Construction and Works,60017409,WREN ACADEMY,"742,816.17",07/04/2015
Delivery Units,Children's Education & Skills,Capital Construction and Works,60019112,WREN ACADEMY,"1,409.00",21/04/2015
Delivery Units,Children's Education & Skills,Consultants Fees,60018153,ANDY GARDNER CAREERS ADVISOR LTD,500.00,08/04/2015
Delivery Units,Children's Education & Skills,Consultants Fees,60017885,BARNET & SOUTHGATE COLLEGE,"44,500.00",08/04/2015
Delivery Units,Children's Education & Skills,Consultants Fees,60018009,CAREER WISE,"4,584.00",28/04/2015
Delivery Units,Children's Education & Skills,Consultants Fees,60016630,LEARNING EFFECTIVELY LTD,480.00,10/04/2015
Delivery Units,Children's Education & Skills,Consultants Fees,60016972,MORGAN SINDALL,"42,618.00",01/04/2015
Delivery Units,Children's Education & Skills,Consultants Fees,60007663,MOTT MACDONALD LTD,"2,000.00",24/04/2015
Delivery Units,Children's Education & Skills,Consultants Fees,60014641,MOTT MACDONALD LTD,"1,200.00",24/04/2015
Delivery Units,Children's Education & Skills,Consultants Fees,60014693,MOTT MACDONALD LTD,"2,000.00",24/04/2015
Delivery Units,Children's Education & Skills,Consultants Fees,60018532,MOTT MACDONALD LTD,"1,200.00",24/04/2015
Delivery Units,Children's Education & Skills,Consultants Fees,60008806,PICK EVERARD,"3,749.99",01/04/2015
Delivery Units,Children's Education & Skills,Consultants Fees,60005536,PICK EVERARD,"2,187.50",07/04/2015
Delivery Units,Children's Education & Skills,Consultants Fees,60008807,PICK EVERARD,"2,187.50",07/04/2015
Delivery Units,Children's Education & Skills,Consultants Fees,60011575,PICK EVERARD,"2,187.50",09/04/2015
Delivery Units,Children's Education & Skills,Consultants Fees,60014606,PICK EVERARD,"2,187.50",15/04/2015
Delivery Units,Children's Education & Skills,Consumable Catering Supplies,60017302,LONDON BIO PACKAGING,419.67,07/04/2015
Delivery Units,Children's Education & Skills,Consumable Catering Supplies,60017314,LONDON BIO PACKAGING,776.97,09/04/2015
Delivery Units,Children's Education & Skills,Consumable Catering Supplies,60017317,LONDON BIO PACKAGING,359.98,09/04/2015
Delivery Units,Children's Education & Skills,Consumable Catering Supplies,60017360,LONDON BIO PACKAGING,533.50,09/04/2015
Delivery Units,Children's Education & Skills,Consumable Catering Supplies,60017380,LONDON BIO PACKAGING,513.71,09/04/2015
Delivery Units,Children's Education & Skills,Consumable Catering Supplies,60017412,LONDON BIO PACKAGING,523.88,09/04/2015
Delivery Units,Children's Education & Skills,Consumable Catering Supplies,60017542,LONDON BIO PACKAGING,"1,065.85",09/04/2015
Delivery Units,Children's Education & Skills,Consumable Catering Supplies,60017530,LONDON BIO PACKAGING,"1,299.66",22/04/2015
Delivery Units,Children's Education & Skills,Electricity,60017834,KENT COUNTY COUNCIL (KCS),852.24,13/04/2015
Delivery Units,Children's Education & Skills,Electricity,60017905,KENT COUNTY COUNCIL (KCS),927.27,13/04/2015
Delivery Units,Children's Education & Skills,Equipment and Materials Purcha,60017710,FOSTER REFRIGERATOR (UK) LTD,"1,543.00",22/04/2015
Delivery Units,Children's Education & Skills,Equipment and Materials Purcha,60017359,HANNA INSTRUMENTS LIMITED,445.20,01/04/2015
Delivery Units,Children's Education & Skills,Equipment and Materials Purcha,60017627,LOCKHART CATERING EQUIPMENT,267.61,09/04/2015
Delivery Units,Children's Education & Skills,Equipment and Materials Purcha,60017475,NISBETS PLC,679.27,17/04/2015
Delivery Units,Children's Education & Skills,Food Costs,60017683,BRAKE BROS ( FROZEN FOODS) LTD,780.63,09/04/2015
Delivery Units,Children's Education & Skills,Food Costs,60017759,BRAKE BROS ( FROZEN FOODS) LTD,301.70,13/04/2015
Delivery Units,Children's Education & Skills,Food Costs,60012370,BRAKE BROS ( FROZEN FOODS) LTD,469.43,16/04/2015
Delivery Units,Children's Education & Skills,Food Costs,60014989,BRAKE BROS ( FROZEN FOODS) LTD,306.98,16/04/2015
Delivery Units,Children's Education & Skills,Food Costs,60017673,EURO FOOD BRANDS LTD,"1,472.52",14/04/2015
Delivery Units,Children's Education & Skills,Food Costs,60013800,FLEISHMAN EUROPE LTD,"1,022.65",07/04/2015
Delivery Units,Children's Education & Skills,Food Costs,60013876,FLEISHMAN EUROPE LTD,312.33,07/04/2015
Delivery Units,Children's Education & Skills,Food Costs,60014982,FLEISHMAN EUROPE LTD,638.68,07/04/2015
Delivery Units,Children's Education & Skills,Food Costs,60015080,FLEISHMAN EUROPE LTD,441.76,07/04/2015
Delivery Units,Children's Education & Skills,Food Costs,60014953,FLEISHMAN EUROPE LTD,454.40,08/04/2015
Delivery Units,Children's Education & Skills,Food Costs,60017660,FLEISHMAN EUROPE LTD,288.84,10/04/2015
Delivery Units,Children's Education & Skills,Food Costs,60017693,FLEISHMAN EUROPE LTD,425.53,10/04/2015
Delivery Units,Children's Education & Skills,Food Costs,60017696,FLEISHMAN EUROPE LTD,"3,909.50",10/04/2015
Delivery Units,Children's Education & Skills,Food Costs,60017699,FLEISHMAN EUROPE LTD,566.51,10/04/2015
Delivery Units,Children's Education & Skills,Food Costs,60017705,FLEISHMAN EUROPE LTD,538.96,13/04/2015
Delivery Units,Children's Education & Skills,Food Costs,60017733,FLEISHMAN EUROPE LTD,"1,046.68",13/04/2015
Delivery Units,Children's Education & Skills,Food Costs,60017766,FLEISHMAN EUROPE LTD,"3,114.90",13/04/2015
Delivery Units,Children's Education & Skills,Food Costs,60017771,FLEISHMAN EUROPE LTD,"1,041.74",13/04/2015
Delivery Units,Children's Education & Skills,Food Costs,60017681,FLEISHMAN EUROPE LTD,"1,400.42",14/04/2015
Delivery Units,Children's Education & Skills,Food Costs,60017716,FLEISHMAN EUROPE LTD,280.83,14/04/2015
Delivery Units,Children's Education & Skills,Food Costs,60017735,FLEISHMAN EUROPE LTD,658.23,14/04/2015
Delivery Units,Children's Education & Skills,Food Costs,60017751,FLEISHMAN EUROPE LTD,492.66,16/04/2015
Delivery Units,Children's Education & Skills,Food Costs,60017340,FLEISHMAN EUROPE LTD,495.77,17/04/2015
Delivery Units,Children's Education & Skills,Food Costs,60017358,FLEISHMAN EUROPE LTD,434.62,17/04/2015
Delivery Units,Children's Education & Skills,Food Costs,60017372,FLEISHMAN EUROPE LTD,"1,045.77",17/04/2015
Delivery Units,Children's Education & Skills,Food Costs,60017415,FLEISHMAN EUROPE LTD,"1,643.15",17/04/2015
Delivery Units,Children's Education & Skills,Food Costs,60017445,FLEISHMAN EUROPE LTD,636.22,17/04/2015
Delivery Units,Children's Education & Skills,Food Costs,60019028,FLEISHMAN EUROPE LTD,541.20,17/04/2015
Delivery Units,Children's Education & Skills,Food Costs,60017504,HATOV DISTRIBUTION,389.35,10/04/2015
Delivery Units,Children's Education & Skills,Food Costs,60017520,HATOV DISTRIBUTION,"1,180.04",10/04/2015
Delivery Units,Children's Education & Skills,Food Costs,60017641,HATOV DISTRIBUTION,"1,300.20",10/04/2015
Delivery Units,Children's Education & Skills,Food Costs,60017651,HATOV DISTRIBUTION,467.18,10/04/2015
Delivery Units,Children's Education & Skills,Food Costs,60017672,HATOV DISTRIBUTION,544.00,10/04/2015
Delivery Units,Children's Education & Skills,Food Costs,60018012,HATOV DISTRIBUTION,891.50,10/04/2015
Delivery Units,Children's Education & Skills,Food Costs,60013478,HATOV DISTRIBUTION,356.74,17/04/2015
Delivery Units,Children's Education & Skills,Food Costs,60017292,OSEM U.K. LIMITED,"1,506.04",09/04/2015
Delivery Units,Children's Education & Skills,Food Costs,60017595,OSEM U.K. LIMITED,544.35,09/04/2015
Delivery Units,Children's Education & Skills,Food Costs,60017725,OSEM U.K. LIMITED,301.44,09/04/2015
Delivery Units,Children's Education & Skills,Food Costs,60017387,RUMPLERS,528.20,07/04/2015
Delivery Units,Children's Education & Skills,Food Costs,60017364,RUMPLERS,471.25,09/04/2015
Delivery Units,Children's Education & Skills,Food Costs,60017366,RUMPLERS,398.00,09/04/2015
Delivery Units,Children's Education & Skills,Food Costs,60017670,RUMPLERS,798.60,10/04/2015
Delivery Units,Children's Education & Skills,Food Costs,60017713,RUMPLERS,508.70,13/04/2015
Delivery Units,Children's Education & Skills,Food Costs,60017749,RUMPLERS,781.00,13/04/2015
Delivery Units,Children's Education & Skills,Food Costs,60017763,RUMPLERS,589.70,13/04/2015
Delivery Units,Children's Education & Skills,Food Costs,10012190,RUMPLERS,805.40,16/04/2015
Delivery Units,Children's Education & Skills,Food Costs,60011592,RUMPLERS,500.00,21/04/2015
Delivery Units,Children's Education & Skills,Food Costs,60012190,RUMPLERS,436.20,21/04/2015
Delivery Units,Children's Education & Skills,Food Costs,60017272,SNOWCREST LTD,"1,055.00",10/04/2015
Delivery Units,Children's Education & Skills,Food Costs,60017401,SNOWCREST LTD,368.00,10/04/2015
Delivery Units,Children's Education & Skills,Food Costs,60017762,SNOWCREST LTD,383.00,10/04/2015
Delivery Units,Children's Education & Skills,Food Costs,60017728,SNOWCREST LTD,926.00,14/04/2015
Delivery Units,Children's Education & Skills,Food Costs,60014999,SOVA FOODS WHOLESALE LTD,670.40,08/04/2015
Delivery Units,Children's Education & Skills,Food Costs,60017847,SOVA FOODS WHOLESALE LTD,489.35,13/04/2015
Delivery Units,Children's Education & Skills,Food Costs,60018016,SOVA FOODS WHOLESALE LTD,337.75,14/04/2015
Delivery Units,Children's Education & Skills,Food Costs,60017773,SOVA FOODS WHOLESALE LTD,293.50,15/04/2015
Delivery Units,Children's Education & Skills,Food Costs,60018916,SOVA FOODS WHOLESALE LTD,736.75,17/04/2015
Delivery Units,Children's Education & Skills,Food Costs,60019738,SOVA FOODS WHOLESALE LTD,250.70,29/04/2015
Delivery Units,Children's Education & Skills,Food Costs,60017932,THE FAMILY BREAD LTD,997.57,10/04/2015
Delivery Units,Children's Education & Skills,Food Costs,60017895,THE FAMILY BREAD LTD,674.22,13/04/2015
Delivery Units,Children's Education & Skills,Gas,60018788,KENT COUNTY COUNCIL (KCS),"1,385.26",17/04/2015
Delivery Units,Children's Education & Skills,Other Local Authorities - Thir,20019746,LONSDALE SCHOOL,"3,188.84",30/04/2015
Delivery Units,Children's Education & Skills,Other Services,60015515,PROSPECTS SERVICES LTD,"19,084.84",01/04/2015
Delivery Units,Children's Education & Skills,Professional Services,60015544,ADAMS ENVIRONMENTAL LTD,"10,590.00",08/04/2015
Delivery Units,Children's Education & Skills,Professional Services,60016340,CAROL DE ROSA EARLY YEARS CONSULTANCY,420.00,13/04/2015
Delivery Units,Children's Education & Skills,Professional Services,60017583,CAROL DE ROSA EARLY YEARS CONSULTANCY,420.00,23/04/2015
Delivery Units,Children's Education & Skills,Professional Services,60016404,DEBBIE GOLDMAN MUSIC LTD,350.00,10/04/2015
Delivery Units,Children's Education & Skills,Professional Services,60017731,DEBBIE GOLDMAN MUSIC LTD,700.00,10/04/2015
Delivery Units,Children's Education & Skills,Professional Services,60018126,FEREDAY POLLARD ARCHITECTS LTD,"10,646.41",09/04/2015
Delivery Units,Children's Education & Skills,Professional Services,60017866,ILLUMINE ENTERPRISES LTD,"2,567.50",27/04/2015
Delivery Units,Children's Education & Skills,Professional Services,60017654,IMPROVE ENGLISH LTD,300.00,02/04/2015
Delivery Units,Children's Education & Skills,Professional Services,60017025,JRH CONSULTANCY LTD,840.00,16/04/2015
